Workbook

Sheet MENU1
D3: TRIBUNAL DE CONTAS DO ESTADO DE SÃO PAULO
B7: Planilha geradora dos Relatórios e Demonstrativos Bimestrais e Quadrimestrais exigidos pela Lei Complementar 101/00 - LRF - Versão 2008 - atualizada em março de 2008 apenas para fins de publicação
B11: 1. Município/Poder | H11: 2. Período de Referência
H13: Período de Referência:
H15: Exercício de:
B18: - Relatórios LRF. | H18: - Imprimir Relatórios Bimestrais.
H19: - Imprimir Relatórios do Último Bimestre.
H20: - Imprimir Relatórios Quadrimestrais.
B22: - Antes de imprimir (botões 6, 7 ou 8) verifique se os Relatórios estão montados!

Sheet MENU2
D3: TRIBUNAL DE CONTAS DO ESTADO DE SÃO PAULO
B7: Clique nos botões para digitar os dados relativos a cada relatório, conforme a periodicidade exigida e, após, clique em voltar.
B11: 3.1 Relatórios Bimestrais | H11: 3.2 Relatórios do Último Bimestre
B12: - RREO (06 Bimestres) | H12: - Operações de Crédito x Desp. de Capital
B13: - Anexo ao RREO | H13: - Projeções atuariais do Reg. Própr. Previd.
B14: - Função/Subfunção (06 Bimestres) | H14: - Var. Patrimoniais, Alienações x Aplicações
B15: - Receita Corrente Líquida | H15: 3.3 Relatórios Quadrimestrais
B16: - Receitas e Desp. Previdenciárias | H16: - Relatório de Gestão Fiscal (03 Quadrim.)
B17: - Resultados Nominal e Primário | H17: - Anexo 1 - Despesas com Pessoal
B18: - Restos a Pagar

Sheet CAD
C4: CADASTRO DE MUNICÍPIOS:
C5: Caso não esteja relacionado o nome do seu Município, inclua-o na linha "1" e clique em Classificar.
C9: 1 | D9: TAUBATÉ - FUNDAÇÃO UNIVERSITÁRIA DE TAUBATÉ
C10: =C9+1 -> 2 | D10: ADAMANTINA
C11: =C10+1 -> 3 | D11: ADOLFO
C12: 4 | D12: AGUAI
C13: 5 | D13: AGUAS DA PRATA
C14: 6 | D14: AGUAS DE LINDOIA
C15: 7 | D15: AGUAS DE SANTA BARBARA
C16: 8 | D16: AGUAS DE SAO PEDRO
C17: 9 | D17: AGUDOS
C18: 10 | D18: ALAMBARI
C19: 11 | D19: ALFREDO MARCONDES
C20: 12 | D20: ALTAIR
C21: 13 | D21: ALTINOPOLIS
C22: 14 | D22: ALTO ALEGRE
C23: 15 | D23: ALUMINIO
C24: 16 | D24: ALVARES FLORENCE
C25: 17 | D25: ALVARES MACHADO
C26: 18 | D26: ALVARO DE CARVALHO
C27: 19 | D27: ALVINLANDIA
C28: 20 | D28: AMERICANA
C29: 21 | D29: AMERICO BRASILIENSE
C30: 22 | D30: AMERICO DE CAMPOS
C31: 23 | D31: AMPARO
C32: 24 | D32: ANALANDIA
C33: 25 | D33: ANDRADINA
C34: 26 | D34: ANGATUBA
C35: 27 | D35: ANHEMBI
C36: 28 | D36: ANHUMAS
C37: 29 | D37: APARECIDA
C38: 30 | D38: APARECIDA D´OESTE
C39: 31 | D39: APIAI
C40: 32 | D40: ARACARIGUAMA
C41: 33 | D41: ARACATUBA
C42: 34 | D42: ARACOIABA DA SERRA
C43: 35 | D43: ARAMINA
C44: 36 | D44: ARANDU
C45: 37 | D45: ARAPEI
C46: 38 | D46: ARARAQUARA
C47: 39 | D47: ARARAS
C48: 40 | D48: ARCO IRIS
C49: 41 | D49: AREALVA
C50: 42 | D50: AREIAS
C51: 43 | D51: AREIOPOLIS
C52: 44 | D52: ARIRANHA
C53: 45 | D53: ARTUR NOGUEIRA
C54: 46 | D54: ARUJA
C55: 47 | D55: ASPASIA
C56: 48 | D56: ASSIS
C57: 49 | D57: ATIBAIA
C58: 50 | D58: AURIFLAMA
C59: 51 | D59: AVAI
C60: 52 | D60: AVANHANDAVA
C61: 53 | D61: AVARE
C62: 54 | D62: BADY BASSITT
C63: 55 | D63: BALBINOS
C64: 56 | D64: BALSAMO
C65: 57 | D65: BANANAL
C66: 58 | D66: BARAO DE ANTONINA
C67: 59 | D67: BARBOSA
C68: 60 | D68: BARIRI
C69: 61 | D69: BARRA BONITA
C70: 62 | D70: BARRA DO CHAPEU
C71: 63 | D71: BARRA DO TURVO
C72: 64 | D72: BARRETOS
C73: 65 | D73: BARRINHA
C74: 66 | D74: BARUERI
C75: =C74+1 -> 67 | D75: BASTOS
C76: 68 | D76: BATATAIS
C77: 69 | D77: BAURU
C78: 70 | D78: BEBEDOURO
C79: 71 | D79: BENTO DE ABREU
C80: 72 | D80: BERNARDINO DE CAMPOS
C81: 73 | D81: BERTIOGA
C82: 74 | D82: BILAC
C83: 75 | D83: BIRIGUI
C84: 76 | D84: BIRITIBA MIRIM
C85: 77 | D85: BOA ESPERANCA DO SUL
C86: 78 | D86: BOCAINA
C87: 79 | D87: BOFETE
C88: 80 | D88: BOITUVA
C89: 81 | D89: BOM JESUS DOS PERDOES
C90: 82 | D90: BOM SUCESSO DE ITARARE
C91: 83 | D91: BORA
C92: 84 | D92: BORACEIA
C93: 85 | D93: BORBOREMA
C94: 86 | D94: BOREBI
C95: 87 | D95: BOTUCATU
C96: 88 | D96: BRAGANCA PAULISTA
C97: 89 | D97: BRAUNA
C98: 90 | D98: BREJO ALEGRE
C99: 91 | D99: BRODOWSKI
C100: 92 | D100: BROTAS
C101: 93 | D101: BURI
C102: 94 | D102: BURITAMA
C103: 95 | D103: BURITIZAL
C104: 96 | D104: CABRALIA PAULISTA
C105: 97 | D105: CABREUVA
C106: 98 | D106: CACAPAVA
C107: 99 | D107: CACHOEIRA PAULISTA
C108: 100 | D108: CACONDE
C109: 101 | D109: CAFELANDIA
C110: 102 | D110: CAIABU
C111: 103 | D111: CAIEIRAS
C112: 104 | D112: CAIUA
C113: 105 | D113: CAJAMAR
C114: 106 | D114: CAJATI
C115: 107 | D115: CAJOBI
C116: 108 | D116: CAJURU
C117: 109 | D117: CAMPINA DO MONTE ALEGRE
C118: 110 | D118: CAMPINAS
C119: 111 | D119: CAMPO LIMPO PAULISTA
C120: 112 | D120: CAMPOS DO JORDAO
C121: 113 | D121: CAMPOS NOVOS PAULISTA
C122: 114 | D122: CANANEIA
C123: 115 | D123: CANAS
C124: 116 | D124: CANDIDO MOTA
C125: 117 | D125: CANDIDO RODRIGUES
C126: 118 | D126: CANITAR
C127: 119 | D127: CAPAO BONITO
C128: 120 | D128: CAPELA DO ALTO
C129: 121 | D129: CAPIVARI
C130: 122 | D130: CARAGUATATUBA
C131: 123 | D131: CARAPICUIBA
C132: 124 | D132: CARDOSO
C133: 125 | D133: CASA BRANCA
C134: 126 | D134: CASSIA DOS COQUEIROS
C135: 127 | D135: CASTILHO
C136: 128 | D136: CATANDUVA
C137: 129 | D137: CATIGUA
C138: 130 | D138: CEDRAL
C139: =C138+1 -> 131 | D139: CERQUEIRA CESAR
C140: 132 | D140: CERQUILHO
C141: 133 | D141: CESARIO LANGE
C142: 134 | D142: CHARQUEADA
C143: 135 | D143: CHAVANTES
C144: 136 | D144: CLEMENTINA
C145: 137 | D145: COLINA
C146: 138 | D146: COLOMBIA
C147: 139 | D147: CONCHAL
C148: 140 | D148: CONCHAS
C149: 141 | D149: CORDEIROPOLIS
C150: 142 | D150: COROADOS
C151: 143 | D151: CORONEL MACEDO
C152: 144 | D152: CORUMBATAI
C153: 145 | D153: COSMOPOLIS
C154: 146 | D154: COSMORAMA
C155: 147 | D155: COTIA
C156: 148 | D156: CRAVINHOS
C157: 149 | D157: CRISTAIS PAULISTA
C158: 150 | D158: CRUZALIA
C159: 151 | D159: CRUZEIRO
C160: 152 | D160: CUBATAO
C161: 153 | D161: CUNHA
C162: 154 | D162: DESCALVADO
C163: 155 | D163: DIADEMA
C164: 156 | D164: DIRCE REIS
C165: 157 | D165: DIVINOLANDIA
C166: 158 | D166: DOBRADA
C167: 159 | D167: DOIS CORREGOS
C168: 160 | D168: DOLCINOPOLIS
C169: 161 | D169: DOURADO
C170: 162 | D170: DRACENA
C171: 163 | D171: DUARTINA
C172: 164 | D172: DUMONT
C173: 165 | D173: ECHAPORA
C174: 166 | D174: ELDORADO
C175: 167 | D175: ELIAS FAUSTO
C176: 168 | D176: ELISIARIO
C177: 169 | D177: EMBAUBA
C178: 170 | D178: EMBU
C179: 171 | D179: EMBU-GUACU
C180: 172 | D180: EMILIANOPOLIS
C181: 173 | D181: ENGENHEIRO COELHO
C182: 174 | D182: ESPIRITO SANTO DO PINHAL
C183: 175 | D183: ESPIRITO SANTO DO TURVO
C184: 176 | D184: ESTIVA GERBI
C185: 177 | D185: ESTRELA D´OESTE
C186: 178 | D186: ESTRELA DO NORTE
C187: 179 | D187: EUCLIDES DA CUNHA PAULISTA
C188: 180 | D188: FARTURA
C189: 181 | D189: FERNANDO PRESTES
C190: 182 | D190: FERNANDOPOLIS
C191: 183 | D191: FERNAO
C192: 184 | D192: FERRAZ DE VASCONCELOS
C193: 185 | D193: FLORA RICA
C194: 186 | D194: FLOREAL
C195: 187 | D195: FLORIDA PAULISTA
C196: 188 | D196: FLORINEA
C197: 189 | D197: FRANCA
C198: 190 | D198: FRANCISCO MORATO
C199: 191 | D199: FRANCO DA ROCHA
C200: 192 | D200: GABRIEL MONTEIRO
C201: 193 | D201: GALIA
C202: 194 | D202: GARCA
C203: =C202+1 -> 195 | D203: GASTAO VIDIGAL
C204: 196 | D204: GAVIAO PEIXOTO
C205: 197 | D205: GENERAL SALGADO
C206: 198 | D206: GETULINA
... 452 more rows

Sheet COM (hidden)
AC5: MUNICÍPIO: | AG5: PERÍODO (RREO..) | AJ5: MÊS REF. | AK5: ANTERIORES | AO5: ORDEM | AQ5: EXERCÍCIO
AC6: 1 | AD6: =LOOKUP(AC6,CAD!C9:C658,CAD!D9:D658) -> TAUBATÉ - FUNDAÇÃO UNIVERSITÁRIA DE TAUBATÉ | AG6: Resultado: | AH6: 3 | AJ6: =AH6*2 -> 6 | AQ6: Resultado: | AR6: 12
AF7: 1 | AG7: 1º BIMESTRE | AI7: 2 | AJ7: FEVEREIRO | AK7: 2000-01-15 | AL7: =LOOKUP($AJ$6,MONTH($AK$7:$AK$18),MONTH($AK$7:$AK$18-330)) -> 7 | AM7: 1 | AN7: JANEIRO | AO7: =LOOKUP(AL7,$AM$7:$AM$18,$AN$7:$AN$18) -> JULHO | AP7: 1 | AQ7: 2001
AF8: 2 | AG8: 2º BIMESTRE | AI8: 4 | AJ8: ABRIL | AK8: 2000-02-15 | AL8: =LOOKUP($AJ$6,MONTH($AK$7:$AK$18),MONTH($AK$7:$AK$18-300)) -> 8 | AM8: 2 | AN8: FEVEREIRO | AO8: =LOOKUP(AL8,$AM$7:$AM$18,$AN$7:$AN$18) -> AGOSTO | AP8: 2 | AQ8: 2002 | AR8: 8
AF9: 3 | AG9: 3º BIMESTRE | AI9: 6 | AJ9: JUNHO | AK9: 2000-03-15 | AL9: =LOOKUP($AJ$6,MONTH($AK$7:$AK$18),MONTH($AK$7:$AK$18-270)) -> 9 | AM9: 3 | AN9: MARÇO | AO9: SETEMBRO | AP9: 3 | AQ9: 2003
AF10: 4 | AG10: 4º BIMESTRE | AI10: 8 | AJ10: AGOSTO | AK10: 2000-04-15 | AL10: =LOOKUP($AJ$6,MONTH($AK$7:$AK$18),MONTH($AK$7:$AK$18-240)) -> 10 | AM10: 4 | AN10: ABRIL | AO10: OUTUBRO | AP10: 4 | AQ10: 2004
AC11: PODERES: | AF11: 5 | AG11: 5º BIMESTRE | AI11: 10 | AJ11: OUTUBRO | AK11: 2000-05-15 | AL11: =LOOKUP($AJ$6,MONTH($AK$7:$AK$18),MONTH($AK$7:$AK$18-210)) -> 11 | AM11: 5 | AN11: MAIO | AO11: NOVEMBRO | AP11: 5 | AQ11: 2005
AC12: Resultado: | AD12: 1 | AF12: 6 | AG12: 6º BIMESTRE | AI12: 12 | AJ12: DEZEMBRO | AK12: 2000-06-15 | AL12: =LOOKUP($AJ$6,MONTH($AK$7:$AK$18),MONTH($AK$7:$AK$18-180)) -> 12 | AM12: 6 | AN12: JUNHO | AO12: DEZEMBRO | AP12: 6 | AQ12: 2006
AB13: 1 | AC13: EXECUTIVO MUNICIPAL | AG13: =LOOKUP(AH6,AF7:AF12,AG7:AG12) -> 3º BIMESTRE | AK13: 2000-07-15 | AL13: =LOOKUP($AJ$6,MONTH($AK$7:$AK$18),MONTH($AK$7:$AK$18-150)) -> 1 | AM13: 7 | AN13: JULHO | AO13: JANEIRO | AP13: 7 | AQ13: 2007
AB14: 2 | AG14: PERÍODO (RGF..) | AK14: 2000-08-15 | AL14: =LOOKUP($AJ$6,MONTH($AK$7:$AK$18),MONTH($AK$7:$AK$18-120)) -> 2 | AM14: 8 | AN14: AGOSTO | AO14: FEVEREIRO | AP14: 8 | AQ14: 2008
AC15: =LOOKUP(AD12,AB13:AB14,AC13:AC14) -> EXECUTIVO MUNICIPAL | AF15: 1 | AG15: "PARA PRÓXIMO BIMESTRE" | AK15: 2000-09-15 | AL15: =LOOKUP($AJ$6,MONTH($AK$7:$AK$18),MONTH($AK$7:$AK$18-90)) -> 3 | AM15: 9 | AN15: SETEMBRO | AO15: MARÇO | AP15: 9 | AQ15: 2009
AF16: 2 | AG16: 1º QUADRIMESTRE | AK16: 2000-10-15 | AL16: =LOOKUP($AJ$6,MONTH($AK$7:$AK$18),MONTH($AK$7:$AK$18-60)) -> 4 | AM16: 10 | AN16: OUTUBRO | AO16: ABRIL | AP16: 10 | AQ16: 2010
AF17: 3 | AG17: "PARA PRÓXIMO BIMESTRE" | AK17: 2000-11-15 | AL17: =LOOKUP($AJ$6,MONTH($AK$7:$AK$18),MONTH($AK$7:$AK$18-30)) -> 5 | AM17: 11 | AN17: NOVEMBRO | AO17: MAIO | AP17: 11 | AQ17: 2011
AF18: 4 | AG18: 2º QUADRIMESTRE | AK18: 2000-12-15 | AL18: =AJ6 -> 6 | AM18: 12 | AN18: DEZEMBRO | AO18: JUNHO | AP18: 12 | AQ18: 2012
AF19: 5 | AG19: "PARA PRÓXIMO BIMESTRE" | AQ19: =LOOKUP(AR6,AP7:AP18,AQ7:AQ18) -> 2012
AF20: 6 | AG20: 3º QUADRIMESTRE
AG21: =LOOKUP(AH6,AF15:AF20,AG15:AG20) -> "PARA PRÓXIMO BIMESTRE"

Sheet mod1 6b
A1: RELATÓRIO RESUMIDO DA EXECUÇÃO ORÇAMENTÁRIA
A2: (Artigo 52, Incisos I e II, alíneas “a” e “b”, da LC. 101/00)
A3: - ADMINISTRAÇÃO DIRETA / INDIRETA / FUNDACIONAL -
A5: ="MUNICÍPIO DE "&COM!AD6 -> MUNICÍPIO DE TAUBATÉ - FUNDAÇÃO UNIVERSITÁRIA DE TAUBATÉ
A6: 3ºBIMESTRE 2014
A7: Valores expressos em R$
A8: RECEITAS | B8: Previsão anual | D8: 1º Bimestre | F8: 2º Bimestre | H8: 3º Bimestre | J8: 4º Bimestre | L8: 5º Bimestre | N8: 6º Bimestre | P8: Acumulado
A9: Categoria Econômica/Fontes | B9: Inicial | C9: Atualizada | D9: Previsto | E9: Realizado | F9: Previsto | G9: Realizado | H9: Previsto | I9: Realizado | J9: Previsto | K9: Realizado | L9: Previsto | M9: Realizado | N9: Previsto | O9: Realizado | P9: Previsto | Q9: Realizado | R9: a realizar
D10: 1 | E10: 2 | F10: 3 | G10: 4 | H10: 5 | I10: 6 | J10: 7 | K10: 8 | L10: 9 | M10: 10 | N10: 11 | O10: 12
A11: Receitas Correntes (A) | B11: =B12+SUM(B20:B25)-B26+B27 -> 18723396 | C11: =C12+SUM(C20:C25)-C26+C27 -> 18723396 | D11: 3120566 | E11: 2839159.83 | F11: 3120566 | G11: 1691045.14 | H11: 3120566 | I11: 1368482.56 | J11: 0 | K11: 0 | L11: 0 | M11: 0 | N11: 0 | O11: 0 | P11: =D11+F11+H11+J11+L11+N11 -> 9361698 | Q11: =E11+G11+I11+K11+M11+O11 -> 5898687.53 | R11: =C11-Q11 -> 12824708.47
A12: Tributárias | B12: =B13+B18+B19 -> 0 | C12: =C13+C18+C19 -> 0 | D12: 0 | E12: 0 | F12: 0 | G12: 0 | H12: 0 | I12: 0 | J12: 0 | K12: 0 | L12: 0 | M12: 0 | N12: 0 | O12: 0 | P12: =D12+F12+H12+J12+L12+N12 -> 0 | Q12: =E12+G12+I12+K12+M12+O12 -> 0 | R12: =C12-Q12 -> 0
A13: Impostos | B13: =SUM(B14:B17) -> 0 | C13: =SUM(C14:C17) -> 0 | D13: 0 | E13: 0 | F13: 0 | G13: 0 | H13: 0 | I13: 0 | J13: 0 | K13: 0 | L13: 0 | M13: 0 | N13: 0 | O13: 0 | P13: 0 | Q13: 0 | R13: 0
A14: IPTU | P14: 0 | Q14: 0 | R14: 0
A15: ISSQN | P15: 0 | Q15: 0 | R15: 0
A16: ITBI | P16: 0 | Q16: 0 | R16: 0
A17: IRRF | P17: =D17+F17+H17+J17+L17+N17 -> 0 | Q17: =E17+G17+I17+K17+M17+O17 -> 0 | R17: =C17-Q17 -> 0
A18: Taxas | P18: 0 | Q18: 0 | R18: 0
A19: Contribuição de Melhoria | P19: 0 | Q19: 0 | R19: 0
A20: Contribuições | P20: 0 | Q20: 0 | R20: 0
A21: Patrimoniais | B21: 46896 | C21: 46896 | D21: 7816 | E21: 7996.12 | F21: 7816 | G21: 3998.06 | H21: 7816 | I21: 0 | J21: 0 | K21: 0 | L21: 0 | M21: 0 | N21: 0 | O21: 0 | P21: 23448 | Q21: 11994.18 | R21: 34901.82
A22: Industriais | P22: 0 | Q22: 0 | R22: 0
A23: Agropecuárias | P23: 0 | Q23: 0 | R23: 0
A24: Serviços | B24: 18631500 | C24: 18631500 | D24: 3105250 | E24: 2831163.71 | F24: 3105250 | G24: 1655286.12 | H24: 3105250 | I24: 1295608.81 | J24: 0 | K24: 0 | L24: 0 | M24: 0 | N24: 0 | O24: 0 | P24: 9315750 | Q24: 5782058.64 | R24: 12849441.36
A25: Transferências Correntes | P25: 0 | Q25: 0 | R25: 0
A26: (-) Contas Redutoras (ICMS,FPM,IPI Exp) | P26: =D26+F26+H26+J26+L26+N26 -> 0 | Q26: =E26+G26+I26+K26+M26+O26 -> 0 | R26: =C26-Q26 -> 0
A27: Outras Receitas Correntes | B27: 45000 | C27: 45000 | D27: 7500 | E27: 0 | F27: 7500 | G27: 31760.96 | H27: 7500 | I27: 72873.75 | J27: 0 | K27: 0 | L27: 0 | M27: 0 | N27: 0 | O27: 0 | P27: 22500 | Q27: 104634.71 | R27: -59634.71
A28: Receitas de Capital (B) | B28: =B29+SUM(B32:B35) -> 0 | C28: =C29+SUM(C32:C35) -> 0 | D28: 0 | E28: 0 | F28: 0 | G28: 0 | H28: 0 | I28: 0 | J28: 0 | K28: 0 | L28: 0 | M28: 0 | N28: 0 | O28: 0 | P28: 0 | Q28: 0 | R28: 0
A29: Operações de Crédito | B29: =B30+B31 -> 0 | C29: =C30+C31 -> 0 | D29: 0 | E29: 0 | F29: 0 | G29: 0 | H29: 0 | I29: 0 | J29: 0 | K29: 0 | L29: 0 | M29: 0 | N29: 0 | O29: 0 | P29: 0 | Q29: 0 | R29: 0
A30: Refinanciamento da Dívida | P30: 0 | Q30: 0 | R30: 0
A31: Outras Operações de Crédito | P31: 0 | Q31: 0 | R31: 0
A32: Alienação de Bens | P32: 0 | Q32: 0 | R32: 0
A33: Amortização de Empréstimos | P33: 0 | Q33: 0 | R33: 0
A34: Transferências de Capital | P34: 0 | Q34: 0 | R34: 0
A35: Outras Receitas de Capital | P35: 0 | Q35: 0 | R35: 0
A36: RECEITA TOTAL (A+B) | B36: =B11+B28 -> 18723396 | C36: =C11+C28 -> 18723396 | D36: 3120566 | E36: 2839159.83 | F36: 3120566 | G36: 1691045.14 | H36: 3120566 | I36: 1368482.56 | J36: 0 | K36: 0 | L36: 0 | M36: 0 | N36: 0 | O36: 0 | P36: 9361698 | Q36: 5898687.53 | R36: 12824708.47
A37: DESPESAS | B37: Dotação Anual | D37: 1º Bimestre | F37: 2º Bimestre | H37: 3º Bimestre | J37: 4º Bimestre | L37: 5º Bimestre | N37: 6º Bimestre | P37: Acumulado
A38: Categoria Econômica/Natureza | B38: Inicial | C38: Atualizada | D38: Empenhado | E38: Liquidado | F38: Empenhado | G38: Liquidado | H38: Empenhado | I38: Liquidado | J38: Empenhado | K38: Liquidado | L38: Empenhado | M38: Liquidado | N38: Empenhado | O38: Liquidado | P38: Empenhado | Q38: Liquidado | R38: A empenhar
A39: Despesas Correntes (C) | B39: =SUM(B40:B43) -> 20083396 | C39: =SUM(C40:C43) -> 20083396 | D39: =SUM(D40:D43) -> 3123555.3 | E39: =SUM(E40:E43) -> 3123555.3 | F39: 1311474.69 | G39: 1311474.69 | H39: 3164776.51 | I39: 3164776.51 | J39: 0 | K39: 0 | L39: 0 | M39: 0 | N39: 0 | O39: 0 | P39: =D39+F39+H39+J39+L39+N39 -> 7599806.5 | Q39: =E39+G39+I39+K39+M39+O39 -> 7599806.5 | R39: =C39-P39 -> 12483589.5
A40: Pessoal/Encargos Sociais | B40: 11661496 | C40: 11661496 | D40: 1546822.16 | E40: 1546822.16 | F40: 320297.45 | G40: 320297.45 | H40: 1376690.85 | I40: 1376690.85 | P40: 3243810.46 | Q40: =E40+G40+I40+K40+M40+O40 -> 3243810.46 | R40: =C40-P40 -> 8417685.54
A41: Juros/Encargos da Dívida Interna | P41: 0 | Q41: 0 | R41: 0
A42: Juros/Encargos Dívida Externa | P42: 0 | Q42: 0 | R42: 0
A43: Outras Despesas Correntes | B43: 8421900 | C43: 8421900 | D43: 1576733.14 | E43: 1576733.14 | F43: 991177.24 | G43: 991177.24 | H43: 1788085.66 | I43: 1788085.66 | P43: 4355996.04 | Q43: 4355996.04 | R43: 4065903.96
A44: Despesas de Capital (D) | B44: =B45+B46+B47+B50 -> 40000 | C44: =C45+C46+C47+C50 -> 40000 | D44: 4490 | E44: 4490 | F44: 0 | G44: 0 | H44: 2078 | I44: 2078 | J44: 0 | K44: 0 | L44: 0 | M44: 0 | N44: 0 | O44: 0 | P44: 6568 | Q44: 6568 | R44: 33432
A45: Investimentos | B45: 40000 | C45: 40000 | D45: 4490 | E45: 4490 | F45: 0 | G45: 0 | H45: 2078 | I45: 2078 | P45: 6568 | Q45: 6568 | R45: 33432
A46: Inversões Financeiras | P46: 0 | Q46: 0 | R46: 0
A47: Amortização da Dívida | B47: =SUM(B48:B49) -> 0 | C47: =SUM(C48:C49) -> 0 | D47: 0 | E47: 0 | F47: 0 | G47: 0 | H47: 0 | I47: 0 | J47: 0 | K47: 0 | L47: 0 | M47: 0 | N47: 0 | O47: 0 | P47: 0 | Q47: 0 | R47: 0
A48: Amortização do Refin. Dív. Mobil. | D48: 0 | P48: 0 | Q48: 0 | R48: 0
A49: Outras Amortizações | F49: 0 | G49: 0 | H49: 0 | I49: 0 | J49: 0 | K49: 0 | L49: 0 | M49: 0 | N49: 0 | O49: 0 | P49: 0 | Q49: 0 | R49: 0
A50: Outras Despesas de Capital | P50: 0 | Q50: 0 | R50: 0
A51: Reserva de Contingência (E) | B51: 0 | C51: 0
A52: DESPESA TOTAL (C+D) | B52: =B39+B44 -> 20123396 | C52: =C39+C44 -> 20123396 | D52: 3128045.3 | E52: 3128045.3 | F52: 1311474.69 | G52: 1311474.69 | H52: 3166854.51 | I52: 3166854.51 | J52: 0 | K52: 0 | L52: 0 | M52: 0 | N52: 0 | O52: 0 | P52: =D52+F52+H52+J52+L52+N52 -> 7606374.5 | Q52: =E52+G52+I52+K52+M52+O52 -> 7606374.5 | R52: =C52-P52 -> 12517021.5
A53: SUPERÁVIT/DÉFICIT(A+B–C-D) | B53: =B36-B52 -> -1400000 | C53: =C36-C52 -> -1400000 | D53: =D36-D52 -> -7479.3 | E53: -288885.47 | F53: =F36-F52 -> 1809091.31 | G53: 379570.45 | H53: =H36-H52 -> -46288.51 | I53: -1798371.95 | J53: =J36-J52 -> 0 | K53: 0 | L53: =L36-L52 -> 0 | M53: 0 | N53: =O36-N52 -> 0 | O53: 0 | P53: =P36-P39-P44 -> 1755323.5 | Q53: =Q36-Q39-Q44 -> -1707686.97
A58: PROF.DR.ISNARD DE A.CÂMARA NETO | G58: Jessé César Pinto | P58: JOSIMERE DOS SANTOS COSTA
A59: DIRETOR PRESIDENTE | H59: CRC:1SP 297323/O-5 | Q59: Controlador Interno

Sheet mod1 1b
A1: RELATÓRIO RESUMIDO DA EXECUÇÃO ORÇAMENTÁRIA
A2: (Artigo 52, Incisos I e II, alíneas “a” e “b”, da LC. 101/00)
A3: - ADMINISTRAÇÃO DIRETA / INDIRETA / FUNDACIONAL -
A5: ='mod1 6b'!A5 -> MUNICÍPIO DE TAUBATÉ - FUNDAÇÃO UNIVERSITÁRIA DE TAUBATÉ
A6: 3º BIMESTRE 2014
A7: Valores expressos em R$
A8: RECEITAS | B8: Previsão anual | D8: 3ºBIMESTRE | F8: Acumulado
A9: Categoria Econômica/Fontes | B9: Inicial | C9: Atualizada | D9: Previsto | E9: Realizado | F9: Previsto | G9: Realizado | H9: a realizar
D10: =E10-1 -> 5 | E10: =COM!AH6*2 -> 6
A11: Receitas Correntes (A) | B11: ='mod1 6b'!B11 -> 18723396 | C11: ='mod1 6b'!C11 -> 18723396 | D11: =LOOKUP($D$10,'mod1 6b'!$D$10:$O$10,'mod1 6b'!D11:O11) -> 3120566 | E11: =SUM(E12:E35) -> 1368482.56 | F11: ='mod1 6b'!P11 -> 9361698 | G11: ='mod1 6b'!Q11 -> 5898687.53 | H11: ='mod1 6b'!R11 -> 12824708.47
A12: Tributárias | B12: ='mod1 6b'!B12 -> 0 | C12: ='mod1 6b'!C12 -> 0 | D12: =LOOKUP($D$10,'mod1 6b'!$D$10:$O$10,'mod1 6b'!D12:O12) -> 0 | E12: =LOOKUP($E$10,'mod1 6b'!$D$10:$O$10,'mod1 6b'!D12:O12) -> 0 | F12: ='mod1 6b'!P12 -> 0 | G12: ='mod1 6b'!Q12 -> 0 | H12: ='mod1 6b'!R12 -> 0
A13: Impostos | B13: ='mod1 6b'!B13 -> 0 | C13: ='mod1 6b'!C13 -> 0 | D13: =LOOKUP($D$10,'mod1 6b'!$D$10:$O$10,'mod1 6b'!D13:O13) -> 0 | E13: =LOOKUP($E$10,'mod1 6b'!$D$10:$O$10,'mod1 6b'!D13:O13) -> 0 | F13: ='mod1 6b'!P13 -> 0 | G13: ='mod1 6b'!Q13 -> 0 | H13: ='mod1 6b'!R13 -> 0
A14: IPTU | B14: ='mod1 6b'!B14 -> 0 | C14: ='mod1 6b'!C14 -> 0 | D14: =LOOKUP($D$10,'mod1 6b'!$D$10:$O$10,'mod1 6b'!D14:O14) -> 0 | E14: =LOOKUP($E$10,'mod1 6b'!$D$10:$O$10,'mod1 6b'!D14:O14) -> 0 | F14: ='mod1 6b'!P14 -> 0 | G14: ='mod1 6b'!Q14 -> 0 | H14: ='mod1 6b'!R14 -> 0
A15: ISSQN | B15: ='mod1 6b'!B15 -> 0 | C15: ='mod1 6b'!C15 -> 0 | D15: =LOOKUP($D$10,'mod1 6b'!$D$10:$O$10,'mod1 6b'!D15:O15) -> 0 | E15: =LOOKUP($E$10,'mod1 6b'!$D$10:$O$10,'mod1 6b'!D15:O15) -> 0 | F15: ='mod1 6b'!P15 -> 0 | G15: ='mod1 6b'!Q15 -> 0 | H15: ='mod1 6b'!R15 -> 0
A16: ITBI | B16: ='mod1 6b'!B16 -> 0 | C16: ='mod1 6b'!C16 -> 0 | D16: =LOOKUP($D$10,'mod1 6b'!$D$10:$O$10,'mod1 6b'!D16:O16) -> 0 | E16: =LOOKUP($E$10,'mod1 6b'!$D$10:$O$10,'mod1 6b'!D16:O16) -> 0 | F16: ='mod1 6b'!P16 -> 0 | G16: ='mod1 6b'!Q16 -> 0 | H16: ='mod1 6b'!R16 -> 0
A17: IRRF | B17: ='mod1 6b'!B17 -> 0 | C17: ='mod1 6b'!C17 -> 0 | D17: =LOOKUP($D$10,'mod1 6b'!$D$10:$O$10,'mod1 6b'!D17:O17) -> 0 | E17: =LOOKUP($E$10,'mod1 6b'!$D$10:$O$10,'mod1 6b'!D17:O17) -> 0 | F17: ='mod1 6b'!P17 -> 0 | G17: ='mod1 6b'!Q17 -> 0 | H17: ='mod1 6b'!R17 -> 0
A18: Taxas | B18: ='mod1 6b'!B18 -> 0 | C18: ='mod1 6b'!C18 -> 0 | D18: =LOOKUP($D$10,'mod1 6b'!$D$10:$O$10,'mod1 6b'!D18:O18) -> 0 | E18: =LOOKUP($E$10,'mod1 6b'!$D$10:$O$10,'mod1 6b'!D18:O18) -> 0 | F18: ='mod1 6b'!P18 -> 0 | G18: ='mod1 6b'!Q18 -> 0 | H18: ='mod1 6b'!R18 -> 0
A19: Contribuição de Melhoria | B19: ='mod1 6b'!B19 -> 0 | C19: ='mod1 6b'!C19 -> 0 | D19: =LOOKUP($D$10,'mod1 6b'!$D$10:$O$10,'mod1 6b'!D19:O19) -> 0 | E19: =LOOKUP($E$10,'mod1 6b'!$D$10:$O$10,'mod1 6b'!D19:O19) -> 0 | F19: ='mod1 6b'!P19 -> 0 | G19: ='mod1 6b'!Q19 -> 0 | H19: ='mod1 6b'!R19 -> 0
A20: Contribuições | B20: ='mod1 6b'!B20 -> 0 | C20: ='mod1 6b'!C20 -> 0 | D20: =LOOKUP($D$10,'mod1 6b'!$D$10:$O$10,'mod1 6b'!D20:O20) -> 0 | E20: =LOOKUP($E$10,'mod1 6b'!$D$10:$O$10,'mod1 6b'!D20:O20) -> 0 | F20: ='mod1 6b'!P20 -> 0 | G20: ='mod1 6b'!Q20 -> 0 | H20: ='mod1 6b'!R20 -> 0
A21: Patrimoniais | B21: ='mod1 6b'!B21 -> 46896 | C21: ='mod1 6b'!C21 -> 46896 | D21: =LOOKUP($D$10,'mod1 6b'!$D$10:$O$10,'mod1 6b'!D21:O21) -> 7816 | E21: 0 | F21: ='mod1 6b'!P21 -> 23448 | G21: ='mod1 6b'!Q21 -> 11994.18 | H21: ='mod1 6b'!R21 -> 34901.82
A22: Industriais | B22: ='mod1 6b'!B22 -> 0 | C22: ='mod1 6b'!C22 -> 0 | D22: =LOOKUP($D$10,'mod1 6b'!$D$10:$O$10,'mod1 6b'!D22:O22) -> 0 | E22: =LOOKUP($E$10,'mod1 6b'!$D$10:$O$10,'mod1 6b'!D22:O22) -> 0 | F22: ='mod1 6b'!P22 -> 0 | G22: ='mod1 6b'!Q22 -> 0 | H22: ='mod1 6b'!R22 -> 0
A23: Agropecuárias | B23: ='mod1 6b'!B23 -> 0 | C23: ='mod1 6b'!C23 -> 0 | D23: =LOOKUP($D$10,'mod1 6b'!$D$10:$O$10,'mod1 6b'!D23:O23) -> 0 | E23: =LOOKUP($E$10,'mod1 6b'!$D$10:$O$10,'mod1 6b'!D23:O23) -> 0 | F23: ='mod1 6b'!P23 -> 0 | G23: ='mod1 6b'!Q23 -> 0 | H23: ='mod1 6b'!R23 -> 0
A24: Serviços | B24: ='mod1 6b'!B24 -> 18631500 | C24: ='mod1 6b'!C24 -> 18631500 | D24: =LOOKUP($D$10,'mod1 6b'!$D$10:$O$10,'mod1 6b'!D24:O24) -> 3105250 | E24: 1295608.81 | F24: ='mod1 6b'!P24 -> 9315750 | G24: ='mod1 6b'!Q24 -> 5782058.64 | H24: ='mod1 6b'!R24 -> 12849441.36
A25: Transferências Correntes | B25: ='mod1 6b'!B25 -> 0 | C25: ='mod1 6b'!C25 -> 0 | D25: =LOOKUP($D$10,'mod1 6b'!$D$10:$O$10,'mod1 6b'!D25:O25) -> 0 | E25: =LOOKUP($E$10,'mod1 6b'!$D$10:$O$10,'mod1 6b'!D25:O25) -> 0 | F25: ='mod1 6b'!P25 -> 0 | G25: ='mod1 6b'!Q25 -> 0 | H25: ='mod1 6b'!R25 -> 0
A26: (-) Contas Redutoras (ICMS,FPM,IPI Exp) | B26: ='mod1 6b'!B26 -> 0 | C26: ='mod1 6b'!C26 -> 0 | D26: =LOOKUP($D$10,'mod1 6b'!$D$10:$O$10,'mod1 6b'!D26:O26) -> 0 | E26: =LOOKUP($E$10,'mod1 6b'!$D$10:$O$10,'mod1 6b'!D26:O26) -> 0 | F26: ='mod1 6b'!P26 -> 0 | G26: ='mod1 6b'!Q26 -> 0 | H26: ='mod1 6b'!R26 -> 0
A27: Outras Receitas Correntes | B27: ='mod1 6b'!B27 -> 45000 | C27: ='mod1 6b'!C27 -> 45000 | D27: =LOOKUP($D$10,'mod1 6b'!$D$10:$O$10,'mod1 6b'!D27:O27) -> 7500 | E27: 72873.75 | F27: ='mod1 6b'!P27 -> 22500 | G27: ='mod1 6b'!Q27 -> 104634.71 | H27: ='mod1 6b'!R27 -> -59634.71
A28: Receitas de Capital (B) | B28: ='mod1 6b'!B28 -> 0 | C28: ='mod1 6b'!C28 -> 0 | D28: =LOOKUP($D$10,'mod1 6b'!$D$10:$O$10,'mod1 6b'!D28:O28) -> 0 | E28: =LOOKUP($E$10,'mod1 6b'!$D$10:$O$10,'mod1 6b'!D28:O28) -> 0 | F28: ='mod1 6b'!P28 -> 0 | G28: ='mod1 6b'!Q28 -> 0 | H28: ='mod1 6b'!R28 -> 0
A29: Operações de Crédito | B29: ='mod1 6b'!B29 -> 0 | C29: ='mod1 6b'!C29 -> 0 | D29: =LOOKUP($D$10,'mod1 6b'!$D$10:$O$10,'mod1 6b'!D29:O29) -> 0 | E29: =LOOKUP($E$10,'mod1 6b'!$D$10:$O$10,'mod1 6b'!D29:O29) -> 0 | F29: ='mod1 6b'!P29 -> 0 | G29: ='mod1 6b'!Q29 -> 0 | H29: ='mod1 6b'!R29 -> 0
A30: Refinanciamento da Dívida | B30: ='mod1 6b'!B30 -> 0 | C30: ='mod1 6b'!C30 -> 0 | D30: =LOOKUP($D$10,'mod1 6b'!$D$10:$O$10,'mod1 6b'!D30:O30) -> 0 | E30: =LOOKUP($E$10,'mod1 6b'!$D$10:$O$10,'mod1 6b'!D30:O30) -> 0 | F30: ='mod1 6b'!P30 -> 0 | G30: ='mod1 6b'!Q30 -> 0 | H30: ='mod1 6b'!R30 -> 0
A31: Outras Operações de Crédito | B31: ='mod1 6b'!B31 -> 0 | C31: ='mod1 6b'!C31 -> 0 | D31: =LOOKUP($D$10,'mod1 6b'!$D$10:$O$10,'mod1 6b'!D31:O31) -> 0 | E31: =LOOKUP($E$10,'mod1 6b'!$D$10:$O$10,'mod1 6b'!D31:O31) -> 0 | F31: ='mod1 6b'!P31 -> 0 | G31: ='mod1 6b'!Q31 -> 0 | H31: ='mod1 6b'!R31 -> 0
A32: Alienação de Bens | B32: ='mod1 6b'!B32 -> 0 | C32: ='mod1 6b'!C32 -> 0 | D32: =LOOKUP($D$10,'mod1 6b'!$D$10:$O$10,'mod1 6b'!D32:O32) -> 0 | E32: =LOOKUP($E$10,'mod1 6b'!$D$10:$O$10,'mod1 6b'!D32:O32) -> 0 | F32: ='mod1 6b'!P32 -> 0 | G32: ='mod1 6b'!Q32 -> 0 | H32: ='mod1 6b'!R32 -> 0
A33: Amortização de Empréstimos | B33: ='mod1 6b'!B33 -> 0 | C33: ='mod1 6b'!C33 -> 0 | D33: =LOOKUP($D$10,'mod1 6b'!$D$10:$O$10,'mod1 6b'!D33:O33) -> 0 | E33: =LOOKUP($E$10,'mod1 6b'!$D$10:$O$10,'mod1 6b'!D33:O33) -> 0 | F33: ='mod1 6b'!P33 -> 0 | G33: ='mod1 6b'!Q33 -> 0 | H33: ='mod1 6b'!R33 -> 0
A34: Transferências de Capital | B34: ='mod1 6b'!B34 -> 0 | C34: ='mod1 6b'!C34 -> 0 | D34: =LOOKUP($D$10,'mod1 6b'!$D$10:$O$10,'mod1 6b'!D34:O34) -> 0 | E34: =LOOKUP($E$10,'mod1 6b'!$D$10:$O$10,'mod1 6b'!D34:O34) -> 0 | F34: ='mod1 6b'!P34 -> 0 | G34: ='mod1 6b'!Q34 -> 0 | H34: ='mod1 6b'!R34 -> 0
A35: Outras Receitas de Capital | B35: ='mod1 6b'!B35 -> 0 | C35: ='mod1 6b'!C35 -> 0 | D35: =LOOKUP($D$10,'mod1 6b'!$D$10:$O$10,'mod1 6b'!D35:O35) -> 0 | E35: =LOOKUP($E$10,'mod1 6b'!$D$10:$O$10,'mod1 6b'!D35:O35) -> 0 | F35: ='mod1 6b'!P35 -> 0 | G35: ='mod1 6b'!Q35 -> 0 | H35: ='mod1 6b'!R35 -> 0
A36: RECEITA TOTAL (A+B) | B36: ='mod1 6b'!B36 -> 18723396 | C36: ='mod1 6b'!C36 -> 18723396 | D36: =LOOKUP($D$10,'mod1 6b'!$D$10:$O$10,'mod1 6b'!D36:O36) -> 3120566 | E36: 1368482.56 | F36: ='mod1 6b'!P36 -> 9361698 | G36: ='mod1 6b'!Q36 -> 5898687.53 | H36: ='mod1 6b'!R36 -> 12824708.47
A37: DESPESAS | B37: Dotação Anual | D37: 3ºBIMESTRE | F37: Acumulado
A38: Categoria Econômica/Natureza | B38: Inicial | C38: Atualizada | D38: Empenhado | E38: Liquidado | F38: Empenhado | G38: Liquidado | H38: A empenhar
A39: Despesas Correntes (C) | B39: ='mod1 6b'!B39 -> 20083396 | C39: ='mod1 6b'!C39 -> 20083396 | D39: =SUM(D40:D43) -> 3164776.51 | E39: =SUM(E40:E43) -> 3164776.51 | F39: ='mod1 6b'!P39 -> 7599806.5 | G39: ='mod1 6b'!Q39 -> 7599806.5 | H39: ='mod1 6b'!R39 -> 12483589.5
A40: Pessoal/Encargos Sociais | B40: ='mod1 6b'!B40 -> 11661496 | C40: ='mod1 6b'!C40 -> 11661496 | D40: 1376690.85 | E40: 1376690.85 | F40: ='mod1 6b'!P40 -> 3243810.46 | G40: ='mod1 6b'!Q40 -> 3243810.46 | H40: ='mod1 6b'!R40 -> 8417685.54
A41: Juros/Encargos da Dívida Interna | B41: ='mod1 6b'!B41 -> 0 | C41: ='mod1 6b'!C41 -> 0 | D41: =LOOKUP($D$10,'mod1 6b'!$D$10:$O$10,'mod1 6b'!D41:O41) -> 0 | E41: =LOOKUP($E$10,'mod1 6b'!$D$10:$O$10,'mod1 6b'!D41:O41) -> 0 | F41: ='mod1 6b'!P41 -> 0 | G41: ='mod1 6b'!Q41 -> 0 | H41: ='mod1 6b'!R41 -> 0
A42: Juros/Encargos Dívida Externa | B42: ='mod1 6b'!B42 -> 0 | C42: ='mod1 6b'!C42 -> 0 | D42: =LOOKUP($D$10,'mod1 6b'!$D$10:$O$10,'mod1 6b'!D42:O42) -> 0 | E42: =LOOKUP($E$10,'mod1 6b'!$D$10:$O$10,'mod1 6b'!D42:O42) -> 0 | F42: ='mod1 6b'!P42 -> 0 | G42: ='mod1 6b'!Q42 -> 0 | H42: ='mod1 6b'!R42 -> 0
A43: Outras Despesas Correntes | B43: ='mod1 6b'!B43 -> 8421900 | C43: ='mod1 6b'!C43 -> 8421900 | D43: 1788085.66 | E43: 1788085.66 | F43: ='mod1 6b'!P43 -> 4355996.04 | G43: ='mod1 6b'!Q43 -> 4355996.04 | H43: ='mod1 6b'!R43 -> 4065903.96
A44: Despesas de Capital (D) | B44: ='mod1 6b'!B44 -> 40000 | C44: ='mod1 6b'!C44 -> 40000 | D44: 2078 | E44: 2078 | F44: ='mod1 6b'!P44 -> 6568 | G44: ='mod1 6b'!Q44 -> 6568 | H44: ='mod1 6b'!R44 -> 33432
A45: Investimentos | B45: ='mod1 6b'!B45 -> 40000 | C45: ='mod1 6b'!C45 -> 40000 | D45: 2078 | E45: 2078 | F45: ='mod1 6b'!P45 -> 6568 | G45: ='mod1 6b'!Q45 -> 6568 | H45: ='mod1 6b'!R45 -> 33432
A46: Inversões Financeiras | B46: ='mod1 6b'!B46 -> 0 | C46: ='mod1 6b'!C46 -> 0 | D46: =LOOKUP($D$10,'mod1 6b'!$D$10:$O$10,'mod1 6b'!D46:O46) -> 0 | E46: =LOOKUP($E$10,'mod1 6b'!$D$10:$O$10,'mod1 6b'!D46:O46) -> 0 | F46: ='mod1 6b'!P46 -> 0 | G46: ='mod1 6b'!Q46 -> 0 | H46: ='mod1 6b'!R46 -> 0
A47: Amortização da Dívida | B47: ='mod1 6b'!B47 -> 0 | C47: ='mod1 6b'!C47 -> 0 | D47: =LOOKUP($D$10,'mod1 6b'!$D$10:$O$10,'mod1 6b'!D47:O47) -> 0 | E47: =LOOKUP($E$10,'mod1 6b'!$D$10:$O$10,'mod1 6b'!D47:O47) -> 0 | F47: ='mod1 6b'!P47 -> 0 | G47: ='mod1 6b'!Q47 -> 0 | H47: ='mod1 6b'!R47 -> 0
A48: Amortização do Refin. Dív. Mobil. | B48: ='mod1 6b'!B48 -> 0 | C48: ='mod1 6b'!C48 -> 0 | D48: =LOOKUP($D$10,'mod1 6b'!$D$10:$O$10,'mod1 6b'!D48:O48) -> 0 | E48: =LOOKUP($E$10,'mod1 6b'!$D$10:$O$10,'mod1 6b'!D48:O48) -> 0 | F48: ='mod1 6b'!P48 -> 0 | G48: ='mod1 6b'!Q48 -> 0 | H48: ='mod1 6b'!R48 -> 0
A49: Outras Amortizações | B49: ='mod1 6b'!B49 -> 0 | C49: ='mod1 6b'!C49 -> 0 | D49: =LOOKUP($D$10,'mod1 6b'!$D$10:$O$10,'mod1 6b'!D49:O49) -> 0 | E49: =LOOKUP($E$10,'mod1 6b'!$D$10:$O$10,'mod1 6b'!D49:O49) -> 0 | F49: ='mod1 6b'!P49 -> 0 | G49: ='mod1 6b'!Q49 -> 0 | H49: ='mod1 6b'!R49 -> 0
A50: Outras Despesas de Capital | B50: ='mod1 6b'!B50 -> 0 | C50: ='mod1 6b'!C50 -> 0 | D50: =LOOKUP($D$10,'mod1 6b'!$D$10:$O$10,'mod1 6b'!D50:O50) -> 0 | E50: =LOOKUP($E$10,'mod1 6b'!$D$10:$O$10,'mod1 6b'!D50:O50) -> 0 | F50: ='mod1 6b'!P50 -> 0 | G50: ='mod1 6b'!Q50 -> 0 | H50: ='mod1 6b'!R50 -> 0
A51: Reserva de Contingência (E) | B51: ='mod1 6b'!B51 -> 0 | C51: ='mod1 6b'!C51 -> 0
A52: DESPESA TOTAL (C+D) | B52: ='mod1 6b'!B52 -> 20123396 | C52: ='mod1 6b'!C52 -> 20123396 | D52: 3166854.51 | E52: 3166854.51 | F52: ='mod1 6b'!P52 -> 7606374.5 | G52: ='mod1 6b'!Q52 -> 7606374.5 | H52: ='mod1 6b'!R52 -> 12517021.5
A53: SUPERÁVIT/DÉFICIT (A+B–C-D) | B53: ='mod1 6b'!B53 -> -1400000 | C53: ='mod1 6b'!C53 -> -1400000 | D53: -46288.51 | E53: -1798371.95 | F53: =F36-F39-F44 -> 1755323.5 | G53: ='mod1 6b'!Q53 -> -1707686.97
A58: Prof.Dr.Isnard de A.Câmara Neto | C58: Jessé César Pinto | F58: Josimere dos Santos Costa
A59: Diretor Presidente | C59: CRC: 1SP 297373/O-5 | G59: Controlador Interno

Sheet mod1 anexo
A2: (Artigo 52, Incisos I e II, alíneas “a” e “b”, da LC. 101/00)
A3: RESULTADO DA EXECUÇÃO ORÇAMENTÁRIA PODERES/ÓRGÃOS
A6: ='mod1 6b'!A5 -> MUNICÍPIO DE TAUBATÉ - FUNDAÇÃO UNIVERSITÁRIA DE TAUBATÉ
A7: 3º BIMESTRE DE 2014
A8: Valores expressos em R$
A9: PODERES/ÓRGÃOS | B9: Receitas | D9: Despesas | H9: Resultados
B10: Bimestre | C10: Acumulado (1) | D10: Empenhada | F10: Liquidada | H10: Acumulado (3)=(1-2) | I10: % = (3) / Total (1)
D11: Bimestre | E11: Acumulado (2) | F11: Bimestre | G11: Acumulado
A12: órgão
A13: ADMINISTRAÇÃO DIRETA* | B13: =B16 -> 1368482.56 | C13: 5898687.53 | D13: 3168932.51 | E13: 7599806.5 | F13: 3168932.51 | G13: 7599806.5 | H13: =C13-E13 -> -1701118.97 | I13: =IF($C$45>0,H13/$C$45,"") -> -0.2883894021
A14: ADMINISTRAÇÃO INDIRETA | I14: 0
A15: Autarquia “X” | H15: =C15-E15 -> 0 | I15: 0
A16: Fundação Universitaria | B16: 1368482.56 | C16: 5898687.53 | D16: 3168932.51 | E16: 7599806.5 | F16: =D16 -> 3168932.51 | G16: =E16 -> 7599806.5 | H16: =H13 -> -1701118.97 | I16: 0.0178
A17: Empresa Pública Dependente “Z” | H17: 0 | I17: 0
H18: 0 | I18: 0
H19: 0 | I19: 0
H20: 0 | I20: 0
H21: 0 | I21: 0
H22: 0 | I22: 0
H23: 0 | I23: 0
H24: 0 | I24: 0
H25: =C25-E25 -> 0 | I25: 0
H26: 0 | I26: 0
H27: 0 | I27: 0
H28: 0 | I28: 0
H29: 0 | I29: 0
H30: 0 | I30: 0
H31: 0 | I31: 0
H32: 0 | I32: 0
H33: 0 | I33: 0
H34: 0 | I34: 0
H35: 0 | I35: 0
H36: 0 | I36: 0
H37: 0 | I37: 0
H38: 0 | I38: 0
H39: 0 | I39: =IF($C$45>0,H39/$C$45,"") -> 0
H40: 0 | I40: 0
H41: 0 | I41: 0
H42: 0 | I42: 0
H43: 0 | I43: 0
H44: 0 | I44: 0
A45: TOTAIS: | B45: =B13+B14 -> 1368482.56 | C45: 5898687.53 | D45: 3168932.51 | E45: 7599806.5 | F45: 3168932.51 | G45: 7599806.5 | H45: -1701118.97 | I45: -0.2883894021
A46: *Prefeitura e Câmara
A51: Prof.Dr.Isnard de A.Câmara Neto | C51: Jessé César Pinto | G51: Josimere dos Santos costa
A52: Diretor Presidente | D52: CRC :1SP 297373/O-5 | H52: Controlador Interno

Sheet mod2 6b
A1: RELATÓRIO RESUMIDO DA EXECUÇÃO ORÇAMENTÁRIA
A2: (Artigo 52, Inciso II, alínea “c” da LC. 101/00)
A4: - ADMINISTRAÇÃO DIRETA / INDIRETA / FUNDACIONAL -
A5: ='mod1 6b'!A5 -> MUNICÍPIO DE TAUBATÉ - FUNDAÇÃO UNIVERSITÁRIA DE TAUBATÉ
A6: 3º BIMESTRE DE 2014
A7: Valores expressos em R$
A8: Cód. Função | B8: Cód. Subf. | C8: DESPESAS | D8: Dotação Anual | F8: 1º Bimestre | H8: 2º Bimestre | J8: 3º Bimestre | L8: 4º Bimestre | N8: 5º Bimestre | P8: 6º Bimestre | R8: Acumulado
C9: Funções/Subfunções | D9: Inicial | E9: Atualizada | F9: Empenhado | G9: Liquidado | H9: Empenhado | I9: Liquidado | J9: Empenhado | K9: Liquidado | L9: Empenhado | M9: Liquidado | N9: Empenhado | O9: Liquidado | P9: Empenhado | Q9: Liquidado | R9: Empenhado | S9: Liquidado | T9: A empenhar
F10: 1 | G10: 2 | H10: 3 | I10: 4 | J10: 5 | K10: 6 | L10: 7 | M10: 8 | N10: 9 | O10: 10 | P10: 11 | Q10: 12
C11: item | R11: =F11+H11+J11+L11+N11+P11 -> 0 | S11: 0 | T11: =E11-R11 -> 0
A12: 1 | C12: LEGISLATIVO | D12: =SUM(D13:D22) -> 0 | E12: =SUM(E13:E22) -> 0 | F12: 0 | G12: 0 | H12: 0 | I12: 0 | J12: 0 | K12: 0 | L12: 0 | M12: 0 | N12: 0 | O12: 0 | P12: 0 | Q12: 0 | R12: 0 | S12: 0 | T12: =E12-R12 -> 0
A13: 1 | B13: 31 | C13: Ação Legislativa | R13: 0 | S13: 0 | T13: =E13-R13 -> 0
A14: 1 | B14: 32 | C14: Controle Externo | R14: 0 | S14: 0 | T14: =E14-R14 -> 0
A15: 1 | R15: 0 | S15: 0 | T15: =E15-R15 -> 0
A16: 1 | R16: =F16+H16+J16+L16+N16+P16 -> 0 | S16: =G16+I16+K16+M16+O16+Q16 -> 0 | T16: =E16-R16 -> 0
A17: 1 | R17: 0 | S17: 0 | T17: 0
A18: 1 | R18: 0 | S18: 0 | T18: 0
A19: 1 | R19: 0 | S19: 0 | T19: 0
A20: 1 | R20: 0 | S20: 0 | T20: 0
A21: 1 | R21: 0 | S21: 0 | T21: 0
A22: 1 | R22: 0 | S22: 0 | T22: 0
A23: 2 | C23: JUDI CIÁRIA | D23: =SUM(D24:D30) -> 0 | E23: =SUM(E24:E30) -> 0 | F23: 0 | G23: 0 | H23: 0 | I23: 0 | J23: 0 | K23: 0 | L23: 0 | M23: 0 | N23: 0 | O23: 0 | P23: 0 | Q23: 0 | R23: 0 | S23: 0 | T23: 0
A24: 2 | B24: 61 | C24: Ação Judicária | R24: 0 | S24: 0 | T24: 0
A25: 2 | B25: 62 | C25: Defesa Int.Públ.no Proc.Judiciário | R25: 0 | S25: 0 | T25: 0
A26: 2 | R26: 0 | S26: 0 | T26: 0
A27: 2 | R27: 0 | S27: 0 | T27: 0
A28: 2 | R28: 0 | S28: 0 | T28: 0
A29: 2 | R29: 0 | S29: 0 | T29: 0
A30: 2 | R30: 0 | S30: 0 | T30: 0
A31: 3 | C31: ESSENCIAL À JUSTIÇA | D31: =SUM(D32:D38) -> 0 | E31: =SUM(E32:E38) -> 0 | F31: 0 | G31: 0 | H31: 0 | I31: 0 | J31: 0 | K31: 0 | L31: 0 | M31: 0 | N31: 0 | O31: 0 | P31: 0 | Q31: 0 | R31: 0 | S31: 0 | T31: 0
A32: 3 | B32: 91 | C32: Defesa da Ordem Judiciária | R32: 0 | S32: 0 | T32: 0
A33: 3 | B33: 92 | C33: Representação Judicial e Extrajudicial | R33: 0 | S33: 0 | T33: 0
A34: 3 | R34: 0 | S34: 0 | T34: 0
A35: 3 | R35: 0 | S35: 0 | T35: 0
A36: 3 | R36: 0 | S36: 0 | T36: 0
A37: 3 | R37: 0 | S37: 0 | T37: 0
A38: 3 | R38: 0 | S38: 0 | T38: 0
A39: 4 | C39: ADMINISTRAÇÃO | D39: =SUM(D40:D60) -> 0 | E39: =SUM(E40:E60) -> 0 | F39: 0 | G39: 0 | H39: 0 | I39: 0 | J39: 0 | K39: 0 | L39: 0 | M39: 0 | N39: 0 | O39: 0 | P39: 0 | Q39: 0 | R39: 0 | S39: 0 | T39: 0
A40: 4 | B40: 121 | C40: Planejamento e Orçamento | R40: 0 | S40: 0 | T40: 0
A41: 4 | B41: 122 | C41: Administração Geral | R41: 0 | S41: 0 | T41: 0
A42: 4 | B42: 123 | C42: Administração Financeira | R42: 0 | S42: 0 | T42: 0
A43: 4 | B43: 124 | C43: Controle Interno | R43: 0 | S43: 0 | T43: 0
A44: 4 | B44: 125 | C44: Normatização e Fiscalização | R44: 0 | S44: 0 | T44: 0
A45: 4 | B45: 126 | C45: Tecnologia da Informação | R45: 0 | S45: 0 | T45: 0
A46: 4 | B46: 127 | C46: Ordenamento Territorial | R46: 0 | S46: 0 | T46: 0
A47: 4 | B47: 128 | C47: Formação de Recursos Humanos | R47: 0 | S47: 0 | T47: 0
A48: 4 | B48: 129 | C48: Administração de Receitas | R48: 0 | S48: 0 | T48: 0
A49: 4 | B49: 130 | C49: Administração de Concessões | R49: 0 | S49: 0 | T49: 0
A50: 4 | B50: 131 | C50: Comunicação Social | R50: 0 | S50: 0 | T50: 0
A51: 4 | R51: 0 | S51: 0 | T51: 0
A52: 4 | R52: 0 | S52: 0 | T52: 0
A53: 4 | R53: 0 | S53: 0 | T53: 0
A54: 4 | R54: 0 | S54: 0 | T54: 0
A55: 4 | R55: 0 | S55: 0 | T55: 0
A56: 4 | R56: 0 | S56: 0 | T56: 0
A57: 4 | R57: 0 | S57: 0 | T57: 0
A58: 4 | R58: 0 | S58: 0 | T58: 0
A59: 4 | R59: 0 | S59: 0 | T59: 0
A60: 4 | R60: 0 | S60: 0 | T60: 0
A61: 5 | C61: DEFESA NACIONAL | D61: =SUM(D62:D69) -> 0 | E61: =SUM(E62:E69) -> 0 | F61: 0 | G61: 0 | H61: 0 | I61: 0 | J61: 0 | K61: 0 | L61: 0 | M61: 0 | N61: 0 | O61: 0 | P61: 0 | Q61: 0 | R61: 0 | S61: 0 | T61: 0
A62: 5 | B62: 151 | C62: Defesa Aérea | R62: 0 | S62: 0 | T62: 0
A63: 5 | B63: 152 | C63: Defesa Naval | R63: 0 | S63: 0 | T63: 0
A64: 5 | B64: 153 | C64: Defesa Terrestre | R64: 0 | S64: 0 | T64: 0
A65: 5 | R65: 0 | S65: 0 | T65: 0
A66: 5 | R66: 0 | S66: 0 | T66: 0
A67: 5 | R67: 0 | S67: 0 | T67: 0
A68: 5 | R68: 0 | S68: 0 | T68: 0
A69: 5 | R69: 0 | S69: 0 | T69: 0
A70: 6 | C70: SEGURANÇA PÚBLICA | D70: =SUM(D71:D78) -> 0 | E70: =SUM(E71:E78) -> 0 | F70: 0 | G70: 0 | H70: 0 | I70: 0 | J70: 0 | K70: 0 | L70: 0 | M70: 0 | N70: 0 | O70: 0 | P70: 0 | Q70: 0 | R70: 0 | S70: 0 | T70: 0
A71: 6 | B71: 181 | C71: Policiamento | R71: 0 | S71: 0 | T71: 0
A72: 6 | B72: 182 | C72: Defesa Civil | R72: 0 | S72: 0 | T72: 0
A73: 6 | B73: 183 | C73: Informação e Inteligência | R73: 0 | S73: 0 | T73: 0
A74: 6 | R74: 0 | S74: 0 | T74: 0
A75: 6 | R75: 0 | S75: 0 | T75: 0
A76: 6 | R76: 0 | S76: 0 | T76: 0
A77: 6 | R77: =F77+H77+J77+L77+N77+P77 -> 0 | S77: =G77+I77+K77+M77+O77+Q77 -> 0 | T77: =E77-R77 -> 0
A78: 6 | R78: 0 | S78: 0 | T78: 0
A79: 7 | C79: RELAÇÕES EXTERIORES | D79: =SUM(D80:D86) -> 0 | E79: =SUM(E80:E86) -> 0 | F79: 0 | G79: 0 | H79: 0 | I79: 0 | J79: 0 | K79: 0 | L79: 0 | M79: 0 | N79: 0 | O79: 0 | P79: 0 | Q79: 0 | R79: 0 | S79: 0 | T79: 0
A80: 7 | B80: 211 | C80: Relações Diplomáticas | R80: 0 | S80: 0 | T80: 0
A81: 7 | B81: 212 | C81: Cooperação Internacional | R81: 0 | S81: 0 | T81: 0
A82: 7 | R82: 0 | S82: 0 | T82: 0
A83: 7 | R83: 0 | S83: 0 | T83: 0
A84: 7 | R84: 0 | S84: 0 | T84: 0
A85: 7 | R85: 0 | S85: 0 | T85: 0
A86: 7 | R86: 0 | S86: 0 | T86: 0
A87: 8 | C87: ASSISTÊNCIA SOCIAL | D87: =SUM(D88:D96) -> 0 | E87: =SUM(E88:E96) -> 0 | F87: 0 | G87: 0 | H87: 0 | I87: 0 | J87: 0 | K87: 0 | L87: 0 | M87: 0 | N87: 0 | O87: 0 | P87: 0 | Q87: 0 | R87: 0 | S87: 0 | T87: 0
A88: 8 | B88: 241 | C88: Assistência ao Idoso | R88: 0 | S88: 0 | T88: 0
A89: 8 | B89: 242 | C89: Assist. ao Portador de Deficiência | R89: 0 | S89: 0 | T89: 0
A90: 8 | B90: 243 | C90: Assist. à Criança e ao Adolescente | R90: 0 | S90: 0 | T90: 0
A91: 8 | B91: 244 | C91: Assistência Comunitária | R91: 0 | S91: 0 | T91: 0
A92: 8 | R92: 0 | S92: 0 | T92: 0
A93: 8 | R93: 0 | S93: 0 | T93: 0
A94: 8 | R94: 0 | S94: 0 | T94: 0
A95: 8 | R95: 0 | S95: 0 | T95: 0
A96: 8 | R96: 0 | S96: 0 | T96: 0
A97: 9 | C97: PREVIDÊNCIA SOCIAL | D97: =SUM(D98:D106) -> 0 | E97: =SUM(E98:E106) -> 0 | F97: 0 | G97: 0 | H97: 0 | I97: 0 | J97: 0 | K97: 0 | L97: 0 | M97: 0 | N97: 0 | O97: 0 | P97: 0 | Q97: 0 | R97: 0 | S97: 0 | T97: 0
A98: 9 | B98: 271 | C98: Previdência Básica | R98: 0 | S98: 0 | T98: 0
A99: 9 | B99: 272 | C99: Previdência do Regime Estatutário | R99: 0 | S99: 0 | T99: 0
A100: 9 | B100: 273 | C100: Previdência Complementar | R100: 0 | S100: 0 | T100: 0
A101: 9 | B101: 274 | C101: Previdência Especial | R101: 0 | S101: 0 | T101: 0
A102: 9 | R102: 0 | S102: 0 | T102: 0
A103: 9 | R103: 0 | S103: 0 | T103: 0
A104: 9 | R104: 0 | S104: 0 | T104: 0
A105: 9 | R105: 0 | S105: 0 | T105: 0
A106: 9 | R106: 0 | S106: 0 | T106: 0
A107: 4 | C107: ADMINISTRAÇÃO | D107: 20123396 | E107: 20123396 | F107: 3128045.3 | G107: 3128045.3 | H107: 1311474.69 | I107: 1311474.69 | J107: 3166854.51 | K107: 3166854.51 | L107: 0 | M107: 0 | N107: 0 | O107: 0 | P107: 0 | Q107: 0 | R107: =F107+H107+J107+L107+N107+P107 -> 7606374.5 | S107: 7606374.5 | T107: 12517021.5
A108: 10 | B108: 301 | C108: Atenção Básica | R108: 0 | S108: 0 | T108: 0
A109: 10 | B109: 302 | C109: Assistência Hospitalar e Ambulatorial | R109: 0 | S109: 0 | T109: 0
A110: 10 | B110: 303 | C110: Suporte Profilático e Terapêutico | R110: 0 | S110: 0 | T110: 0
A111: 10 | B111: 304 | C111: Vigilância Sanitária | R111: 0 | S111: 0 | T111: 0
A112: 10 | B112: 305 | C112: Vigilância Epidemiológica | R112: 0 | S112: 0 | T112: 0
A113: 10 | B113: 306 | C113: Alimentação e Nutrição | R113: 0 | S113: 0 | T113: 0
A114: 10 | R114: 0 | S114: 0 | T114: 0
A115: 10 | R115: 0 | S115: 0 | T115: 0
A116: 10 | R116: 0 | S116: 0 | T116: 0
A117: 10 | R117: 0 | S117: 0 | T117: 0
A118: 10 | R118: 0 | S118: 0 | T118: 0
A119: 10 | R119: 0 | S119: 0 | T119: 0
A120: 10 | R120: 0 | S120: 0 | T120: 0
A121: 10 | R121: 0 | S121: 0 | T121: 0
A122: 10 | R122: 0 | S122: 0 | T122: 0
A123: 10 | R123: 0 | S123: 0 | T123: 0
A124: 11 | C124: TRABALHO | D124: =SUM(D125:D133) -> 0 | E124: =SUM(E125:E133) -> 0 | F124: 0 | G124: 0 | H124: 0 | I124: 0 | J124: 0 | K124: 0 | L124: 0 | M124: 0 | N124: 0 | O124: 0 | P124: 0 | Q124: 0 | R124: 0 | S124: 0 | T124: 0
A125: 11 | B125: 331 | C125: Proteção e Benefícios ao Trabalhador | R125: 0 | S125: 0 | T125: 0
A126: 11 | B126: 332 | C126: Relações de Trabalho | R126: 0 | S126: 0 | T126: 0
A127: 11 | B127: 333 | C127: Empregabilidade | R127: 0 | S127: 0 | T127: 0
A128: 11 | B128: 334 | C128: Fomento ao Trabalho | R128: 0 | S128: 0 | T128: 0
A129: 11 | R129: 0 | S129: 0 | T129: 0
A130: 11 | R130: 0 | S130: 0 | T130: 0
A131: 11 | R131: 0 | S131: 0 | T131: 0
A132: 11 | R132: 0 | S132: 0 | T132: 0
A133: 11 | R133: 0 | S133: 0 | T133: 0
A134: 12 | C134: EDUCAÇÃO | D134: =SUM(D135:D152) -> 0 | E134: =SUM(E135:E152) -> 0 | F134: 0 | G134: 0 | H134: 0 | I134: 0 | J134: 0 | K134: 0 | L134: 0 | M134: 0 | N134: 0 | O134: 0 | P134: 0 | Q134: 0 | R134: 0 | S134: 0 | T134: 0
A135: 12 | B135: 361 | C135: Ensino Fundamental | R135: 0 | S135: 0 | T135: 0
A136: 12 | B136: 362 | C136: Ensino Médio | R136: 0 | S136: 0 | T136: 0
A137: 12 | B137: 363 | C137: Ensino Profissional | R137: 0 | S137: 0 | T137: 0
A138: 12 | B138: 364 | C138: Ensino Superior | R138: 0 | S138: 0 | T138: 0
A139: 12 | B139: 365 | C139: Educação Infantil | R139: 0 | S139: 0 | T139: 0
A140: 12 | B140: 366 | C140: Educação de Jovens e Adultos | R140: 0 | S140: 0 | T140: 0
A141: 12 | B141: 367 | C141: Educação Especial | R141: =F141+H141+J141+L141+N141+P141 -> 0 | S141: =G141+I141+K141+M141+O141+Q141 -> 0 | T141: =E141-R141 -> 0
A142: 12 | R142: 0 | S142: 0 | T142: 0
A143: 12 | R143: 0 | S143: 0 | T143: 0
A144: 12 | R144: 0 | S144: 0 | T144: 0
A145: 12 | R145: 0 | S145: 0 | T145: 0
A146: 12 | R146: 0 | S146: 0 | T146: 0
A147: 12 | R147: 0 | S147: 0 | T147: 0
A148: 12 | R148: 0 | S148: 0 | T148: 0
A149: 12 | R149: 0 | S149: 0 | T149: 0
A150: 12 | R150: 0 | S150: 0 | T150: 0
A151: 12 | R151: 0 | S151: 0 | T151: 0
A152: 12 | R152: 0 | S152: 0 | T152: 0
A153: 13 | C153: CULTURA | D153: =SUM(D154:D166) -> 0 | E153: =SUM(E154:E166) -> 0 | F153: 0 | G153: 0 | H153: 0 | I153: 0 | J153: 0 | K153: 0 | L153: 0 | M153: 0 | N153: 0 | O153: 0 | P153: 0 | Q153: 0 | R153: 0 | S153: 0 | T153: 0
A154: 13 | B154: 391 | C154: Patr. Histórico, Artístico e Arqueológico | R154: 0 | S154: 0 | T154: 0
A155: 13 | B155: 392 | C155: Difusão Cultural | R155: 0 | S155: 0 | T155: 0
A156: 13 | R156: 0 | S156: 0 | T156: 0
A157: 13 | R157: 0 | S157: 0 | T157: 0
A158: 13 | R158: 0 | S158: 0 | T158: 0
A159: 13 | R159: 0 | S159: 0 | T159: 0
A160: 13 | R160: 0 | S160: 0 | T160: 0
A161: 13 | R161: 0 | S161: 0 | T161: 0
A162: 13 | R162: 0 | S162: 0 | T162: 0
A163: 13 | R163: 0 | S163: 0 | T163: 0
A164: 13 | R164: 0 | S164: 0 | T164: 0
A165: 13 | R165: 0 | S165: 0 | T165: 0
A166: 13 | R166: 0 | S166: 0 | T166: 0
A167: 14 | C167: DIRETORIA DA CIDADANIA | D167: =SUM(D168:D175) -> 0 | E167: =SUM(E168:E175) -> 0 | F167: 0 | G167: 0 | H167: 0 | I167: 0 | J167: 0 | K167: 0 | L167: 0 | M167: 0 | N167: 0 | O167: 0 | P167: 0 | Q167: 0 | R167: 0 | S167: 0 | T167: 0
A168: 14 | B168: 421 | C168: Custódia e Reintegração Social | R168: 0 | S168: 0 | T168: 0
A169: 14 | B169: 422 | C169: Direitos Individuais, Coletivos e Difusos | R169: 0 | S169: 0 | T169: 0
A170: 14 | B170: 423 | C170: Assistência aos Povos Indígenas | R170: 0 | S170: 0 | T170: 0
A171: 14 | R171: 0 | S171: 0 | T171: 0
A172: 14 | R172: 0 | S172: 0 | T172: 0
A173: 14 | R173: 0 | S173: 0 | T173: 0
A174: 14 | R174: 0 | S174: 0 | T174: 0
A175: 14 | R175: 0 | S175: 0 | T175: 0
A176: 15 | C176: URBANISMO | D176: =SUM(D177:D185) -> 0 | E176: =SUM(E177:E185) -> 0 | F176: 0 | G176: 0 | H176: 0 | I176: 0 | J176: 0 | K176: 0 | L176: 0 | M176: 0 | N176: 0 | O176: 0 | P176: 0 | Q176: 0 | R176: 0 | S176: 0 | T176: 0
A177: 15 | B177: 451 | C177: Infra-Estrutura Urbana | R177: 0 | S177: 0 | T177: 0
A178: 15 | B178: 452 | C178: Serviços Urbanos | R178: 0 | S178: 0 | T178: 0
A179: 15 | B179: 453 | C179: Transportes Coletivos Urbanos | R179: 0 | S179: 0 | T179: 0
A180: 15 | R180: 0 | S180: 0 | T180: 0
A181: 15 | R181: 0 | S181: 0 | T181: 0
A182: 15 | R182: 0 | S182: 0 | T182: 0
A183: 15 | R183: 0 | S183: 0 | T183: 0
A184: 15 | R184: 0 | S184: 0 | T184: 0
A185: 15 | R185: 0 | S185: 0 | T185: 0
A186: 16 | C186: HABITAÇÃO | D186: =SUM(D187:D193) -> 0 | E186: =SUM(E187:E193) -> 0 | F186: 0 | G186: 0 | H186: 0 | I186: 0 | J186: 0 | K186: 0 | L186: 0 | M186: 0 | N186: 0 | O186: 0 | P186: 0 | Q186: 0 | R186: 0 | S186: 0 | T186: 0
A187: 16 | B187: 481 | C187: Habitação Rural | R187: 0 | S187: 0 | T187: 0
A188: 16 | B188: 482 | C188: Habitação Urbana | R188: 0 | S188: 0 | T188: 0
A189: 16 | R189: 0 | S189: 0 | T189: 0
A190: 16 | R190: 0 | S190: 0 | T190: 0
A191: 16 | R191: 0 | S191: 0 | T191: 0
A192: 16 | R192: 0 | S192: 0 | T192: 0
A193: 16 | R193: 0 | S193: 0 | T193: 0
A194: 17 | C194: SANEAMENTO | D194: =SUM(D195:D201) -> 0 | E194: =SUM(E195:E201) -> 0 | F194: 0 | G194: 0 | H194: 0 | I194: 0 | J194: 0 | K194: 0 | L194: 0 | M194: 0 | N194: 0 | O194: 0 | P194: 0 | Q194: 0 | R194: 0 | S194: 0 | T194: 0
A195: 17 | B195: 511 | C195: Saneamento Básico Rural | R195: 0 | S195: 0 | T195: 0
A196: 17 | B196: 512 | C196: Saneamento Básico Urbano | R196: 0 | S196: 0 | T196: 0
A197: 17 | R197: 0 | S197: 0 | T197: 0
A198: 17 | R198: 0 | S198: 0 | T198: 0
A199: 17 | R199: 0 | S199: 0 | T199: 0
A200: 17 | R200: 0 | S200: 0 | T200: 0
A201: 17 | R201: 0 | S201: 0 | T201: 0
... 121 more rows

Sheet mod2 1b
A1: RELATÓRIO RESUMIDO DA EXECUÇÃO ORÇAMENTÁRIA
A2: (Artigo 52, Inciso II, alínea “c” da LC. 101/00)
A3: - ADMINISTRAÇÃO DIRETA / INDIRETA / FUNDACIONAL -
A5: ='mod1 6b'!A5 -> MUNICÍPIO DE TAUBATÉ - FUNDAÇÃO UNIVERSITÁRIA DE TAUBATÉ
A6: 3º BIMESTRE DE 2014
A7: Valores expressos em R$
A8: Cód. Função | B8: Cód. Subf. | C8: DESPESAS | D8: Dotação Anual | F8: 3ºBIMESTRE | H8: Acumulado
C9: Funções/Subfunções | D9: Inicial | E9: Atualizada | F9: Empenhado | G9: Liquidado | H9: Empenhado | I9: Liquidado | J9: a empenhar
F10: =G10-1 -> 5 | G10: =COM!AH6*2 -> 6
A12: ='mod2 6b'!A12 -> 1 | B12: ='mod2 6b'!B12 -> 0 | C12: ='mod2 6b'!C12 -> LEGISLATIVO | D12: ='mod2 6b'!D12 -> 0 | E12: ='mod2 6b'!E12 -> 0 | F12: =LOOKUP($F$10,'mod2 6b'!$F$10:$Q$10,'mod2 6b'!F12:Q12) -> 0 | G12: =LOOKUP($G$10,'mod2 6b'!$F$10:$Q$10,'mod2 6b'!F12:Q12) -> 0 | H12: ='mod2 6b'!R12 -> 0 | I12: ='mod2 6b'!S12 -> 0 | J12: ='mod2 6b'!T12 -> 0
A13: ='mod2 6b'!A13 -> 1 | B13: ='mod2 6b'!B13 -> 31 | C13: ='mod2 6b'!C13 -> Ação Legislativa | D13: ='mod2 6b'!D13 -> 0 | E13: ='mod2 6b'!E13 -> 0 | F13: =LOOKUP($F$10,'mod2 6b'!$F$10:$Q$10,'mod2 6b'!F13:Q13) -> 0 | G13: =LOOKUP($G$10,'mod2 6b'!$F$10:$Q$10,'mod2 6b'!F13:Q13) -> 0 | H13: ='mod2 6b'!R13 -> 0 | I13: ='mod2 6b'!S13 -> 0 | J13: ='mod2 6b'!T13 -> 0
A14: ='mod2 6b'!A14 -> 1 | B14: ='mod2 6b'!B14 -> 32 | C14: ='mod2 6b'!C14 -> Controle Externo | D14: ='mod2 6b'!D14 -> 0 | E14: ='mod2 6b'!E14 -> 0 | F14: =LOOKUP($F$10,'mod2 6b'!$F$10:$Q$10,'mod2 6b'!F14:Q14) -> 0 | G14: =LOOKUP($G$10,'mod2 6b'!$F$10:$Q$10,'mod2 6b'!F14:Q14) -> 0 | H14: ='mod2 6b'!R14 -> 0 | I14: ='mod2 6b'!S14 -> 0 | J14: ='mod2 6b'!T14 -> 0
A15: ='mod2 6b'!A15 -> 1 | B15: ='mod2 6b'!B15 -> 0 | C15: ='mod2 6b'!C15 -> 0 | D15: ='mod2 6b'!D15 -> 0 | E15: ='mod2 6b'!E15 -> 0 | F15: =LOOKUP($F$10,'mod2 6b'!$F$10:$Q$10,'mod2 6b'!F15:Q15) -> 0 | G15: =LOOKUP($G$10,'mod2 6b'!$F$10:$Q$10,'mod2 6b'!F15:Q15) -> 0 | H15: ='mod2 6b'!R15 -> 0 | I15: ='mod2 6b'!S15 -> 0 | J15: ='mod2 6b'!T15 -> 0
A16: ='mod2 6b'!A16 -> 1 | B16: ='mod2 6b'!B16 -> 0 | C16: ='mod2 6b'!C16 -> 0 | D16: ='mod2 6b'!D16 -> 0 | E16: ='mod2 6b'!E16 -> 0 | F16: =LOOKUP($F$10,'mod2 6b'!$F$10:$Q$10,'mod2 6b'!F16:Q16) -> 0 | G16: =LOOKUP($G$10,'mod2 6b'!$F$10:$Q$10,'mod2 6b'!F16:Q16) -> 0 | H16: ='mod2 6b'!R16 -> 0 | I16: ='mod2 6b'!S16 -> 0 | J16: ='mod2 6b'!T16 -> 0
A17: ='mod2 6b'!A17 -> 1 | B17: ='mod2 6b'!B17 -> 0 | C17: ='mod2 6b'!C17 -> 0 | D17: ='mod2 6b'!D17 -> 0 | E17: ='mod2 6b'!E17 -> 0 | F17: =LOOKUP($F$10,'mod2 6b'!$F$10:$Q$10,'mod2 6b'!F17:Q17) -> 0 | G17: =LOOKUP($G$10,'mod2 6b'!$F$10:$Q$10,'mod2 6b'!F17:Q17) -> 0 | H17: ='mod2 6b'!R17 -> 0 | I17: ='mod2 6b'!S17 -> 0 | J17: ='mod2 6b'!T17 -> 0
A18: ='mod2 6b'!A18 -> 1 | B18: ='mod2 6b'!B18 -> 0 | C18: ='mod2 6b'!C18 -> 0 | D18: ='mod2 6b'!D18 -> 0 | E18: ='mod2 6b'!E18 -> 0 | F18: =LOOKUP($F$10,'mod2 6b'!$F$10:$Q$10,'mod2 6b'!F18:Q18) -> 0 | G18: =LOOKUP($G$10,'mod2 6b'!$F$10:$Q$10,'mod2 6b'!F18:Q18) -> 0 | H18: ='mod2 6b'!R18 -> 0 | I18: ='mod2 6b'!S18 -> 0 | J18: ='mod2 6b'!T18 -> 0
A19: ='mod2 6b'!A19 -> 1 | B19: ='mod2 6b'!B19 -> 0 | C19: ='mod2 6b'!C19 -> 0 | D19: ='mod2 6b'!D19 -> 0 | E19: ='mod2 6b'!E19 -> 0 | F19: =LOOKUP($F$10,'mod2 6b'!$F$10:$Q$10,'mod2 6b'!F19:Q19) -> 0 | G19: =LOOKUP($G$10,'mod2 6b'!$F$10:$Q$10,'mod2 6b'!F19:Q19) -> 0 | H19: ='mod2 6b'!R19 -> 0 | I19: ='mod2 6b'!S19 -> 0 | J19: ='mod2 6b'!T19 -> 0
A20: ='mod2 6b'!A20 -> 1 | B20: ='mod2 6b'!B20 -> 0 | C20: ='mod2 6b'!C20 -> 0 | D20: ='mod2 6b'!D20 -> 0 | E20: ='mod2 6b'!E20 -> 0 | F20: =LOOKUP($F$10,'mod2 6b'!$F$10:$Q$10,'mod2 6b'!F20:Q20) -> 0 | G20: =LOOKUP($G$10,'mod2 6b'!$F$10:$Q$10,'mod2 6b'!F20:Q20) -> 0 | H20: ='mod2 6b'!R20 -> 0 | I20: ='mod2 6b'!S20 -> 0 | J20: ='mod2 6b'!T20 -> 0
A21: ='mod2 6b'!A21 -> 1 | B21: ='mod2 6b'!B21 -> 0 | C21: ='mod2 6b'!C21 -> 0 | D21: ='mod2 6b'!D21 -> 0 | E21: ='mod2 6b'!E21 -> 0 | F21: =LOOKUP($F$10,'mod2 6b'!$F$10:$Q$10,'mod2 6b'!F21:Q21) -> 0 | G21: =LOOKUP($G$10,'mod2 6b'!$F$10:$Q$10,'mod2 6b'!F21:Q21) -> 0 | H21: ='mod2 6b'!R21 -> 0 | I21: ='mod2 6b'!S21 -> 0 | J21: ='mod2 6b'!T21 -> 0
A22: ='mod2 6b'!A22 -> 1 | B22: ='mod2 6b'!B22 -> 0 | C22: ='mod2 6b'!C22 -> 0 | D22: ='mod2 6b'!D22 -> 0 | E22: ='mod2 6b'!E22 -> 0 | F22: =LOOKUP($F$10,'mod2 6b'!$F$10:$Q$10,'mod2 6b'!F22:Q22) -> 0 | G22: =LOOKUP($G$10,'mod2 6b'!$F$10:$Q$10,'mod2 6b'!F22:Q22) -> 0 | H22: ='mod2 6b'!R22 -> 0 | I22: ='mod2 6b'!S22 -> 0 | J22: ='mod2 6b'!T22 -> 0
A23: ='mod2 6b'!A23 -> 2 | B23: ='mod2 6b'!B23 -> 0 | C23: ='mod2 6b'!C23 -> JUDI CIÁRIA | D23: ='mod2 6b'!D23 -> 0 | E23: ='mod2 6b'!E23 -> 0 | F23: =LOOKUP($F$10,'mod2 6b'!$F$10:$Q$10,'mod2 6b'!F23:Q23) -> 0 | G23: =LOOKUP($G$10,'mod2 6b'!$F$10:$Q$10,'mod2 6b'!F23:Q23) -> 0 | H23: ='mod2 6b'!R23 -> 0 | I23: ='mod2 6b'!S23 -> 0 | J23: ='mod2 6b'!T23 -> 0
A24: ='mod2 6b'!A24 -> 2 | B24: ='mod2 6b'!B24 -> 61 | C24: ='mod2 6b'!C24 -> Ação Judicária | D24: ='mod2 6b'!D24 -> 0 | E24: ='mod2 6b'!E24 -> 0 | F24: =LOOKUP($F$10,'mod2 6b'!$F$10:$Q$10,'mod2 6b'!F24:Q24) -> 0 | G24: =LOOKUP($G$10,'mod2 6b'!$F$10:$Q$10,'mod2 6b'!F24:Q24) -> 0 | H24: ='mod2 6b'!R24 -> 0 | I24: ='mod2 6b'!S24 -> 0 | J24: ='mod2 6b'!T24 -> 0
A25: ='mod2 6b'!A25 -> 2 | B25: ='mod2 6b'!B25 -> 62 | C25: ='mod2 6b'!C25 -> Defesa Int.Públ.no Proc.Judiciário | D25: ='mod2 6b'!D25 -> 0 | E25: ='mod2 6b'!E25 -> 0 | F25: =LOOKUP($F$10,'mod2 6b'!$F$10:$Q$10,'mod2 6b'!F25:Q25) -> 0 | G25: =LOOKUP($G$10,'mod2 6b'!$F$10:$Q$10,'mod2 6b'!F25:Q25) -> 0 | H25: ='mod2 6b'!R25 -> 0 | I25: ='mod2 6b'!S25 -> 0 | J25: ='mod2 6b'!T25 -> 0
A26: ='mod2 6b'!A26 -> 2 | B26: ='mod2 6b'!B26 -> 0 | C26: ='mod2 6b'!C26 -> 0 | D26: ='mod2 6b'!D26 -> 0 | E26: ='mod2 6b'!E26 -> 0 | F26: =LOOKUP($F$10,'mod2 6b'!$F$10:$Q$10,'mod2 6b'!F26:Q26) -> 0 | G26: =LOOKUP($G$10,'mod2 6b'!$F$10:$Q$10,'mod2 6b'!F26:Q26) -> 0 | H26: ='mod2 6b'!R26 -> 0 | I26: ='mod2 6b'!S26 -> 0 | J26: ='mod2 6b'!T26 -> 0
A27: ='mod2 6b'!A27 -> 2 | B27: ='mod2 6b'!B27 -> 0 | C27: ='mod2 6b'!C27 -> 0 | D27: ='mod2 6b'!D27 -> 0 | E27: ='mod2 6b'!E27 -> 0 | F27: =LOOKUP($F$10,'mod2 6b'!$F$10:$Q$10,'mod2 6b'!F27:Q27) -> 0 | G27: =LOOKUP($G$10,'mod2 6b'!$F$10:$Q$10,'mod2 6b'!F27:Q27) -> 0 | H27: ='mod2 6b'!R27 -> 0 | I27: ='mod2 6b'!S27 -> 0 | J27: ='mod2 6b'!T27 -> 0
A28: ='mod2 6b'!A28 -> 2 | B28: ='mod2 6b'!B28 -> 0 | C28: ='mod2 6b'!C28 -> 0 | D28: ='mod2 6b'!D28 -> 0 | E28: ='mod2 6b'!E28 -> 0 | F28: =LOOKUP($F$10,'mod2 6b'!$F$10:$Q$10,'mod2 6b'!F28:Q28) -> 0 | G28: =LOOKUP($G$10,'mod2 6b'!$F$10:$Q$10,'mod2 6b'!F28:Q28) -> 0 | H28: ='mod2 6b'!R28 -> 0 | I28: ='mod2 6b'!S28 -> 0 | J28: ='mod2 6b'!T28 -> 0
A29: ='mod2 6b'!A29 -> 2 | B29: ='mod2 6b'!B29 -> 0 | C29: ='mod2 6b'!C29 -> 0 | D29: ='mod2 6b'!D29 -> 0 | E29: ='mod2 6b'!E29 -> 0 | F29: =LOOKUP($F$10,'mod2 6b'!$F$10:$Q$10,'mod2 6b'!F29:Q29) -> 0 | G29: =LOOKUP($G$10,'mod2 6b'!$F$10:$Q$10,'mod2 6b'!F29:Q29) -> 0 | H29: ='mod2 6b'!R29 -> 0 | I29: ='mod2 6b'!S29 -> 0 | J29: ='mod2 6b'!T29 -> 0
A30: ='mod2 6b'!A30 -> 2 | B30: ='mod2 6b'!B30 -> 0 | C30: ='mod2 6b'!C30 -> 0 | D30: ='mod2 6b'!D30 -> 0 | E30: ='mod2 6b'!E30 -> 0 | F30: =LOOKUP($F$10,'mod2 6b'!$F$10:$Q$10,'mod2 6b'!F30:Q30) -> 0 | G30: =LOOKUP($G$10,'mod2 6b'!$F$10:$Q$10,'mod2 6b'!F30:Q30) -> 0 | H30: ='mod2 6b'!R30 -> 0 | I30: ='mod2 6b'!S30 -> 0 | J30: ='mod2 6b'!T30 -> 0
A31: ='mod2 6b'!A31 -> 3 | B31: ='mod2 6b'!B31 -> 0 | C31: ='mod2 6b'!C31 -> ESSENCIAL À JUSTIÇA | D31: ='mod2 6b'!D31 -> 0 | E31: ='mod2 6b'!E31 -> 0 | F31: =LOOKUP($F$10,'mod2 6b'!$F$10:$Q$10,'mod2 6b'!F31:Q31) -> 0 | G31: =LOOKUP($G$10,'mod2 6b'!$F$10:$Q$10,'mod2 6b'!F31:Q31) -> 0 | H31: ='mod2 6b'!R31 -> 0 | I31: ='mod2 6b'!S31 -> 0 | J31: ='mod2 6b'!T31 -> 0
A32: ='mod2 6b'!A32 -> 3 | B32: ='mod2 6b'!B32 -> 91 | C32: ='mod2 6b'!C32 -> Defesa da Ordem Judiciária | D32: ='mod2 6b'!D32 -> 0 | E32: ='mod2 6b'!E32 -> 0 | F32: =LOOKUP($F$10,'mod2 6b'!$F$10:$Q$10,'mod2 6b'!F32:Q32) -> 0 | G32: =LOOKUP($G$10,'mod2 6b'!$F$10:$Q$10,'mod2 6b'!F32:Q32) -> 0 | H32: ='mod2 6b'!R32 -> 0 | I32: ='mod2 6b'!S32 -> 0 | J32: ='mod2 6b'!T32 -> 0
A33: ='mod2 6b'!A33 -> 3 | B33: ='mod2 6b'!B33 -> 92 | C33: ='mod2 6b'!C33 -> Representação Judicial e Extrajudicial | D33: ='mod2 6b'!D33 -> 0 | E33: ='mod2 6b'!E33 -> 0 | F33: =LOOKUP($F$10,'mod2 6b'!$F$10:$Q$10,'mod2 6b'!F33:Q33) -> 0 | G33: =LOOKUP($G$10,'mod2 6b'!$F$10:$Q$10,'mod2 6b'!F33:Q33) -> 0 | H33: ='mod2 6b'!R33 -> 0 | I33: ='mod2 6b'!S33 -> 0 | J33: ='mod2 6b'!T33 -> 0
A34: ='mod2 6b'!A34 -> 3 | B34: ='mod2 6b'!B34 -> 0 | C34: ='mod2 6b'!C34 -> 0 | D34: ='mod2 6b'!D34 -> 0 | E34: ='mod2 6b'!E34 -> 0 | F34: =LOOKUP($F$10,'mod2 6b'!$F$10:$Q$10,'mod2 6b'!F34:Q34) -> 0 | G34: =LOOKUP($G$10,'mod2 6b'!$F$10:$Q$10,'mod2 6b'!F34:Q34) -> 0 | H34: ='mod2 6b'!R34 -> 0 | I34: ='mod2 6b'!S34 -> 0 | J34: ='mod2 6b'!T34 -> 0
A35: ='mod2 6b'!A35 -> 3 | B35: ='mod2 6b'!B35 -> 0 | C35: ='mod2 6b'!C35 -> 0 | D35: ='mod2 6b'!D35 -> 0 | E35: ='mod2 6b'!E35 -> 0 | F35: =LOOKUP($F$10,'mod2 6b'!$F$10:$Q$10,'mod2 6b'!F35:Q35) -> 0 | G35: =LOOKUP($G$10,'mod2 6b'!$F$10:$Q$10,'mod2 6b'!F35:Q35) -> 0 | H35: ='mod2 6b'!R35 -> 0 | I35: ='mod2 6b'!S35 -> 0 | J35: ='mod2 6b'!T35 -> 0
A36: ='mod2 6b'!A36 -> 3 | B36: ='mod2 6b'!B36 -> 0 | C36: ='mod2 6b'!C36 -> 0 | D36: ='mod2 6b'!D36 -> 0 | E36: ='mod2 6b'!E36 -> 0 | F36: =LOOKUP($F$10,'mod2 6b'!$F$10:$Q$10,'mod2 6b'!F36:Q36) -> 0 | G36: =LOOKUP($G$10,'mod2 6b'!$F$10:$Q$10,'mod2 6b'!F36:Q36) -> 0 | H36: ='mod2 6b'!R36 -> 0 | I36: ='mod2 6b'!S36 -> 0 | J36: ='mod2 6b'!T36 -> 0
A37: ='mod2 6b'!A37 -> 3 | B37: ='mod2 6b'!B37 -> 0 | C37: ='mod2 6b'!C37 -> 0 | D37: ='mod2 6b'!D37 -> 0 | E37: ='mod2 6b'!E37 -> 0 | F37: =LOOKUP($F$10,'mod2 6b'!$F$10:$Q$10,'mod2 6b'!F37:Q37) -> 0 | G37: =LOOKUP($G$10,'mod2 6b'!$F$10:$Q$10,'mod2 6b'!F37:Q37) -> 0 | H37: ='mod2 6b'!R37 -> 0 | I37: ='mod2 6b'!S37 -> 0 | J37: ='mod2 6b'!T37 -> 0
A38: ='mod2 6b'!A38 -> 3 | B38: ='mod2 6b'!B38 -> 0 | C38: ='mod2 6b'!C38 -> 0 | D38: ='mod2 6b'!D38 -> 0 | E38: ='mod2 6b'!E38 -> 0 | F38: =LOOKUP($F$10,'mod2 6b'!$F$10:$Q$10,'mod2 6b'!F38:Q38) -> 0 | G38: =LOOKUP($G$10,'mod2 6b'!$F$10:$Q$10,'mod2 6b'!F38:Q38) -> 0 | H38: ='mod2 6b'!R38 -> 0 | I38: ='mod2 6b'!S38 -> 0 | J38: ='mod2 6b'!T38 -> 0
A39: ='mod2 6b'!A39 -> 4 | B39: ='mod2 6b'!B39 -> 0 | C39: ='mod2 6b'!C39 -> ADMINISTRAÇÃO | D39: ='mod2 6b'!D39 -> 0 | E39: ='mod2 6b'!E39 -> 0 | F39: =LOOKUP($F$10,'mod2 6b'!$F$10:$Q$10,'mod2 6b'!F39:Q39) -> 0 | G39: =LOOKUP($G$10,'mod2 6b'!$F$10:$Q$10,'mod2 6b'!F39:Q39) -> 0 | H39: ='mod2 6b'!R39 -> 0 | I39: ='mod2 6b'!S39 -> 0 | J39: ='mod2 6b'!T39 -> 0
A40: ='mod2 6b'!A40 -> 4 | B40: ='mod2 6b'!B40 -> 121 | C40: ='mod2 6b'!C40 -> Planejamento e Orçamento | D40: ='mod2 6b'!D40 -> 0 | E40: ='mod2 6b'!E40 -> 0 | F40: =LOOKUP($F$10,'mod2 6b'!$F$10:$Q$10,'mod2 6b'!F40:Q40) -> 0 | G40: =LOOKUP($G$10,'mod2 6b'!$F$10:$Q$10,'mod2 6b'!F40:Q40) -> 0 | H40: ='mod2 6b'!R40 -> 0 | I40: ='mod2 6b'!S40 -> 0 | J40: ='mod2 6b'!T40 -> 0
A41: ='mod2 6b'!A41 -> 4 | B41: ='mod2 6b'!B41 -> 122 | C41: ='mod2 6b'!C41 -> Administração Geral | D41: ='mod2 6b'!D41 -> 0 | E41: ='mod2 6b'!E41 -> 0 | F41: =LOOKUP($F$10,'mod2 6b'!$F$10:$Q$10,'mod2 6b'!F41:Q41) -> 0 | G41: =LOOKUP($G$10,'mod2 6b'!$F$10:$Q$10,'mod2 6b'!F41:Q41) -> 0 | H41: ='mod2 6b'!R41 -> 0 | I41: ='mod2 6b'!S41 -> 0 | J41: ='mod2 6b'!T41 -> 0
A42: ='mod2 6b'!A42 -> 4 | B42: ='mod2 6b'!B42 -> 123 | C42: ='mod2 6b'!C42 -> Administração Financeira | D42: ='mod2 6b'!D42 -> 0 | E42: ='mod2 6b'!E42 -> 0 | F42: =LOOKUP($F$10,'mod2 6b'!$F$10:$Q$10,'mod2 6b'!F42:Q42) -> 0 | G42: =LOOKUP($G$10,'mod2 6b'!$F$10:$Q$10,'mod2 6b'!F42:Q42) -> 0 | H42: ='mod2 6b'!R42 -> 0 | I42: ='mod2 6b'!S42 -> 0 | J42: ='mod2 6b'!T42 -> 0
A43: ='mod2 6b'!A43 -> 4 | B43: ='mod2 6b'!B43 -> 124 | C43: ='mod2 6b'!C43 -> Controle Interno | D43: ='mod2 6b'!D43 -> 0 | E43: ='mod2 6b'!E43 -> 0 | F43: =LOOKUP($F$10,'mod2 6b'!$F$10:$Q$10,'mod2 6b'!F43:Q43) -> 0 | G43: =LOOKUP($G$10,'mod2 6b'!$F$10:$Q$10,'mod2 6b'!F43:Q43) -> 0 | H43: ='mod2 6b'!R43 -> 0 | I43: ='mod2 6b'!S43 -> 0 | J43: ='mod2 6b'!T43 -> 0
A44: ='mod2 6b'!A44 -> 4 | B44: ='mod2 6b'!B44 -> 125 | C44: ='mod2 6b'!C44 -> Normatização e Fiscalização | D44: ='mod2 6b'!D44 -> 0 | E44: ='mod2 6b'!E44 -> 0 | F44: =LOOKUP($F$10,'mod2 6b'!$F$10:$Q$10,'mod2 6b'!F44:Q44) -> 0 | G44: =LOOKUP($G$10,'mod2 6b'!$F$10:$Q$10,'mod2 6b'!F44:Q44) -> 0 | H44: ='mod2 6b'!R44 -> 0 | I44: ='mod2 6b'!S44 -> 0 | J44: ='mod2 6b'!T44 -> 0
A45: ='mod2 6b'!A45 -> 4 | B45: ='mod2 6b'!B45 -> 126 | C45: ='mod2 6b'!C45 -> Tecnologia da Informação | D45: ='mod2 6b'!D45 -> 0 | E45: ='mod2 6b'!E45 -> 0 | F45: =LOOKUP($F$10,'mod2 6b'!$F$10:$Q$10,'mod2 6b'!F45:Q45) -> 0 | G45: =LOOKUP($G$10,'mod2 6b'!$F$10:$Q$10,'mod2 6b'!F45:Q45) -> 0 | H45: ='mod2 6b'!R45 -> 0 | I45: ='mod2 6b'!S45 -> 0 | J45: ='mod2 6b'!T45 -> 0
A46: ='mod2 6b'!A46 -> 4 | B46: ='mod2 6b'!B46 -> 127 | C46: ='mod2 6b'!C46 -> Ordenamento Territorial | D46: ='mod2 6b'!D46 -> 0 | E46: ='mod2 6b'!E46 -> 0 | F46: =LOOKUP($F$10,'mod2 6b'!$F$10:$Q$10,'mod2 6b'!F46:Q46) -> 0 | G46: =LOOKUP($G$10,'mod2 6b'!$F$10:$Q$10,'mod2 6b'!F46:Q46) -> 0 | H46: ='mod2 6b'!R46 -> 0 | I46: ='mod2 6b'!S46 -> 0 | J46: ='mod2 6b'!T46 -> 0
A47: ='mod2 6b'!A47 -> 4 | B47: ='mod2 6b'!B47 -> 128 | C47: ='mod2 6b'!C47 -> Formação de Recursos Humanos | D47: ='mod2 6b'!D47 -> 0 | E47: ='mod2 6b'!E47 -> 0 | F47: =LOOKUP($F$10,'mod2 6b'!$F$10:$Q$10,'mod2 6b'!F47:Q47) -> 0 | G47: =LOOKUP($G$10,'mod2 6b'!$F$10:$Q$10,'mod2 6b'!F47:Q47) -> 0 | H47: ='mod2 6b'!R47 -> 0 | I47: ='mod2 6b'!S47 -> 0 | J47: ='mod2 6b'!T47 -> 0
A48: ='mod2 6b'!A48 -> 4 | B48: ='mod2 6b'!B48 -> 129 | C48: ='mod2 6b'!C48 -> Administração de Receitas | D48: ='mod2 6b'!D48 -> 0 | E48: ='mod2 6b'!E48 -> 0 | F48: =LOOKUP($F$10,'mod2 6b'!$F$10:$Q$10,'mod2 6b'!F48:Q48) -> 0 | G48: =LOOKUP($G$10,'mod2 6b'!$F$10:$Q$10,'mod2 6b'!F48:Q48) -> 0 | H48: ='mod2 6b'!R48 -> 0 | I48: ='mod2 6b'!S48 -> 0 | J48: ='mod2 6b'!T48 -> 0
A49: ='mod2 6b'!A49 -> 4 | B49: ='mod2 6b'!B49 -> 130 | C49: ='mod2 6b'!C49 -> Administração de Concessões | D49: ='mod2 6b'!D49 -> 0 | E49: ='mod2 6b'!E49 -> 0 | F49: =LOOKUP($F$10,'mod2 6b'!$F$10:$Q$10,'mod2 6b'!F49:Q49) -> 0 | G49: =LOOKUP($G$10,'mod2 6b'!$F$10:$Q$10,'mod2 6b'!F49:Q49) -> 0 | H49: ='mod2 6b'!R49 -> 0 | I49: ='mod2 6b'!S49 -> 0 | J49: ='mod2 6b'!T49 -> 0
A50: ='mod2 6b'!A50 -> 4 | B50: ='mod2 6b'!B50 -> 131 | C50: ='mod2 6b'!C50 -> Comunicação Social | D50: ='mod2 6b'!D50 -> 0 | E50: ='mod2 6b'!E50 -> 0 | F50: =LOOKUP($F$10,'mod2 6b'!$F$10:$Q$10,'mod2 6b'!F50:Q50) -> 0 | G50: =LOOKUP($G$10,'mod2 6b'!$F$10:$Q$10,'mod2 6b'!F50:Q50) -> 0 | H50: ='mod2 6b'!R50 -> 0 | I50: ='mod2 6b'!S50 -> 0 | J50: ='mod2 6b'!T50 -> 0
A51: ='mod2 6b'!A51 -> 4 | B51: ='mod2 6b'!B51 -> 0 | C51: ='mod2 6b'!C51 -> 0 | D51: ='mod2 6b'!D51 -> 0 | E51: ='mod2 6b'!E51 -> 0 | F51: =LOOKUP($F$10,'mod2 6b'!$F$10:$Q$10,'mod2 6b'!F51:Q51) -> 0 | G51: =LOOKUP($G$10,'mod2 6b'!$F$10:$Q$10,'mod2 6b'!F51:Q51) -> 0 | H51: ='mod2 6b'!R51 -> 0 | I51: ='mod2 6b'!S51 -> 0 | J51: ='mod2 6b'!T51 -> 0
A52: ='mod2 6b'!A52 -> 4 | B52: ='mod2 6b'!B52 -> 0 | C52: ='mod2 6b'!C52 -> 0 | D52: ='mod2 6b'!D52 -> 0 | E52: ='mod2 6b'!E52 -> 0 | F52: =LOOKUP($F$10,'mod2 6b'!$F$10:$Q$10,'mod2 6b'!F52:Q52) -> 0 | G52: =LOOKUP($G$10,'mod2 6b'!$F$10:$Q$10,'mod2 6b'!F52:Q52) -> 0 | H52: ='mod2 6b'!R52 -> 0 | I52: ='mod2 6b'!S52 -> 0 | J52: ='mod2 6b'!T52 -> 0
A53: ='mod2 6b'!A53 -> 4 | B53: ='mod2 6b'!B53 -> 0 | C53: ='mod2 6b'!C53 -> 0 | D53: ='mod2 6b'!D53 -> 0 | E53: ='mod2 6b'!E53 -> 0 | F53: =LOOKUP($F$10,'mod2 6b'!$F$10:$Q$10,'mod2 6b'!F53:Q53) -> 0 | G53: =LOOKUP($G$10,'mod2 6b'!$F$10:$Q$10,'mod2 6b'!F53:Q53) -> 0 | H53: ='mod2 6b'!R53 -> 0 | I53: ='mod2 6b'!S53 -> 0 | J53: ='mod2 6b'!T53 -> 0
A54: ='mod2 6b'!A54 -> 4 | B54: ='mod2 6b'!B54 -> 0 | C54: ='mod2 6b'!C54 -> 0 | D54: ='mod2 6b'!D54 -> 0 | E54: ='mod2 6b'!E54 -> 0 | F54: =LOOKUP($F$10,'mod2 6b'!$F$10:$Q$10,'mod2 6b'!F54:Q54) -> 0 | G54: =LOOKUP($G$10,'mod2 6b'!$F$10:$Q$10,'mod2 6b'!F54:Q54) -> 0 | H54: ='mod2 6b'!R54 -> 0 | I54: ='mod2 6b'!S54 -> 0 | J54: ='mod2 6b'!T54 -> 0
A55: ='mod2 6b'!A55 -> 4 | B55: ='mod2 6b'!B55 -> 0 | C55: ='mod2 6b'!C55 -> 0 | D55: ='mod2 6b'!D55 -> 0 | E55: ='mod2 6b'!E55 -> 0 | F55: =LOOKUP($F$10,'mod2 6b'!$F$10:$Q$10,'mod2 6b'!F55:Q55) -> 0 | G55: =LOOKUP($G$10,'mod2 6b'!$F$10:$Q$10,'mod2 6b'!F55:Q55) -> 0 | H55: ='mod2 6b'!R55 -> 0 | I55: ='mod2 6b'!S55 -> 0 | J55: ='mod2 6b'!T55 -> 0
A56: ='mod2 6b'!A56 -> 4 | B56: ='mod2 6b'!B56 -> 0 | C56: ='mod2 6b'!C56 -> 0 | D56: ='mod2 6b'!D56 -> 0 | E56: ='mod2 6b'!E56 -> 0 | F56: =LOOKUP($F$10,'mod2 6b'!$F$10:$Q$10,'mod2 6b'!F56:Q56) -> 0 | G56: =LOOKUP($G$10,'mod2 6b'!$F$10:$Q$10,'mod2 6b'!F56:Q56) -> 0 | H56: ='mod2 6b'!R56 -> 0 | I56: ='mod2 6b'!S56 -> 0 | J56: ='mod2 6b'!T56 -> 0
A57: ='mod2 6b'!A57 -> 4 | B57: ='mod2 6b'!B57 -> 0 | C57: ='mod2 6b'!C57 -> 0 | D57: ='mod2 6b'!D57 -> 0 | E57: ='mod2 6b'!E57 -> 0 | F57: =LOOKUP($F$10,'mod2 6b'!$F$10:$Q$10,'mod2 6b'!F57:Q57) -> 0 | G57: =LOOKUP($G$10,'mod2 6b'!$F$10:$Q$10,'mod2 6b'!F57:Q57) -> 0 | H57: ='mod2 6b'!R57 -> 0 | I57: ='mod2 6b'!S57 -> 0 | J57: ='mod2 6b'!T57 -> 0
A58: ='mod2 6b'!A58 -> 4 | B58: ='mod2 6b'!B58 -> 0 | C58: ='mod2 6b'!C58 -> 0 | D58: ='mod2 6b'!D58 -> 0 | E58: ='mod2 6b'!E58 -> 0 | F58: =LOOKUP($F$10,'mod2 6b'!$F$10:$Q$10,'mod2 6b'!F58:Q58) -> 0 | G58: =LOOKUP($G$10,'mod2 6b'!$F$10:$Q$10,'mod2 6b'!F58:Q58) -> 0 | H58: ='mod2 6b'!R58 -> 0 | I58: ='mod2 6b'!S58 -> 0 | J58: ='mod2 6b'!T58 -> 0
A59: ='mod2 6b'!A59 -> 4 | B59: ='mod2 6b'!B59 -> 0 | C59: ='mod2 6b'!C59 -> 0 | D59: ='mod2 6b'!D59 -> 0 | E59: ='mod2 6b'!E59 -> 0 | F59: =LOOKUP($F$10,'mod2 6b'!$F$10:$Q$10,'mod2 6b'!F59:Q59) -> 0 | G59: =LOOKUP($G$10,'mod2 6b'!$F$10:$Q$10,'mod2 6b'!F59:Q59) -> 0 | H59: ='mod2 6b'!R59 -> 0 | I59: ='mod2 6b'!S59 -> 0 | J59: ='mod2 6b'!T59 -> 0
A60: ='mod2 6b'!A60 -> 4 | B60: ='mod2 6b'!B60 -> 0 | C60: ='mod2 6b'!C60 -> 0 | D60: ='mod2 6b'!D60 -> 0 | E60: ='mod2 6b'!E60 -> 0 | F60: =LOOKUP($F$10,'mod2 6b'!$F$10:$Q$10,'mod2 6b'!F60:Q60) -> 0 | G60: =LOOKUP($G$10,'mod2 6b'!$F$10:$Q$10,'mod2 6b'!F60:Q60) -> 0 | H60: ='mod2 6b'!R60 -> 0 | I60: ='mod2 6b'!S60 -> 0 | J60: ='mod2 6b'!T60 -> 0
A61: ='mod2 6b'!A61 -> 5 | B61: ='mod2 6b'!B61 -> 0 | C61: ='mod2 6b'!C61 -> DEFESA NACIONAL | D61: ='mod2 6b'!D61 -> 0 | E61: ='mod2 6b'!E61 -> 0 | F61: =LOOKUP($F$10,'mod2 6b'!$F$10:$Q$10,'mod2 6b'!F61:Q61) -> 0 | G61: =LOOKUP($G$10,'mod2 6b'!$F$10:$Q$10,'mod2 6b'!F61:Q61) -> 0 | H61: ='mod2 6b'!R61 -> 0 | I61: ='mod2 6b'!S61 -> 0 | J61: ='mod2 6b'!T61 -> 0
A62: ='mod2 6b'!A62 -> 5 | B62: ='mod2 6b'!B62 -> 151 | C62: ='mod2 6b'!C62 -> Defesa Aérea | D62: ='mod2 6b'!D62 -> 0 | E62: ='mod2 6b'!E62 -> 0 | F62: =LOOKUP($F$10,'mod2 6b'!$F$10:$Q$10,'mod2 6b'!F62:Q62) -> 0 | G62: =LOOKUP($G$10,'mod2 6b'!$F$10:$Q$10,'mod2 6b'!F62:Q62) -> 0 | H62: ='mod2 6b'!R62 -> 0 | I62: ='mod2 6b'!S62 -> 0 | J62: ='mod2 6b'!T62 -> 0
A63: ='mod2 6b'!A63 -> 5 | B63: ='mod2 6b'!B63 -> 152 | C63: ='mod2 6b'!C63 -> Defesa Naval | D63: ='mod2 6b'!D63 -> 0 | E63: ='mod2 6b'!E63 -> 0 | F63: =LOOKUP($F$10,'mod2 6b'!$F$10:$Q$10,'mod2 6b'!F63:Q63) -> 0 | G63: =LOOKUP($G$10,'mod2 6b'!$F$10:$Q$10,'mod2 6b'!F63:Q63) -> 0 | H63: ='mod2 6b'!R63 -> 0 | I63: ='mod2 6b'!S63 -> 0 | J63: ='mod2 6b'!T63 -> 0
A64: ='mod2 6b'!A64 -> 5 | B64: ='mod2 6b'!B64 -> 153 | C64: ='mod2 6b'!C64 -> Defesa Terrestre | D64: ='mod2 6b'!D64 -> 0 | E64: ='mod2 6b'!E64 -> 0 | F64: =LOOKUP($F$10,'mod2 6b'!$F$10:$Q$10,'mod2 6b'!F64:Q64) -> 0 | G64: =LOOKUP($G$10,'mod2 6b'!$F$10:$Q$10,'mod2 6b'!F64:Q64) -> 0 | H64: ='mod2 6b'!R64 -> 0 | I64: ='mod2 6b'!S64 -> 0 | J64: ='mod2 6b'!T64 -> 0
A65: ='mod2 6b'!A65 -> 5 | B65: ='mod2 6b'!B65 -> 0 | C65: ='mod2 6b'!C65 -> 0 | D65: ='mod2 6b'!D65 -> 0 | E65: ='mod2 6b'!E65 -> 0 | F65: =LOOKUP($F$10,'mod2 6b'!$F$10:$Q$10,'mod2 6b'!F65:Q65) -> 0 | G65: =LOOKUP($G$10,'mod2 6b'!$F$10:$Q$10,'mod2 6b'!F65:Q65) -> 0 | H65: ='mod2 6b'!R65 -> 0 | I65: ='mod2 6b'!S65 -> 0 | J65: ='mod2 6b'!T65 -> 0
A66: ='mod2 6b'!A66 -> 5 | B66: ='mod2 6b'!B66 -> 0 | C66: ='mod2 6b'!C66 -> 0 | D66: ='mod2 6b'!D66 -> 0 | E66: ='mod2 6b'!E66 -> 0 | F66: =LOOKUP($F$10,'mod2 6b'!$F$10:$Q$10,'mod2 6b'!F66:Q66) -> 0 | G66: =LOOKUP($G$10,'mod2 6b'!$F$10:$Q$10,'mod2 6b'!F66:Q66) -> 0 | H66: ='mod2 6b'!R66 -> 0 | I66: ='mod2 6b'!S66 -> 0 | J66: ='mod2 6b'!T66 -> 0
A67: ='mod2 6b'!A67 -> 5 | B67: ='mod2 6b'!B67 -> 0 | C67: ='mod2 6b'!C67 -> 0 | D67: ='mod2 6b'!D67 -> 0 | E67: ='mod2 6b'!E67 -> 0 | F67: =LOOKUP($F$10,'mod2 6b'!$F$10:$Q$10,'mod2 6b'!F67:Q67) -> 0 | G67: =LOOKUP($G$10,'mod2 6b'!$F$10:$Q$10,'mod2 6b'!F67:Q67) -> 0 | H67: ='mod2 6b'!R67 -> 0 | I67: ='mod2 6b'!S67 -> 0 | J67: ='mod2 6b'!T67 -> 0
A68: ='mod2 6b'!A68 -> 5 | B68: ='mod2 6b'!B68 -> 0 | C68: ='mod2 6b'!C68 -> 0 | D68: ='mod2 6b'!D68 -> 0 | E68: ='mod2 6b'!E68 -> 0 | F68: =LOOKUP($F$10,'mod2 6b'!$F$10:$Q$10,'mod2 6b'!F68:Q68) -> 0 | G68: =LOOKUP($G$10,'mod2 6b'!$F$10:$Q$10,'mod2 6b'!F68:Q68) -> 0 | H68: ='mod2 6b'!R68 -> 0 | I68: ='mod2 6b'!S68 -> 0 | J68: ='mod2 6b'!T68 -> 0
A69: ='mod2 6b'!A69 -> 5 | B69: ='mod2 6b'!B69 -> 0 | C69: ='mod2 6b'!C69 -> 0 | D69: ='mod2 6b'!D69 -> 0 | E69: ='mod2 6b'!E69 -> 0 | F69: =LOOKUP($F$10,'mod2 6b'!$F$10:$Q$10,'mod2 6b'!F69:Q69) -> 0 | G69: =LOOKUP($G$10,'mod2 6b'!$F$10:$Q$10,'mod2 6b'!F69:Q69) -> 0 | H69: ='mod2 6b'!R69 -> 0 | I69: ='mod2 6b'!S69 -> 0 | J69: ='mod2 6b'!T69 -> 0
A70: ='mod2 6b'!A70 -> 6 | B70: ='mod2 6b'!B70 -> 0 | C70: ='mod2 6b'!C70 -> SEGURANÇA PÚBLICA | D70: ='mod2 6b'!D70 -> 0 | E70: ='mod2 6b'!E70 -> 0 | F70: =LOOKUP($F$10,'mod2 6b'!$F$10:$Q$10,'mod2 6b'!F70:Q70) -> 0 | G70: =LOOKUP($G$10,'mod2 6b'!$F$10:$Q$10,'mod2 6b'!F70:Q70) -> 0 | H70: ='mod2 6b'!R70 -> 0 | I70: ='mod2 6b'!S70 -> 0 | J70: ='mod2 6b'!T70 -> 0
A71: ='mod2 6b'!A71 -> 6 | B71: ='mod2 6b'!B71 -> 181 | C71: ='mod2 6b'!C71 -> Policiamento | D71: ='mod2 6b'!D71 -> 0 | E71: ='mod2 6b'!E71 -> 0 | F71: =LOOKUP($F$10,'mod2 6b'!$F$10:$Q$10,'mod2 6b'!F71:Q71) -> 0 | G71: =LOOKUP($G$10,'mod2 6b'!$F$10:$Q$10,'mod2 6b'!F71:Q71) -> 0 | H71: ='mod2 6b'!R71 -> 0 | I71: ='mod2 6b'!S71 -> 0 | J71: ='mod2 6b'!T71 -> 0
A72: ='mod2 6b'!A72 -> 6 | B72: ='mod2 6b'!B72 -> 182 | C72: ='mod2 6b'!C72 -> Defesa Civil | D72: ='mod2 6b'!D72 -> 0 | E72: ='mod2 6b'!E72 -> 0 | F72: =LOOKUP($F$10,'mod2 6b'!$F$10:$Q$10,'mod2 6b'!F72:Q72) -> 0 | G72: =LOOKUP($G$10,'mod2 6b'!$F$10:$Q$10,'mod2 6b'!F72:Q72) -> 0 | H72: ='mod2 6b'!R72 -> 0 | I72: ='mod2 6b'!S72 -> 0 | J72: ='mod2 6b'!T72 -> 0
A73: ='mod2 6b'!A73 -> 6 | B73: ='mod2 6b'!B73 -> 183 | C73: ='mod2 6b'!C73 -> Informação e Inteligência | D73: ='mod2 6b'!D73 -> 0 | E73: ='mod2 6b'!E73 -> 0 | F73: =LOOKUP($F$10,'mod2 6b'!$F$10:$Q$10,'mod2 6b'!F73:Q73) -> 0 | G73: =LOOKUP($G$10,'mod2 6b'!$F$10:$Q$10,'mod2 6b'!F73:Q73) -> 0 | H73: ='mod2 6b'!R73 -> 0 | I73: ='mod2 6b'!S73 -> 0 | J73: ='mod2 6b'!T73 -> 0
A74: ='mod2 6b'!A74 -> 6 | B74: ='mod2 6b'!B74 -> 0 | C74: ='mod2 6b'!C74 -> 0 | D74: ='mod2 6b'!D74 -> 0 | E74: ='mod2 6b'!E74 -> 0 | F74: =LOOKUP($F$10,'mod2 6b'!$F$10:$Q$10,'mod2 6b'!F74:Q74) -> 0 | G74: =LOOKUP($G$10,'mod2 6b'!$F$10:$Q$10,'mod2 6b'!F74:Q74) -> 0 | H74: ='mod2 6b'!R74 -> 0 | I74: ='mod2 6b'!S74 -> 0 | J74: ='mod2 6b'!T74 -> 0
A75: ='mod2 6b'!A75 -> 6 | B75: ='mod2 6b'!B75 -> 0 | C75: ='mod2 6b'!C75 -> 0 | D75: ='mod2 6b'!D75 -> 0 | E75: ='mod2 6b'!E75 -> 0 | F75: =LOOKUP($F$10,'mod2 6b'!$F$10:$Q$10,'mod2 6b'!F75:Q75) -> 0 | G75: =LOOKUP($G$10,'mod2 6b'!$F$10:$Q$10,'mod2 6b'!F75:Q75) -> 0 | H75: ='mod2 6b'!R75 -> 0 | I75: ='mod2 6b'!S75 -> 0 | J75: ='mod2 6b'!T75 -> 0
A76: ='mod2 6b'!A76 -> 6 | B76: ='mod2 6b'!B76 -> 0 | C76: ='mod2 6b'!C76 -> 0 | D76: ='mod2 6b'!D76 -> 0 | E76: ='mod2 6b'!E76 -> 0 | F76: =LOOKUP($F$10,'mod2 6b'!$F$10:$Q$10,'mod2 6b'!F76:Q76) -> 0 | G76: =LOOKUP($G$10,'mod2 6b'!$F$10:$Q$10,'mod2 6b'!F76:Q76) -> 0 | H76: ='mod2 6b'!R76 -> 0 | I76: ='mod2 6b'!S76 -> 0 | J76: ='mod2 6b'!T76 -> 0
A77: ='mod2 6b'!A77 -> 6 | B77: ='mod2 6b'!B77 -> 0 | C77: ='mod2 6b'!C77 -> 0 | D77: ='mod2 6b'!D77 -> 0 | E77: ='mod2 6b'!E77 -> 0 | F77: =LOOKUP($F$10,'mod2 6b'!$F$10:$Q$10,'mod2 6b'!F77:Q77) -> 0 | G77: =LOOKUP($G$10,'mod2 6b'!$F$10:$Q$10,'mod2 6b'!F77:Q77) -> 0 | H77: ='mod2 6b'!R77 -> 0 | I77: ='mod2 6b'!S77 -> 0 | J77: ='mod2 6b'!T77 -> 0
A78: ='mod2 6b'!A78 -> 6 | B78: ='mod2 6b'!B78 -> 0 | C78: ='mod2 6b'!C78 -> 0 | D78: ='mod2 6b'!D78 -> 0 | E78: ='mod2 6b'!E78 -> 0 | F78: =LOOKUP($F$10,'mod2 6b'!$F$10:$Q$10,'mod2 6b'!F78:Q78) -> 0 | G78: =LOOKUP($G$10,'mod2 6b'!$F$10:$Q$10,'mod2 6b'!F78:Q78) -> 0 | H78: ='mod2 6b'!R78 -> 0 | I78: ='mod2 6b'!S78 -> 0 | J78: ='mod2 6b'!T78 -> 0
A79: ='mod2 6b'!A79 -> 7 | B79: ='mod2 6b'!B79 -> 0 | C79: ='mod2 6b'!C79 -> RELAÇÕES EXTERIORES | D79: ='mod2 6b'!D79 -> 0 | E79: ='mod2 6b'!E79 -> 0 | F79: =LOOKUP($F$10,'mod2 6b'!$F$10:$Q$10,'mod2 6b'!F79:Q79) -> 0 | G79: =LOOKUP($G$10,'mod2 6b'!$F$10:$Q$10,'mod2 6b'!F79:Q79) -> 0 | H79: ='mod2 6b'!R79 -> 0 | I79: ='mod2 6b'!S79 -> 0 | J79: ='mod2 6b'!T79 -> 0
A80: ='mod2 6b'!A80 -> 7 | B80: ='mod2 6b'!B80 -> 211 | C80: ='mod2 6b'!C80 -> Relações Diplomáticas | D80: ='mod2 6b'!D80 -> 0 | E80: ='mod2 6b'!E80 -> 0 | F80: =LOOKUP($F$10,'mod2 6b'!$F$10:$Q$10,'mod2 6b'!F80:Q80) -> 0 | G80: =LOOKUP($G$10,'mod2 6b'!$F$10:$Q$10,'mod2 6b'!F80:Q80) -> 0 | H80: ='mod2 6b'!R80 -> 0 | I80: ='mod2 6b'!S80 -> 0 | J80: ='mod2 6b'!T80 -> 0
A81: ='mod2 6b'!A81 -> 7 | B81: ='mod2 6b'!B81 -> 212 | C81: ='mod2 6b'!C81 -> Cooperação Internacional | D81: ='mod2 6b'!D81 -> 0 | E81: ='mod2 6b'!E81 -> 0 | F81: =LOOKUP($F$10,'mod2 6b'!$F$10:$Q$10,'mod2 6b'!F81:Q81) -> 0 | G81: =LOOKUP($G$10,'mod2 6b'!$F$10:$Q$10,'mod2 6b'!F81:Q81) -> 0 | H81: ='mod2 6b'!R81 -> 0 | I81: ='mod2 6b'!S81 -> 0 | J81: ='mod2 6b'!T81 -> 0
A82: ='mod2 6b'!A82 -> 7 | B82: ='mod2 6b'!B82 -> 0 | C82: ='mod2 6b'!C82 -> 0 | D82: ='mod2 6b'!D82 -> 0 | E82: ='mod2 6b'!E82 -> 0 | F82: =LOOKUP($F$10,'mod2 6b'!$F$10:$Q$10,'mod2 6b'!F82:Q82) -> 0 | G82: =LOOKUP($G$10,'mod2 6b'!$F$10:$Q$10,'mod2 6b'!F82:Q82) -> 0 | H82: ='mod2 6b'!R82 -> 0 | I82: ='mod2 6b'!S82 -> 0 | J82: ='mod2 6b'!T82 -> 0
A83: ='mod2 6b'!A83 -> 7 | B83: ='mod2 6b'!B83 -> 0 | C83: ='mod2 6b'!C83 -> 0 | D83: ='mod2 6b'!D83 -> 0 | E83: ='mod2 6b'!E83 -> 0 | F83: =LOOKUP($F$10,'mod2 6b'!$F$10:$Q$10,'mod2 6b'!F83:Q83) -> 0 | G83: =LOOKUP($G$10,'mod2 6b'!$F$10:$Q$10,'mod2 6b'!F83:Q83) -> 0 | H83: ='mod2 6b'!R83 -> 0 | I83: ='mod2 6b'!S83 -> 0 | J83: ='mod2 6b'!T83 -> 0
A84: ='mod2 6b'!A84 -> 7 | B84: ='mod2 6b'!B84 -> 0 | C84: ='mod2 6b'!C84 -> 0 | D84: ='mod2 6b'!D84 -> 0 | E84: ='mod2 6b'!E84 -> 0 | F84: =LOOKUP($F$10,'mod2 6b'!$F$10:$Q$10,'mod2 6b'!F84:Q84) -> 0 | G84: =LOOKUP($G$10,'mod2 6b'!$F$10:$Q$10,'mod2 6b'!F84:Q84) -> 0 | H84: ='mod2 6b'!R84 -> 0 | I84: ='mod2 6b'!S84 -> 0 | J84: ='mod2 6b'!T84 -> 0
A85: ='mod2 6b'!A85 -> 7 | B85: ='mod2 6b'!B85 -> 0 | C85: ='mod2 6b'!C85 -> 0 | D85: ='mod2 6b'!D85 -> 0 | E85: ='mod2 6b'!E85 -> 0 | F85: =LOOKUP($F$10,'mod2 6b'!$F$10:$Q$10,'mod2 6b'!F85:Q85) -> 0 | G85: =LOOKUP($G$10,'mod2 6b'!$F$10:$Q$10,'mod2 6b'!F85:Q85) -> 0 | H85: ='mod2 6b'!R85 -> 0 | I85: ='mod2 6b'!S85 -> 0 | J85: ='mod2 6b'!T85 -> 0
A86: ='mod2 6b'!A86 -> 7 | B86: ='mod2 6b'!B86 -> 0 | C86: ='mod2 6b'!C86 -> 0 | D86: ='mod2 6b'!D86 -> 0 | E86: ='mod2 6b'!E86 -> 0 | F86: =LOOKUP($F$10,'mod2 6b'!$F$10:$Q$10,'mod2 6b'!F86:Q86) -> 0 | G86: =LOOKUP($G$10,'mod2 6b'!$F$10:$Q$10,'mod2 6b'!F86:Q86) -> 0 | H86: ='mod2 6b'!R86 -> 0 | I86: ='mod2 6b'!S86 -> 0 | J86: ='mod2 6b'!T86 -> 0
A87: ='mod2 6b'!A87 -> 8 | B87: ='mod2 6b'!B87 -> 0 | C87: ='mod2 6b'!C87 -> ASSISTÊNCIA SOCIAL | D87: ='mod2 6b'!D87 -> 0 | E87: ='mod2 6b'!E87 -> 0 | F87: =LOOKUP($F$10,'mod2 6b'!$F$10:$Q$10,'mod2 6b'!F87:Q87) -> 0 | G87: =LOOKUP($G$10,'mod2 6b'!$F$10:$Q$10,'mod2 6b'!F87:Q87) -> 0 | H87: ='mod2 6b'!R87 -> 0 | I87: ='mod2 6b'!S87 -> 0 | J87: ='mod2 6b'!T87 -> 0
A88: ='mod2 6b'!A88 -> 8 | B88: ='mod2 6b'!B88 -> 241 | C88: ='mod2 6b'!C88 -> Assistência ao Idoso | D88: ='mod2 6b'!D88 -> 0 | E88: ='mod2 6b'!E88 -> 0 | F88: =LOOKUP($F$10,'mod2 6b'!$F$10:$Q$10,'mod2 6b'!F88:Q88) -> 0 | G88: =LOOKUP($G$10,'mod2 6b'!$F$10:$Q$10,'mod2 6b'!F88:Q88) -> 0 | H88: ='mod2 6b'!R88 -> 0 | I88: ='mod2 6b'!S88 -> 0 | J88: ='mod2 6b'!T88 -> 0
A89: ='mod2 6b'!A89 -> 8 | B89: ='mod2 6b'!B89 -> 242 | C89: ='mod2 6b'!C89 -> Assist. ao Portador de Deficiência | D89: ='mod2 6b'!D89 -> 0 | E89: ='mod2 6b'!E89 -> 0 | F89: =LOOKUP($F$10,'mod2 6b'!$F$10:$Q$10,'mod2 6b'!F89:Q89) -> 0 | G89: =LOOKUP($G$10,'mod2 6b'!$F$10:$Q$10,'mod2 6b'!F89:Q89) -> 0 | H89: ='mod2 6b'!R89 -> 0 | I89: ='mod2 6b'!S89 -> 0 | J89: ='mod2 6b'!T89 -> 0
A90: ='mod2 6b'!A90 -> 8 | B90: ='mod2 6b'!B90 -> 243 | C90: ='mod2 6b'!C90 -> Assist. à Criança e ao Adolescente | D90: ='mod2 6b'!D90 -> 0 | E90: ='mod2 6b'!E90 -> 0 | F90: =LOOKUP($F$10,'mod2 6b'!$F$10:$Q$10,'mod2 6b'!F90:Q90) -> 0 | G90: =LOOKUP($G$10,'mod2 6b'!$F$10:$Q$10,'mod2 6b'!F90:Q90) -> 0 | H90: ='mod2 6b'!R90 -> 0 | I90: ='mod2 6b'!S90 -> 0 | J90: ='mod2 6b'!T90 -> 0
A91: ='mod2 6b'!A91 -> 8 | B91: ='mod2 6b'!B91 -> 244 | C91: ='mod2 6b'!C91 -> Assistência Comunitária | D91: ='mod2 6b'!D91 -> 0 | E91: ='mod2 6b'!E91 -> 0 | F91: =LOOKUP($F$10,'mod2 6b'!$F$10:$Q$10,'mod2 6b'!F91:Q91) -> 0 | G91: =LOOKUP($G$10,'mod2 6b'!$F$10:$Q$10,'mod2 6b'!F91:Q91) -> 0 | H91: ='mod2 6b'!R91 -> 0 | I91: ='mod2 6b'!S91 -> 0 | J91: ='mod2 6b'!T91 -> 0
A92: ='mod2 6b'!A92 -> 8 | B92: ='mod2 6b'!B92 -> 0 | C92: ='mod2 6b'!C92 -> 0 | D92: ='mod2 6b'!D92 -> 0 | E92: ='mod2 6b'!E92 -> 0 | F92: =LOOKUP($F$10,'mod2 6b'!$F$10:$Q$10,'mod2 6b'!F92:Q92) -> 0 | G92: =LOOKUP($G$10,'mod2 6b'!$F$10:$Q$10,'mod2 6b'!F92:Q92) -> 0 | H92: ='mod2 6b'!R92 -> 0 | I92: ='mod2 6b'!S92 -> 0 | J92: ='mod2 6b'!T92 -> 0
A93: ='mod2 6b'!A93 -> 8 | B93: ='mod2 6b'!B93 -> 0 | C93: ='mod2 6b'!C93 -> 0 | D93: ='mod2 6b'!D93 -> 0 | E93: ='mod2 6b'!E93 -> 0 | F93: =LOOKUP($F$10,'mod2 6b'!$F$10:$Q$10,'mod2 6b'!F93:Q93) -> 0 | G93: =LOOKUP($G$10,'mod2 6b'!$F$10:$Q$10,'mod2 6b'!F93:Q93) -> 0 | H93: ='mod2 6b'!R93 -> 0 | I93: ='mod2 6b'!S93 -> 0 | J93: ='mod2 6b'!T93 -> 0
A94: ='mod2 6b'!A94 -> 8 | B94: ='mod2 6b'!B94 -> 0 | C94: ='mod2 6b'!C94 -> 0 | D94: ='mod2 6b'!D94 -> 0 | E94: ='mod2 6b'!E94 -> 0 | F94: =LOOKUP($F$10,'mod2 6b'!$F$10:$Q$10,'mod2 6b'!F94:Q94) -> 0 | G94: =LOOKUP($G$10,'mod2 6b'!$F$10:$Q$10,'mod2 6b'!F94:Q94) -> 0 | H94: ='mod2 6b'!R94 -> 0 | I94: ='mod2 6b'!S94 -> 0 | J94: ='mod2 6b'!T94 -> 0
A95: ='mod2 6b'!A95 -> 8 | B95: ='mod2 6b'!B95 -> 0 | C95: ='mod2 6b'!C95 -> 0 | D95: ='mod2 6b'!D95 -> 0 | E95: ='mod2 6b'!E95 -> 0 | F95: =LOOKUP($F$10,'mod2 6b'!$F$10:$Q$10,'mod2 6b'!F95:Q95) -> 0 | G95: =LOOKUP($G$10,'mod2 6b'!$F$10:$Q$10,'mod2 6b'!F95:Q95) -> 0 | H95: ='mod2 6b'!R95 -> 0 | I95: ='mod2 6b'!S95 -> 0 | J95: ='mod2 6b'!T95 -> 0
A96: ='mod2 6b'!A96 -> 8 | B96: ='mod2 6b'!B96 -> 0 | C96: ='mod2 6b'!C96 -> 0 | D96: ='mod2 6b'!D96 -> 0 | E96: ='mod2 6b'!E96 -> 0 | F96: =LOOKUP($F$10,'mod2 6b'!$F$10:$Q$10,'mod2 6b'!F96:Q96) -> 0 | G96: =LOOKUP($G$10,'mod2 6b'!$F$10:$Q$10,'mod2 6b'!F96:Q96) -> 0 | H96: ='mod2 6b'!R96 -> 0 | I96: ='mod2 6b'!S96 -> 0 | J96: ='mod2 6b'!T96 -> 0
A97: ='mod2 6b'!A97 -> 9 | B97: ='mod2 6b'!B97 -> 0 | C97: ='mod2 6b'!C97 -> PREVIDÊNCIA SOCIAL | D97: ='mod2 6b'!D97 -> 0 | E97: ='mod2 6b'!E97 -> 0 | F97: =LOOKUP($F$10,'mod2 6b'!$F$10:$Q$10,'mod2 6b'!F97:Q97) -> 0 | G97: =LOOKUP($G$10,'mod2 6b'!$F$10:$Q$10,'mod2 6b'!F97:Q97) -> 0 | H97: ='mod2 6b'!R97 -> 0 | I97: ='mod2 6b'!S97 -> 0 | J97: ='mod2 6b'!T97 -> 0
A98: ='mod2 6b'!A98 -> 9 | B98: ='mod2 6b'!B98 -> 271 | C98: ='mod2 6b'!C98 -> Previdência Básica | D98: ='mod2 6b'!D98 -> 0 | E98: ='mod2 6b'!E98 -> 0 | F98: =LOOKUP($F$10,'mod2 6b'!$F$10:$Q$10,'mod2 6b'!F98:Q98) -> 0 | G98: =LOOKUP($G$10,'mod2 6b'!$F$10:$Q$10,'mod2 6b'!F98:Q98) -> 0 | H98: ='mod2 6b'!R98 -> 0 | I98: ='mod2 6b'!S98 -> 0 | J98: ='mod2 6b'!T98 -> 0
A99: ='mod2 6b'!A99 -> 9 | B99: ='mod2 6b'!B99 -> 272 | C99: ='mod2 6b'!C99 -> Previdência do Regime Estatutário | D99: ='mod2 6b'!D99 -> 0 | E99: ='mod2 6b'!E99 -> 0 | F99: =LOOKUP($F$10,'mod2 6b'!$F$10:$Q$10,'mod2 6b'!F99:Q99) -> 0 | G99: =LOOKUP($G$10,'mod2 6b'!$F$10:$Q$10,'mod2 6b'!F99:Q99) -> 0 | H99: ='mod2 6b'!R99 -> 0 | I99: ='mod2 6b'!S99 -> 0 | J99: ='mod2 6b'!T99 -> 0
A100: ='mod2 6b'!A100 -> 9 | B100: ='mod2 6b'!B100 -> 273 | C100: ='mod2 6b'!C100 -> Previdência Complementar | D100: ='mod2 6b'!D100 -> 0 | E100: ='mod2 6b'!E100 -> 0 | F100: =LOOKUP($F$10,'mod2 6b'!$F$10:$Q$10,'mod2 6b'!F100:Q100) -> 0 | G100: =LOOKUP($G$10,'mod2 6b'!$F$10:$Q$10,'mod2 6b'!F100:Q100) -> 0 | H100: ='mod2 6b'!R100 -> 0 | I100: ='mod2 6b'!S100 -> 0 | J100: ='mod2 6b'!T100 -> 0
A101: ='mod2 6b'!A101 -> 9 | B101: ='mod2 6b'!B101 -> 274 | C101: ='mod2 6b'!C101 -> Previdência Especial | D101: ='mod2 6b'!D101 -> 0 | E101: ='mod2 6b'!E101 -> 0 | F101: =LOOKUP($F$10,'mod2 6b'!$F$10:$Q$10,'mod2 6b'!F101:Q101) -> 0 | G101: =LOOKUP($G$10,'mod2 6b'!$F$10:$Q$10,'mod2 6b'!F101:Q101) -> 0 | H101: ='mod2 6b'!R101 -> 0 | I101: ='mod2 6b'!S101 -> 0 | J101: ='mod2 6b'!T101 -> 0
A102: ='mod2 6b'!A102 -> 9 | B102: ='mod2 6b'!B102 -> 0 | C102: ='mod2 6b'!C102 -> 0 | D102: ='mod2 6b'!D102 -> 0 | E102: ='mod2 6b'!E102 -> 0 | F102: =LOOKUP($F$10,'mod2 6b'!$F$10:$Q$10,'mod2 6b'!F102:Q102) -> 0 | G102: =LOOKUP($G$10,'mod2 6b'!$F$10:$Q$10,'mod2 6b'!F102:Q102) -> 0 | H102: ='mod2 6b'!R102 -> 0 | I102: ='mod2 6b'!S102 -> 0 | J102: ='mod2 6b'!T102 -> 0
A103: ='mod2 6b'!A103 -> 9 | B103: ='mod2 6b'!B103 -> 0 | C103: ='mod2 6b'!C103 -> 0 | D103: ='mod2 6b'!D103 -> 0 | E103: ='mod2 6b'!E103 -> 0 | F103: =LOOKUP($F$10,'mod2 6b'!$F$10:$Q$10,'mod2 6b'!F103:Q103) -> 0 | G103: =LOOKUP($G$10,'mod2 6b'!$F$10:$Q$10,'mod2 6b'!F103:Q103) -> 0 | H103: ='mod2 6b'!R103 -> 0 | I103: ='mod2 6b'!S103 -> 0 | J103: ='mod2 6b'!T103 -> 0
A104: ='mod2 6b'!A104 -> 9 | B104: ='mod2 6b'!B104 -> 0 | C104: ='mod2 6b'!C104 -> 0 | D104: ='mod2 6b'!D104 -> 0 | E104: ='mod2 6b'!E104 -> 0 | F104: =LOOKUP($F$10,'mod2 6b'!$F$10:$Q$10,'mod2 6b'!F104:Q104) -> 0 | G104: =LOOKUP($G$10,'mod2 6b'!$F$10:$Q$10,'mod2 6b'!F104:Q104) -> 0 | H104: ='mod2 6b'!R104 -> 0 | I104: ='mod2 6b'!S104 -> 0 | J104: ='mod2 6b'!T104 -> 0
A105: ='mod2 6b'!A105 -> 9 | B105: ='mod2 6b'!B105 -> 0 | C105: ='mod2 6b'!C105 -> 0 | D105: ='mod2 6b'!D105 -> 0 | E105: ='mod2 6b'!E105 -> 0 | F105: =LOOKUP($F$10,'mod2 6b'!$F$10:$Q$10,'mod2 6b'!F105:Q105) -> 0 | G105: =LOOKUP($G$10,'mod2 6b'!$F$10:$Q$10,'mod2 6b'!F105:Q105) -> 0 | H105: ='mod2 6b'!R105 -> 0 | I105: ='mod2 6b'!S105 -> 0 | J105: ='mod2 6b'!T105 -> 0
A106: ='mod2 6b'!A106 -> 9 | B106: ='mod2 6b'!B106 -> 0 | C106: ='mod2 6b'!C106 -> 0 | D106: ='mod2 6b'!D106 -> 0 | E106: ='mod2 6b'!E106 -> 0 | F106: =LOOKUP($F$10,'mod2 6b'!$F$10:$Q$10,'mod2 6b'!F106:Q106) -> 0 | G106: =LOOKUP($G$10,'mod2 6b'!$F$10:$Q$10,'mod2 6b'!F106:Q106) -> 0 | H106: ='mod2 6b'!R106 -> 0 | I106: ='mod2 6b'!S106 -> 0 | J106: ='mod2 6b'!T106 -> 0
A107: ='mod2 6b'!A107 -> 4 | B107: ='mod2 6b'!B107 -> 0 | C107: ='mod2 6b'!C107 -> ADMINISTRAÇÃO | D107: 20123396 | E107: 20123396 | F107: 3166854.51 | G107: 3166854.51 | H107: ='mod2 6b'!R107 -> 7606374.5 | I107: ='mod2 6b'!S107 -> 7606374.5 | J107: =D107-I107 -> 12517021.5
A108: ='mod2 6b'!A108 -> 10 | B108: ='mod2 6b'!B108 -> 301 | C108: ='mod2 6b'!C108 -> Atenção Básica | D108: ='mod2 6b'!D108 -> 0 | E108: ='mod2 6b'!E108 -> 0 | F108: =LOOKUP($F$10,'mod2 6b'!$F$10:$Q$10,'mod2 6b'!F108:Q108) -> 0 | G108: =LOOKUP($G$10,'mod2 6b'!$F$10:$Q$10,'mod2 6b'!F108:Q108) -> 0 | H108: ='mod2 6b'!R108 -> 0 | I108: ='mod2 6b'!S108 -> 0 | J108: ='mod2 6b'!T108 -> 0
A109: 4 | B109: 122 | C109: Administração Geral | D109: 20123396 | E109: 20123396 | F109: 3166854.51 | G109: 3166854.51 | H109: =H107 -> 7606374.5 | I109: =I107 -> 7606374.5 | J109: =D109-I109 -> 12517021.5
A110: ='mod2 6b'!A110 -> 10 | B110: ='mod2 6b'!B110 -> 303 | C110: ='mod2 6b'!C110 -> Suporte Profilático e Terapêutico | D110: ='mod2 6b'!D110 -> 0 | E110: ='mod2 6b'!E110 -> 0 | F110: =LOOKUP($F$10,'mod2 6b'!$F$10:$Q$10,'mod2 6b'!F110:Q110) -> 0 | G110: =LOOKUP($G$10,'mod2 6b'!$F$10:$Q$10,'mod2 6b'!F110:Q110) -> 0 | H110: ='mod2 6b'!R110 -> 0 | I110: ='mod2 6b'!S110 -> 0 | J110: ='mod2 6b'!T110 -> 0
A111: ='mod2 6b'!A111 -> 10 | B111: ='mod2 6b'!B111 -> 304 | C111: ='mod2 6b'!C111 -> Vigilância Sanitária | D111: ='mod2 6b'!D111 -> 0 | E111: ='mod2 6b'!E111 -> 0 | F111: =LOOKUP($F$10,'mod2 6b'!$F$10:$Q$10,'mod2 6b'!F111:Q111) -> 0 | G111: =LOOKUP($G$10,'mod2 6b'!$F$10:$Q$10,'mod2 6b'!F111:Q111) -> 0 | H111: ='mod2 6b'!R111 -> 0 | I111: ='mod2 6b'!S111 -> 0 | J111: ='mod2 6b'!T111 -> 0
A112: ='mod2 6b'!A112 -> 10 | B112: ='mod2 6b'!B112 -> 305 | C112: ='mod2 6b'!C112 -> Vigilância Epidemiológica | D112: ='mod2 6b'!D112 -> 0 | E112: ='mod2 6b'!E112 -> 0 | F112: =LOOKUP($F$10,'mod2 6b'!$F$10:$Q$10,'mod2 6b'!F112:Q112) -> 0 | G112: =LOOKUP($G$10,'mod2 6b'!$F$10:$Q$10,'mod2 6b'!F112:Q112) -> 0 | H112: ='mod2 6b'!R112 -> 0 | I112: ='mod2 6b'!S112 -> 0 | J112: ='mod2 6b'!T112 -> 0
A113: ='mod2 6b'!A113 -> 10 | B113: ='mod2 6b'!B113 -> 306 | C113: ='mod2 6b'!C113 -> Alimentação e Nutrição | D113: ='mod2 6b'!D113 -> 0 | E113: ='mod2 6b'!E113 -> 0 | F113: =LOOKUP($F$10,'mod2 6b'!$F$10:$Q$10,'mod2 6b'!F113:Q113) -> 0 | G113: =LOOKUP($G$10,'mod2 6b'!$F$10:$Q$10,'mod2 6b'!F113:Q113) -> 0 | H113: ='mod2 6b'!R113 -> 0 | I113: ='mod2 6b'!S113 -> 0 | J113: ='mod2 6b'!T113 -> 0
A114: ='mod2 6b'!A114 -> 10 | B114: ='mod2 6b'!B114 -> 0 | C114: ='mod2 6b'!C114 -> 0 | D114: ='mod2 6b'!D114 -> 0 | E114: ='mod2 6b'!E114 -> 0 | F114: =LOOKUP($F$10,'mod2 6b'!$F$10:$Q$10,'mod2 6b'!F114:Q114) -> 0 | G114: =LOOKUP($G$10,'mod2 6b'!$F$10:$Q$10,'mod2 6b'!F114:Q114) -> 0 | H114: ='mod2 6b'!R114 -> 0 | I114: ='mod2 6b'!S114 -> 0 | J114: ='mod2 6b'!T114 -> 0
A115: ='mod2 6b'!A115 -> 10 | B115: ='mod2 6b'!B115 -> 0 | C115: ='mod2 6b'!C115 -> 0 | D115: ='mod2 6b'!D115 -> 0 | E115: ='mod2 6b'!E115 -> 0 | F115: =LOOKUP($F$10,'mod2 6b'!$F$10:$Q$10,'mod2 6b'!F115:Q115) -> 0 | G115: =LOOKUP($G$10,'mod2 6b'!$F$10:$Q$10,'mod2 6b'!F115:Q115) -> 0 | H115: ='mod2 6b'!R115 -> 0 | I115: ='mod2 6b'!S115 -> 0 | J115: ='mod2 6b'!T115 -> 0
A116: ='mod2 6b'!A116 -> 10 | B116: ='mod2 6b'!B116 -> 0 | C116: ='mod2 6b'!C116 -> 0 | D116: ='mod2 6b'!D116 -> 0 | E116: ='mod2 6b'!E116 -> 0 | F116: =LOOKUP($F$10,'mod2 6b'!$F$10:$Q$10,'mod2 6b'!F116:Q116) -> 0 | G116: =LOOKUP($G$10,'mod2 6b'!$F$10:$Q$10,'mod2 6b'!F116:Q116) -> 0 | H116: ='mod2 6b'!R116 -> 0 | I116: ='mod2 6b'!S116 -> 0 | J116: ='mod2 6b'!T116 -> 0
A117: ='mod2 6b'!A117 -> 10 | B117: ='mod2 6b'!B117 -> 0 | C117: ='mod2 6b'!C117 -> 0 | D117: ='mod2 6b'!D117 -> 0 | E117: ='mod2 6b'!E117 -> 0 | F117: =LOOKUP($F$10,'mod2 6b'!$F$10:$Q$10,'mod2 6b'!F117:Q117) -> 0 | G117: =LOOKUP($G$10,'mod2 6b'!$F$10:$Q$10,'mod2 6b'!F117:Q117) -> 0 | H117: ='mod2 6b'!R117 -> 0 | I117: ='mod2 6b'!S117 -> 0 | J117: ='mod2 6b'!T117 -> 0
A118: ='mod2 6b'!A118 -> 10 | B118: ='mod2 6b'!B118 -> 0 | C118: ='mod2 6b'!C118 -> 0 | D118: ='mod2 6b'!D118 -> 0 | E118: ='mod2 6b'!E118 -> 0 | F118: =LOOKUP($F$10,'mod2 6b'!$F$10:$Q$10,'mod2 6b'!F118:Q118) -> 0 | G118: =LOOKUP($G$10,'mod2 6b'!$F$10:$Q$10,'mod2 6b'!F118:Q118) -> 0 | H118: ='mod2 6b'!R118 -> 0 | I118: ='mod2 6b'!S118 -> 0 | J118: ='mod2 6b'!T118 -> 0
A119: ='mod2 6b'!A119 -> 10 | B119: ='mod2 6b'!B119 -> 0 | C119: ='mod2 6b'!C119 -> 0 | D119: ='mod2 6b'!D119 -> 0 | E119: ='mod2 6b'!E119 -> 0 | F119: =LOOKUP($F$10,'mod2 6b'!$F$10:$Q$10,'mod2 6b'!F119:Q119) -> 0 | G119: =LOOKUP($G$10,'mod2 6b'!$F$10:$Q$10,'mod2 6b'!F119:Q119) -> 0 | H119: ='mod2 6b'!R119 -> 0 | I119: ='mod2 6b'!S119 -> 0 | J119: ='mod2 6b'!T119 -> 0
A120: ='mod2 6b'!A120 -> 10 | B120: ='mod2 6b'!B120 -> 0 | C120: ='mod2 6b'!C120 -> 0 | D120: ='mod2 6b'!D120 -> 0 | E120: ='mod2 6b'!E120 -> 0 | F120: =LOOKUP($F$10,'mod2 6b'!$F$10:$Q$10,'mod2 6b'!F120:Q120) -> 0 | G120: =LOOKUP($G$10,'mod2 6b'!$F$10:$Q$10,'mod2 6b'!F120:Q120) -> 0 | H120: ='mod2 6b'!R120 -> 0 | I120: ='mod2 6b'!S120 -> 0 | J120: ='mod2 6b'!T120 -> 0
A121: ='mod2 6b'!A121 -> 10 | B121: ='mod2 6b'!B121 -> 0 | C121: ='mod2 6b'!C121 -> 0 | D121: ='mod2 6b'!D121 -> 0 | E121: ='mod2 6b'!E121 -> 0 | F121: =LOOKUP($F$10,'mod2 6b'!$F$10:$Q$10,'mod2 6b'!F121:Q121) -> 0 | G121: =LOOKUP($G$10,'mod2 6b'!$F$10:$Q$10,'mod2 6b'!F121:Q121) -> 0 | H121: ='mod2 6b'!R121 -> 0 | I121: ='mod2 6b'!S121 -> 0 | J121: ='mod2 6b'!T121 -> 0
A122: ='mod2 6b'!A122 -> 10 | B122: ='mod2 6b'!B122 -> 0 | C122: ='mod2 6b'!C122 -> 0 | D122: ='mod2 6b'!D122 -> 0 | E122: ='mod2 6b'!E122 -> 0 | F122: =LOOKUP($F$10,'mod2 6b'!$F$10:$Q$10,'mod2 6b'!F122:Q122) -> 0 | G122: =LOOKUP($G$10,'mod2 6b'!$F$10:$Q$10,'mod2 6b'!F122:Q122) -> 0 | H122: ='mod2 6b'!R122 -> 0 | I122: ='mod2 6b'!S122 -> 0 | J122: ='mod2 6b'!T122 -> 0
A123: ='mod2 6b'!A123 -> 10 | B123: ='mod2 6b'!B123 -> 0 | C123: ='mod2 6b'!C123 -> 0 | D123: ='mod2 6b'!D123 -> 0 | E123: ='mod2 6b'!E123 -> 0 | F123: =LOOKUP($F$10,'mod2 6b'!$F$10:$Q$10,'mod2 6b'!F123:Q123) -> 0 | G123: =LOOKUP($G$10,'mod2 6b'!$F$10:$Q$10,'mod2 6b'!F123:Q123) -> 0 | H123: ='mod2 6b'!R123 -> 0 | I123: ='mod2 6b'!S123 -> 0 | J123: ='mod2 6b'!T123 -> 0
A124: ='mod2 6b'!A124 -> 11 | B124: ='mod2 6b'!B124 -> 0 | C124: ='mod2 6b'!C124 -> TRABALHO | D124: ='mod2 6b'!D124 -> 0 | E124: ='mod2 6b'!E124 -> 0 | F124: =LOOKUP($F$10,'mod2 6b'!$F$10:$Q$10,'mod2 6b'!F124:Q124) -> 0 | G124: =LOOKUP($G$10,'mod2 6b'!$F$10:$Q$10,'mod2 6b'!F124:Q124) -> 0 | H124: ='mod2 6b'!R124 -> 0 | I124: ='mod2 6b'!S124 -> 0 | J124: ='mod2 6b'!T124 -> 0
A125: ='mod2 6b'!A125 -> 11 | B125: ='mod2 6b'!B125 -> 331 | C125: ='mod2 6b'!C125 -> Proteção e Benefícios ao Trabalhador | D125: ='mod2 6b'!D125 -> 0 | E125: ='mod2 6b'!E125 -> 0 | F125: =LOOKUP($F$10,'mod2 6b'!$F$10:$Q$10,'mod2 6b'!F125:Q125) -> 0 | G125: =LOOKUP($G$10,'mod2 6b'!$F$10:$Q$10,'mod2 6b'!F125:Q125) -> 0 | H125: ='mod2 6b'!R125 -> 0 | I125: ='mod2 6b'!S125 -> 0 | J125: ='mod2 6b'!T125 -> 0
A126: ='mod2 6b'!A126 -> 11 | B126: ='mod2 6b'!B126 -> 332 | C126: ='mod2 6b'!C126 -> Relações de Trabalho | D126: ='mod2 6b'!D126 -> 0 | E126: ='mod2 6b'!E126 -> 0 | F126: =LOOKUP($F$10,'mod2 6b'!$F$10:$Q$10,'mod2 6b'!F126:Q126) -> 0 | G126: =LOOKUP($G$10,'mod2 6b'!$F$10:$Q$10,'mod2 6b'!F126:Q126) -> 0 | H126: ='mod2 6b'!R126 -> 0 | I126: ='mod2 6b'!S126 -> 0 | J126: ='mod2 6b'!T126 -> 0
A127: ='mod2 6b'!A127 -> 11 | B127: ='mod2 6b'!B127 -> 333 | C127: ='mod2 6b'!C127 -> Empregabilidade | D127: ='mod2 6b'!D127 -> 0 | E127: ='mod2 6b'!E127 -> 0 | F127: =LOOKUP($F$10,'mod2 6b'!$F$10:$Q$10,'mod2 6b'!F127:Q127) -> 0 | G127: =LOOKUP($G$10,'mod2 6b'!$F$10:$Q$10,'mod2 6b'!F127:Q127) -> 0 | H127: ='mod2 6b'!R127 -> 0 | I127: ='mod2 6b'!S127 -> 0 | J127: ='mod2 6b'!T127 -> 0
A128: ='mod2 6b'!A128 -> 11 | B128: ='mod2 6b'!B128 -> 334 | C128: ='mod2 6b'!C128 -> Fomento ao Trabalho | D128: ='mod2 6b'!D128 -> 0 | E128: ='mod2 6b'!E128 -> 0 | F128: =LOOKUP($F$10,'mod2 6b'!$F$10:$Q$10,'mod2 6b'!F128:Q128) -> 0 | G128: =LOOKUP($G$10,'mod2 6b'!$F$10:$Q$10,'mod2 6b'!F128:Q128) -> 0 | H128: ='mod2 6b'!R128 -> 0 | I128: ='mod2 6b'!S128 -> 0 | J128: ='mod2 6b'!T128 -> 0
A129: ='mod2 6b'!A129 -> 11 | B129: ='mod2 6b'!B129 -> 0 | C129: ='mod2 6b'!C129 -> 0 | D129: ='mod2 6b'!D129 -> 0 | E129: ='mod2 6b'!E129 -> 0 | F129: =LOOKUP($F$10,'mod2 6b'!$F$10:$Q$10,'mod2 6b'!F129:Q129) -> 0 | G129: =LOOKUP($G$10,'mod2 6b'!$F$10:$Q$10,'mod2 6b'!F129:Q129) -> 0 | H129: ='mod2 6b'!R129 -> 0 | I129: ='mod2 6b'!S129 -> 0 | J129: ='mod2 6b'!T129 -> 0
A130: ='mod2 6b'!A130 -> 11 | B130: ='mod2 6b'!B130 -> 0 | C130: ='mod2 6b'!C130 -> 0 | D130: ='mod2 6b'!D130 -> 0 | E130: ='mod2 6b'!E130 -> 0 | F130: =LOOKUP($F$10,'mod2 6b'!$F$10:$Q$10,'mod2 6b'!F130:Q130) -> 0 | G130: =LOOKUP($G$10,'mod2 6b'!$F$10:$Q$10,'mod2 6b'!F130:Q130) -> 0 | H130: ='mod2 6b'!R130 -> 0 | I130: ='mod2 6b'!S130 -> 0 | J130: ='mod2 6b'!T130 -> 0
A131: ='mod2 6b'!A131 -> 11 | B131: ='mod2 6b'!B131 -> 0 | C131: ='mod2 6b'!C131 -> 0 | D131: ='mod2 6b'!D131 -> 0 | E131: ='mod2 6b'!E131 -> 0 | F131: =LOOKUP($F$10,'mod2 6b'!$F$10:$Q$10,'mod2 6b'!F131:Q131) -> 0 | G131: =LOOKUP($G$10,'mod2 6b'!$F$10:$Q$10,'mod2 6b'!F131:Q131) -> 0 | H131: ='mod2 6b'!R131 -> 0 | I131: ='mod2 6b'!S131 -> 0 | J131: ='mod2 6b'!T131 -> 0
A132: ='mod2 6b'!A132 -> 11 | B132: ='mod2 6b'!B132 -> 0 | C132: ='mod2 6b'!C132 -> 0 | D132: ='mod2 6b'!D132 -> 0 | E132: ='mod2 6b'!E132 -> 0 | F132: =LOOKUP($F$10,'mod2 6b'!$F$10:$Q$10,'mod2 6b'!F132:Q132) -> 0 | G132: =LOOKUP($G$10,'mod2 6b'!$F$10:$Q$10,'mod2 6b'!F132:Q132) -> 0 | H132: ='mod2 6b'!R132 -> 0 | I132: ='mod2 6b'!S132 -> 0 | J132: ='mod2 6b'!T132 -> 0
A133: ='mod2 6b'!A133 -> 11 | B133: ='mod2 6b'!B133 -> 0 | C133: ='mod2 6b'!C133 -> 0 | D133: ='mod2 6b'!D133 -> 0 | E133: ='mod2 6b'!E133 -> 0 | F133: =LOOKUP($F$10,'mod2 6b'!$F$10:$Q$10,'mod2 6b'!F133:Q133) -> 0 | G133: =LOOKUP($G$10,'mod2 6b'!$F$10:$Q$10,'mod2 6b'!F133:Q133) -> 0 | H133: ='mod2 6b'!R133 -> 0 | I133: ='mod2 6b'!S133 -> 0 | J133: ='mod2 6b'!T133 -> 0
A134: ='mod2 6b'!A134 -> 12 | B134: ='mod2 6b'!B134 -> 0 | C134: ='mod2 6b'!C134 -> EDUCAÇÃO | D134: ='mod2 6b'!D134 -> 0 | E134: ='mod2 6b'!E134 -> 0 | F134: =LOOKUP($F$10,'mod2 6b'!$F$10:$Q$10,'mod2 6b'!F134:Q134) -> 0 | G134: =LOOKUP($G$10,'mod2 6b'!$F$10:$Q$10,'mod2 6b'!F134:Q134) -> 0 | H134: ='mod2 6b'!R134 -> 0 | I134: ='mod2 6b'!S134 -> 0 | J134: ='mod2 6b'!T134 -> 0
A135: ='mod2 6b'!A135 -> 12 | B135: ='mod2 6b'!B135 -> 361 | C135: ='mod2 6b'!C135 -> Ensino Fundamental | D135: ='mod2 6b'!D135 -> 0 | E135: ='mod2 6b'!E135 -> 0 | F135: =LOOKUP($F$10,'mod2 6b'!$F$10:$Q$10,'mod2 6b'!F135:Q135) -> 0 | G135: =LOOKUP($G$10,'mod2 6b'!$F$10:$Q$10,'mod2 6b'!F135:Q135) -> 0 | H135: ='mod2 6b'!R135 -> 0 | I135: ='mod2 6b'!S135 -> 0 | J135: ='mod2 6b'!T135 -> 0
A136: ='mod2 6b'!A136 -> 12 | B136: ='mod2 6b'!B136 -> 362 | C136: ='mod2 6b'!C136 -> Ensino Médio | D136: ='mod2 6b'!D136 -> 0 | E136: ='mod2 6b'!E136 -> 0 | F136: =LOOKUP($F$10,'mod2 6b'!$F$10:$Q$10,'mod2 6b'!F136:Q136) -> 0 | G136: =LOOKUP($G$10,'mod2 6b'!$F$10:$Q$10,'mod2 6b'!F136:Q136) -> 0 | H136: ='mod2 6b'!R136 -> 0 | I136: ='mod2 6b'!S136 -> 0 | J136: ='mod2 6b'!T136 -> 0
A137: ='mod2 6b'!A137 -> 12 | B137: ='mod2 6b'!B137 -> 363 | C137: ='mod2 6b'!C137 -> Ensino Profissional | D137: ='mod2 6b'!D137 -> 0 | E137: ='mod2 6b'!E137 -> 0 | F137: =LOOKUP($F$10,'mod2 6b'!$F$10:$Q$10,'mod2 6b'!F137:Q137) -> 0 | G137: =LOOKUP($G$10,'mod2 6b'!$F$10:$Q$10,'mod2 6b'!F137:Q137) -> 0 | H137: ='mod2 6b'!R137 -> 0 | I137: ='mod2 6b'!S137 -> 0 | J137: ='mod2 6b'!T137 -> 0
A138: ='mod2 6b'!A138 -> 12 | B138: ='mod2 6b'!B138 -> 364 | C138: ='mod2 6b'!C138 -> Ensino Superior | D138: ='mod2 6b'!D138 -> 0 | E138: ='mod2 6b'!E138 -> 0 | F138: =LOOKUP($F$10,'mod2 6b'!$F$10:$Q$10,'mod2 6b'!F138:Q138) -> 0 | G138: =LOOKUP($G$10,'mod2 6b'!$F$10:$Q$10,'mod2 6b'!F138:Q138) -> 0 | H138: ='mod2 6b'!R138 -> 0 | I138: ='mod2 6b'!S138 -> 0 | J138: ='mod2 6b'!T138 -> 0
A139: ='mod2 6b'!A139 -> 12 | B139: ='mod2 6b'!B139 -> 365 | C139: ='mod2 6b'!C139 -> Educação Infantil | D139: ='mod2 6b'!D139 -> 0 | E139: ='mod2 6b'!E139 -> 0 | F139: =LOOKUP($F$10,'mod2 6b'!$F$10:$Q$10,'mod2 6b'!F139:Q139) -> 0 | G139: =LOOKUP($G$10,'mod2 6b'!$F$10:$Q$10,'mod2 6b'!F139:Q139) -> 0 | H139: ='mod2 6b'!R139 -> 0 | I139: ='mod2 6b'!S139 -> 0 | J139: ='mod2 6b'!T139 -> 0
A140: ='mod2 6b'!A140 -> 12 | B140: ='mod2 6b'!B140 -> 366 | C140: ='mod2 6b'!C140 -> Educação de Jovens e Adultos | D140: ='mod2 6b'!D140 -> 0 | E140: ='mod2 6b'!E140 -> 0 | F140: =LOOKUP($F$10,'mod2 6b'!$F$10:$Q$10,'mod2 6b'!F140:Q140) -> 0 | G140: =LOOKUP($G$10,'mod2 6b'!$F$10:$Q$10,'mod2 6b'!F140:Q140) -> 0 | H140: ='mod2 6b'!R140 -> 0 | I140: ='mod2 6b'!S140 -> 0 | J140: ='mod2 6b'!T140 -> 0
A141: ='mod2 6b'!A141 -> 12 | B141: ='mod2 6b'!B141 -> 367 | C141: ='mod2 6b'!C141 -> Educação Especial | D141: ='mod2 6b'!D141 -> 0 | E141: ='mod2 6b'!E141 -> 0 | F141: =LOOKUP($F$10,'mod2 6b'!$F$10:$Q$10,'mod2 6b'!F141:Q141) -> 0 | G141: =LOOKUP($G$10,'mod2 6b'!$F$10:$Q$10,'mod2 6b'!F141:Q141) -> 0 | H141: ='mod2 6b'!R141 -> 0 | I141: ='mod2 6b'!S141 -> 0 | J141: ='mod2 6b'!T141 -> 0
A142: ='mod2 6b'!A142 -> 12 | B142: ='mod2 6b'!B142 -> 0 | C142: ='mod2 6b'!C142 -> 0 | D142: ='mod2 6b'!D142 -> 0 | E142: ='mod2 6b'!E142 -> 0 | F142: =LOOKUP($F$10,'mod2 6b'!$F$10:$Q$10,'mod2 6b'!F142:Q142) -> 0 | G142: =LOOKUP($G$10,'mod2 6b'!$F$10:$Q$10,'mod2 6b'!F142:Q142) -> 0 | H142: ='mod2 6b'!R142 -> 0 | I142: ='mod2 6b'!S142 -> 0 | J142: ='mod2 6b'!T142 -> 0
A143: ='mod2 6b'!A143 -> 12 | B143: ='mod2 6b'!B143 -> 0 | C143: ='mod2 6b'!C143 -> 0 | D143: ='mod2 6b'!D143 -> 0 | E143: ='mod2 6b'!E143 -> 0 | F143: =LOOKUP($F$10,'mod2 6b'!$F$10:$Q$10,'mod2 6b'!F143:Q143) -> 0 | G143: =LOOKUP($G$10,'mod2 6b'!$F$10:$Q$10,'mod2 6b'!F143:Q143) -> 0 | H143: ='mod2 6b'!R143 -> 0 | I143: ='mod2 6b'!S143 -> 0 | J143: ='mod2 6b'!T143 -> 0
A144: ='mod2 6b'!A144 -> 12 | B144: ='mod2 6b'!B144 -> 0 | C144: ='mod2 6b'!C144 -> 0 | D144: ='mod2 6b'!D144 -> 0 | E144: ='mod2 6b'!E144 -> 0 | F144: =LOOKUP($F$10,'mod2 6b'!$F$10:$Q$10,'mod2 6b'!F144:Q144) -> 0 | G144: =LOOKUP($G$10,'mod2 6b'!$F$10:$Q$10,'mod2 6b'!F144:Q144) -> 0 | H144: ='mod2 6b'!R144 -> 0 | I144: ='mod2 6b'!S144 -> 0 | J144: ='mod2 6b'!T144 -> 0
A145: ='mod2 6b'!A145 -> 12 | B145: ='mod2 6b'!B145 -> 0 | C145: ='mod2 6b'!C145 -> 0 | D145: ='mod2 6b'!D145 -> 0 | E145: ='mod2 6b'!E145 -> 0 | F145: =LOOKUP($F$10,'mod2 6b'!$F$10:$Q$10,'mod2 6b'!F145:Q145) -> 0 | G145: =LOOKUP($G$10,'mod2 6b'!$F$10:$Q$10,'mod2 6b'!F145:Q145) -> 0 | H145: ='mod2 6b'!R145 -> 0 | I145: ='mod2 6b'!S145 -> 0 | J145: ='mod2 6b'!T145 -> 0
A146: ='mod2 6b'!A146 -> 12 | B146: ='mod2 6b'!B146 -> 0 | C146: ='mod2 6b'!C146 -> 0 | D146: ='mod2 6b'!D146 -> 0 | E146: ='mod2 6b'!E146 -> 0 | F146: =LOOKUP($F$10,'mod2 6b'!$F$10:$Q$10,'mod2 6b'!F146:Q146) -> 0 | G146: =LOOKUP($G$10,'mod2 6b'!$F$10:$Q$10,'mod2 6b'!F146:Q146) -> 0 | H146: ='mod2 6b'!R146 -> 0 | I146: ='mod2 6b'!S146 -> 0 | J146: ='mod2 6b'!T146 -> 0
A147: ='mod2 6b'!A147 -> 12 | B147: ='mod2 6b'!B147 -> 0 | C147: ='mod2 6b'!C147 -> 0 | D147: ='mod2 6b'!D147 -> 0 | E147: ='mod2 6b'!E147 -> 0 | F147: =LOOKUP($F$10,'mod2 6b'!$F$10:$Q$10,'mod2 6b'!F147:Q147) -> 0 | G147: =LOOKUP($G$10,'mod2 6b'!$F$10:$Q$10,'mod2 6b'!F147:Q147) -> 0 | H147: ='mod2 6b'!R147 -> 0 | I147: ='mod2 6b'!S147 -> 0 | J147: ='mod2 6b'!T147 -> 0
A148: ='mod2 6b'!A148 -> 12 | B148: ='mod2 6b'!B148 -> 0 | C148: ='mod2 6b'!C148 -> 0 | D148: ='mod2 6b'!D148 -> 0 | E148: ='mod2 6b'!E148 -> 0 | F148: =LOOKUP($F$10,'mod2 6b'!$F$10:$Q$10,'mod2 6b'!F148:Q148) -> 0 | G148: =LOOKUP($G$10,'mod2 6b'!$F$10:$Q$10,'mod2 6b'!F148:Q148) -> 0 | H148: ='mod2 6b'!R148 -> 0 | I148: ='mod2 6b'!S148 -> 0 | J148: ='mod2 6b'!T148 -> 0
A149: ='mod2 6b'!A149 -> 12 | B149: ='mod2 6b'!B149 -> 0 | C149: ='mod2 6b'!C149 -> 0 | D149: ='mod2 6b'!D149 -> 0 | E149: ='mod2 6b'!E149 -> 0 | F149: =LOOKUP($F$10,'mod2 6b'!$F$10:$Q$10,'mod2 6b'!F149:Q149) -> 0 | G149: =LOOKUP($G$10,'mod2 6b'!$F$10:$Q$10,'mod2 6b'!F149:Q149) -> 0 | H149: ='mod2 6b'!R149 -> 0 | I149: ='mod2 6b'!S149 -> 0 | J149: ='mod2 6b'!T149 -> 0
A150: ='mod2 6b'!A150 -> 12 | B150: ='mod2 6b'!B150 -> 0 | C150: ='mod2 6b'!C150 -> 0 | D150: ='mod2 6b'!D150 -> 0 | E150: ='mod2 6b'!E150 -> 0 | F150: =LOOKUP($F$10,'mod2 6b'!$F$10:$Q$10,'mod2 6b'!F150:Q150) -> 0 | G150: =LOOKUP($G$10,'mod2 6b'!$F$10:$Q$10,'mod2 6b'!F150:Q150) -> 0 | H150: ='mod2 6b'!R150 -> 0 | I150: ='mod2 6b'!S150 -> 0 | J150: ='mod2 6b'!T150 -> 0
A151: ='mod2 6b'!A151 -> 12 | B151: ='mod2 6b'!B151 -> 0 | C151: ='mod2 6b'!C151 -> 0 | D151: ='mod2 6b'!D151 -> 0 | E151: ='mod2 6b'!E151 -> 0 | F151: =LOOKUP($F$10,'mod2 6b'!$F$10:$Q$10,'mod2 6b'!F151:Q151) -> 0 | G151: =LOOKUP($G$10,'mod2 6b'!$F$10:$Q$10,'mod2 6b'!F151:Q151) -> 0 | H151: ='mod2 6b'!R151 -> 0 | I151: ='mod2 6b'!S151 -> 0 | J151: ='mod2 6b'!T151 -> 0
A152: ='mod2 6b'!A152 -> 12 | B152: ='mod2 6b'!B152 -> 0 | C152: ='mod2 6b'!C152 -> 0 | D152: ='mod2 6b'!D152 -> 0 | E152: ='mod2 6b'!E152 -> 0 | F152: =LOOKUP($F$10,'mod2 6b'!$F$10:$Q$10,'mod2 6b'!F152:Q152) -> 0 | G152: =LOOKUP($G$10,'mod2 6b'!$F$10:$Q$10,'mod2 6b'!F152:Q152) -> 0 | H152: ='mod2 6b'!R152 -> 0 | I152: ='mod2 6b'!S152 -> 0 | J152: ='mod2 6b'!T152 -> 0
A153: ='mod2 6b'!A153 -> 13 | B153: ='mod2 6b'!B153 -> 0 | C153: ='mod2 6b'!C153 -> CULTURA | D153: ='mod2 6b'!D153 -> 0 | E153: ='mod2 6b'!E153 -> 0 | F153: =LOOKUP($F$10,'mod2 6b'!$F$10:$Q$10,'mod2 6b'!F153:Q153) -> 0 | G153: =LOOKUP($G$10,'mod2 6b'!$F$10:$Q$10,'mod2 6b'!F153:Q153) -> 0 | H153: ='mod2 6b'!R153 -> 0 | I153: ='mod2 6b'!S153 -> 0 | J153: ='mod2 6b'!T153 -> 0
A154: ='mod2 6b'!A154 -> 13 | B154: ='mod2 6b'!B154 -> 391 | C154: ='mod2 6b'!C154 -> Patr. Histórico, Artístico e Arqueológico | D154: ='mod2 6b'!D154 -> 0 | E154: ='mod2 6b'!E154 -> 0 | F154: =LOOKUP($F$10,'mod2 6b'!$F$10:$Q$10,'mod2 6b'!F154:Q154) -> 0 | G154: =LOOKUP($G$10,'mod2 6b'!$F$10:$Q$10,'mod2 6b'!F154:Q154) -> 0 | H154: ='mod2 6b'!R154 -> 0 | I154: ='mod2 6b'!S154 -> 0 | J154: ='mod2 6b'!T154 -> 0
A155: ='mod2 6b'!A155 -> 13 | B155: ='mod2 6b'!B155 -> 392 | C155: ='mod2 6b'!C155 -> Difusão Cultural | D155: ='mod2 6b'!D155 -> 0 | E155: ='mod2 6b'!E155 -> 0 | F155: =LOOKUP($F$10,'mod2 6b'!$F$10:$Q$10,'mod2 6b'!F155:Q155) -> 0 | G155: =LOOKUP($G$10,'mod2 6b'!$F$10:$Q$10,'mod2 6b'!F155:Q155) -> 0 | H155: ='mod2 6b'!R155 -> 0 | I155: ='mod2 6b'!S155 -> 0 | J155: ='mod2 6b'!T155 -> 0
A156: ='mod2 6b'!A156 -> 13 | B156: ='mod2 6b'!B156 -> 0 | C156: ='mod2 6b'!C156 -> 0 | D156: ='mod2 6b'!D156 -> 0 | E156: ='mod2 6b'!E156 -> 0 | F156: =LOOKUP($F$10,'mod2 6b'!$F$10:$Q$10,'mod2 6b'!F156:Q156) -> 0 | G156: =LOOKUP($G$10,'mod2 6b'!$F$10:$Q$10,'mod2 6b'!F156:Q156) -> 0 | H156: ='mod2 6b'!R156 -> 0 | I156: ='mod2 6b'!S156 -> 0 | J156: ='mod2 6b'!T156 -> 0
A157: ='mod2 6b'!A157 -> 13 | B157: ='mod2 6b'!B157 -> 0 | C157: ='mod2 6b'!C157 -> 0 | D157: ='mod2 6b'!D157 -> 0 | E157: ='mod2 6b'!E157 -> 0 | F157: =LOOKUP($F$10,'mod2 6b'!$F$10:$Q$10,'mod2 6b'!F157:Q157) -> 0 | G157: =LOOKUP($G$10,'mod2 6b'!$F$10:$Q$10,'mod2 6b'!F157:Q157) -> 0 | H157: ='mod2 6b'!R157 -> 0 | I157: ='mod2 6b'!S157 -> 0 | J157: ='mod2 6b'!T157 -> 0
A158: ='mod2 6b'!A158 -> 13 | B158: ='mod2 6b'!B158 -> 0 | C158: ='mod2 6b'!C158 -> 0 | D158: ='mod2 6b'!D158 -> 0 | E158: ='mod2 6b'!E158 -> 0 | F158: =LOOKUP($F$10,'mod2 6b'!$F$10:$Q$10,'mod2 6b'!F158:Q158) -> 0 | G158: =LOOKUP($G$10,'mod2 6b'!$F$10:$Q$10,'mod2 6b'!F158:Q158) -> 0 | H158: ='mod2 6b'!R158 -> 0 | I158: ='mod2 6b'!S158 -> 0 | J158: ='mod2 6b'!T158 -> 0
A159: ='mod2 6b'!A159 -> 13 | B159: ='mod2 6b'!B159 -> 0 | C159: ='mod2 6b'!C159 -> 0 | D159: ='mod2 6b'!D159 -> 0 | E159: ='mod2 6b'!E159 -> 0 | F159: =LOOKUP($F$10,'mod2 6b'!$F$10:$Q$10,'mod2 6b'!F159:Q159) -> 0 | G159: =LOOKUP($G$10,'mod2 6b'!$F$10:$Q$10,'mod2 6b'!F159:Q159) -> 0 | H159: ='mod2 6b'!R159 -> 0 | I159: ='mod2 6b'!S159 -> 0 | J159: ='mod2 6b'!T159 -> 0
A160: ='mod2 6b'!A160 -> 13 | B160: ='mod2 6b'!B160 -> 0 | C160: ='mod2 6b'!C160 -> 0 | D160: ='mod2 6b'!D160 -> 0 | E160: ='mod2 6b'!E160 -> 0 | F160: =LOOKUP($F$10,'mod2 6b'!$F$10:$Q$10,'mod2 6b'!F160:Q160) -> 0 | G160: =LOOKUP($G$10,'mod2 6b'!$F$10:$Q$10,'mod2 6b'!F160:Q160) -> 0 | H160: ='mod2 6b'!R160 -> 0 | I160: ='mod2 6b'!S160 -> 0 | J160: ='mod2 6b'!T160 -> 0
A161: ='mod2 6b'!A161 -> 13 | B161: ='mod2 6b'!B161 -> 0 | C161: ='mod2 6b'!C161 -> 0 | D161: ='mod2 6b'!D161 -> 0 | E161: ='mod2 6b'!E161 -> 0 | F161: =LOOKUP($F$10,'mod2 6b'!$F$10:$Q$10,'mod2 6b'!F161:Q161) -> 0 | G161: =LOOKUP($G$10,'mod2 6b'!$F$10:$Q$10,'mod2 6b'!F161:Q161) -> 0 | H161: ='mod2 6b'!R161 -> 0 | I161: ='mod2 6b'!S161 -> 0 | J161: ='mod2 6b'!T161 -> 0
A162: ='mod2 6b'!A162 -> 13 | B162: ='mod2 6b'!B162 -> 0 | C162: ='mod2 6b'!C162 -> 0 | D162: ='mod2 6b'!D162 -> 0 | E162: ='mod2 6b'!E162 -> 0 | F162: =LOOKUP($F$10,'mod2 6b'!$F$10:$Q$10,'mod2 6b'!F162:Q162) -> 0 | G162: =LOOKUP($G$10,'mod2 6b'!$F$10:$Q$10,'mod2 6b'!F162:Q162) -> 0 | H162: ='mod2 6b'!R162 -> 0 | I162: ='mod2 6b'!S162 -> 0 | J162: ='mod2 6b'!T162 -> 0
A163: ='mod2 6b'!A163 -> 13 | B163: ='mod2 6b'!B163 -> 0 | C163: ='mod2 6b'!C163 -> 0 | D163: ='mod2 6b'!D163 -> 0 | E163: ='mod2 6b'!E163 -> 0 | F163: =LOOKUP($F$10,'mod2 6b'!$F$10:$Q$10,'mod2 6b'!F163:Q163) -> 0 | G163: =LOOKUP($G$10,'mod2 6b'!$F$10:$Q$10,'mod2 6b'!F163:Q163) -> 0 | H163: ='mod2 6b'!R163 -> 0 | I163: ='mod2 6b'!S163 -> 0 | J163: ='mod2 6b'!T163 -> 0
A164: ='mod2 6b'!A164 -> 13 | B164: ='mod2 6b'!B164 -> 0 | C164: ='mod2 6b'!C164 -> 0 | D164: ='mod2 6b'!D164 -> 0 | E164: ='mod2 6b'!E164 -> 0 | F164: =LOOKUP($F$10,'mod2 6b'!$F$10:$Q$10,'mod2 6b'!F164:Q164) -> 0 | G164: =LOOKUP($G$10,'mod2 6b'!$F$10:$Q$10,'mod2 6b'!F164:Q164) -> 0 | H164: ='mod2 6b'!R164 -> 0 | I164: ='mod2 6b'!S164 -> 0 | J164: ='mod2 6b'!T164 -> 0
A165: ='mod2 6b'!A165 -> 13 | B165: ='mod2 6b'!B165 -> 0 | C165: ='mod2 6b'!C165 -> 0 | D165: ='mod2 6b'!D165 -> 0 | E165: ='mod2 6b'!E165 -> 0 | F165: =LOOKUP($F$10,'mod2 6b'!$F$10:$Q$10,'mod2 6b'!F165:Q165) -> 0 | G165: =LOOKUP($G$10,'mod2 6b'!$F$10:$Q$10,'mod2 6b'!F165:Q165) -> 0 | H165: ='mod2 6b'!R165 -> 0 | I165: ='mod2 6b'!S165 -> 0 | J165: ='mod2 6b'!T165 -> 0
A166: ='mod2 6b'!A166 -> 13 | B166: ='mod2 6b'!B166 -> 0 | C166: ='mod2 6b'!C166 -> 0 | D166: ='mod2 6b'!D166 -> 0 | E166: ='mod2 6b'!E166 -> 0 | F166: =LOOKUP($F$10,'mod2 6b'!$F$10:$Q$10,'mod2 6b'!F166:Q166) -> 0 | G166: =LOOKUP($G$10,'mod2 6b'!$F$10:$Q$10,'mod2 6b'!F166:Q166) -> 0 | H166: ='mod2 6b'!R166 -> 0 | I166: ='mod2 6b'!S166 -> 0 | J166: ='mod2 6b'!T166 -> 0
A167: ='mod2 6b'!A167 -> 14 | B167: ='mod2 6b'!B167 -> 0 | C167: ='mod2 6b'!C167 -> DIRETORIA DA CIDADANIA | D167: ='mod2 6b'!D167 -> 0 | E167: ='mod2 6b'!E167 -> 0 | F167: =LOOKUP($F$10,'mod2 6b'!$F$10:$Q$10,'mod2 6b'!F167:Q167) -> 0 | G167: =LOOKUP($G$10,'mod2 6b'!$F$10:$Q$10,'mod2 6b'!F167:Q167) -> 0 | H167: ='mod2 6b'!R167 -> 0 | I167: ='mod2 6b'!S167 -> 0 | J167: ='mod2 6b'!T167 -> 0
A168: ='mod2 6b'!A168 -> 14 | B168: ='mod2 6b'!B168 -> 421 | C168: ='mod2 6b'!C168 -> Custódia e Reintegração Social | D168: ='mod2 6b'!D168 -> 0 | E168: ='mod2 6b'!E168 -> 0 | F168: =LOOKUP($F$10,'mod2 6b'!$F$10:$Q$10,'mod2 6b'!F168:Q168) -> 0 | G168: =LOOKUP($G$10,'mod2 6b'!$F$10:$Q$10,'mod2 6b'!F168:Q168) -> 0 | H168: ='mod2 6b'!R168 -> 0 | I168: ='mod2 6b'!S168 -> 0 | J168: ='mod2 6b'!T168 -> 0
A169: ='mod2 6b'!A169 -> 14 | B169: ='mod2 6b'!B169 -> 422 | C169: ='mod2 6b'!C169 -> Direitos Individuais, Coletivos e Difusos | D169: ='mod2 6b'!D169 -> 0 | E169: ='mod2 6b'!E169 -> 0 | F169: =LOOKUP($F$10,'mod2 6b'!$F$10:$Q$10,'mod2 6b'!F169:Q169) -> 0 | G169: =LOOKUP($G$10,'mod2 6b'!$F$10:$Q$10,'mod2 6b'!F169:Q169) -> 0 | H169: ='mod2 6b'!R169 -> 0 | I169: ='mod2 6b'!S169 -> 0 | J169: ='mod2 6b'!T169 -> 0
A170: ='mod2 6b'!A170 -> 14 | B170: ='mod2 6b'!B170 -> 423 | C170: ='mod2 6b'!C170 -> Assistência aos Povos Indígenas | D170: ='mod2 6b'!D170 -> 0 | E170: ='mod2 6b'!E170 -> 0 | F170: =LOOKUP($F$10,'mod2 6b'!$F$10:$Q$10,'mod2 6b'!F170:Q170) -> 0 | G170: =LOOKUP($G$10,'mod2 6b'!$F$10:$Q$10,'mod2 6b'!F170:Q170) -> 0 | H170: ='mod2 6b'!R170 -> 0 | I170: ='mod2 6b'!S170 -> 0 | J170: ='mod2 6b'!T170 -> 0
A171: ='mod2 6b'!A171 -> 14 | B171: ='mod2 6b'!B171 -> 0 | C171: ='mod2 6b'!C171 -> 0 | D171: ='mod2 6b'!D171 -> 0 | E171: ='mod2 6b'!E171 -> 0 | F171: =LOOKUP($F$10,'mod2 6b'!$F$10:$Q$10,'mod2 6b'!F171:Q171) -> 0 | G171: =LOOKUP($G$10,'mod2 6b'!$F$10:$Q$10,'mod2 6b'!F171:Q171) -> 0 | H171: ='mod2 6b'!R171 -> 0 | I171: ='mod2 6b'!S171 -> 0 | J171: ='mod2 6b'!T171 -> 0
A172: ='mod2 6b'!A172 -> 14 | B172: ='mod2 6b'!B172 -> 0 | C172: ='mod2 6b'!C172 -> 0 | D172: ='mod2 6b'!D172 -> 0 | E172: ='mod2 6b'!E172 -> 0 | F172: =LOOKUP($F$10,'mod2 6b'!$F$10:$Q$10,'mod2 6b'!F172:Q172) -> 0 | G172: =LOOKUP($G$10,'mod2 6b'!$F$10:$Q$10,'mod2 6b'!F172:Q172) -> 0 | H172: ='mod2 6b'!R172 -> 0 | I172: ='mod2 6b'!S172 -> 0 | J172: ='mod2 6b'!T172 -> 0
A173: ='mod2 6b'!A173 -> 14 | B173: ='mod2 6b'!B173 -> 0 | C173: ='mod2 6b'!C173 -> 0 | D173: ='mod2 6b'!D173 -> 0 | E173: ='mod2 6b'!E173 -> 0 | F173: =LOOKUP($F$10,'mod2 6b'!$F$10:$Q$10,'mod2 6b'!F173:Q173) -> 0 | G173: =LOOKUP($G$10,'mod2 6b'!$F$10:$Q$10,'mod2 6b'!F173:Q173) -> 0 | H173: ='mod2 6b'!R173 -> 0 | I173: ='mod2 6b'!S173 -> 0 | J173: ='mod2 6b'!T173 -> 0
A174: ='mod2 6b'!A174 -> 14 | B174: ='mod2 6b'!B174 -> 0 | C174: ='mod2 6b'!C174 -> 0 | D174: ='mod2 6b'!D174 -> 0 | E174: ='mod2 6b'!E174 -> 0 | F174: =LOOKUP($F$10,'mod2 6b'!$F$10:$Q$10,'mod2 6b'!F174:Q174) -> 0 | G174: =LOOKUP($G$10,'mod2 6b'!$F$10:$Q$10,'mod2 6b'!F174:Q174) -> 0 | H174: ='mod2 6b'!R174 -> 0 | I174: ='mod2 6b'!S174 -> 0 | J174: ='mod2 6b'!T174 -> 0
A175: ='mod2 6b'!A175 -> 14 | B175: ='mod2 6b'!B175 -> 0 | C175: ='mod2 6b'!C175 -> 0 | D175: ='mod2 6b'!D175 -> 0 | E175: ='mod2 6b'!E175 -> 0 | F175: =LOOKUP($F$10,'mod2 6b'!$F$10:$Q$10,'mod2 6b'!F175:Q175) -> 0 | G175: =LOOKUP($G$10,'mod2 6b'!$F$10:$Q$10,'mod2 6b'!F175:Q175) -> 0 | H175: ='mod2 6b'!R175 -> 0 | I175: ='mod2 6b'!S175 -> 0 | J175: ='mod2 6b'!T175 -> 0
A176: ='mod2 6b'!A176 -> 15 | B176: ='mod2 6b'!B176 -> 0 | C176: ='mod2 6b'!C176 -> URBANISMO | D176: ='mod2 6b'!D176 -> 0 | E176: ='mod2 6b'!E176 -> 0 | F176: =LOOKUP($F$10,'mod2 6b'!$F$10:$Q$10,'mod2 6b'!F176:Q176) -> 0 | G176: =LOOKUP($G$10,'mod2 6b'!$F$10:$Q$10,'mod2 6b'!F176:Q176) -> 0 | H176: ='mod2 6b'!R176 -> 0 | I176: ='mod2 6b'!S176 -> 0 | J176: ='mod2 6b'!T176 -> 0
A177: ='mod2 6b'!A177 -> 15 | B177: ='mod2 6b'!B177 -> 451 | C177: ='mod2 6b'!C177 -> Infra-Estrutura Urbana | D177: ='mod2 6b'!D177 -> 0 | E177: ='mod2 6b'!E177 -> 0 | F177: =LOOKUP($F$10,'mod2 6b'!$F$10:$Q$10,'mod2 6b'!F177:Q177) -> 0 | G177: =LOOKUP($G$10,'mod2 6b'!$F$10:$Q$10,'mod2 6b'!F177:Q177) -> 0 | H177: ='mod2 6b'!R177 -> 0 | I177: ='mod2 6b'!S177 -> 0 | J177: ='mod2 6b'!T177 -> 0
A178: ='mod2 6b'!A178 -> 15 | B178: ='mod2 6b'!B178 -> 452 | C178: ='mod2 6b'!C178 -> Serviços Urbanos | D178: ='mod2 6b'!D178 -> 0 | E178: ='mod2 6b'!E178 -> 0 | F178: =LOOKUP($F$10,'mod2 6b'!$F$10:$Q$10,'mod2 6b'!F178:Q178) -> 0 | G178: =LOOKUP($G$10,'mod2 6b'!$F$10:$Q$10,'mod2 6b'!F178:Q178) -> 0 | H178: ='mod2 6b'!R178 -> 0 | I178: ='mod2 6b'!S178 -> 0 | J178: ='mod2 6b'!T178 -> 0
A179: ='mod2 6b'!A179 -> 15 | B179: ='mod2 6b'!B179 -> 453 | C179: ='mod2 6b'!C179 -> Transportes Coletivos Urbanos | D179: ='mod2 6b'!D179 -> 0 | E179: ='mod2 6b'!E179 -> 0 | F179: =LOOKUP($F$10,'mod2 6b'!$F$10:$Q$10,'mod2 6b'!F179:Q179) -> 0 | G179: =LOOKUP($G$10,'mod2 6b'!$F$10:$Q$10,'mod2 6b'!F179:Q179) -> 0 | H179: ='mod2 6b'!R179 -> 0 | I179: ='mod2 6b'!S179 -> 0 | J179: ='mod2 6b'!T179 -> 0
A180: ='mod2 6b'!A180 -> 15 | B180: ='mod2 6b'!B180 -> 0 | C180: ='mod2 6b'!C180 -> 0 | D180: ='mod2 6b'!D180 -> 0 | E180: ='mod2 6b'!E180 -> 0 | F180: =LOOKUP($F$10,'mod2 6b'!$F$10:$Q$10,'mod2 6b'!F180:Q180) -> 0 | G180: =LOOKUP($G$10,'mod2 6b'!$F$10:$Q$10,'mod2 6b'!F180:Q180) -> 0 | H180: ='mod2 6b'!R180 -> 0 | I180: ='mod2 6b'!S180 -> 0 | J180: ='mod2 6b'!T180 -> 0
A181: ='mod2 6b'!A181 -> 15 | B181: ='mod2 6b'!B181 -> 0 | C181: ='mod2 6b'!C181 -> 0 | D181: ='mod2 6b'!D181 -> 0 | E181: ='mod2 6b'!E181 -> 0 | F181: =LOOKUP($F$10,'mod2 6b'!$F$10:$Q$10,'mod2 6b'!F181:Q181) -> 0 | G181: =LOOKUP($G$10,'mod2 6b'!$F$10:$Q$10,'mod2 6b'!F181:Q181) -> 0 | H181: ='mod2 6b'!R181 -> 0 | I181: ='mod2 6b'!S181 -> 0 | J181: ='mod2 6b'!T181 -> 0
A182: ='mod2 6b'!A182 -> 15 | B182: ='mod2 6b'!B182 -> 0 | C182: ='mod2 6b'!C182 -> 0 | D182: ='mod2 6b'!D182 -> 0 | E182: ='mod2 6b'!E182 -> 0 | F182: =LOOKUP($F$10,'mod2 6b'!$F$10:$Q$10,'mod2 6b'!F182:Q182) -> 0 | G182: =LOOKUP($G$10,'mod2 6b'!$F$10:$Q$10,'mod2 6b'!F182:Q182) -> 0 | H182: ='mod2 6b'!R182 -> 0 | I182: ='mod2 6b'!S182 -> 0 | J182: ='mod2 6b'!T182 -> 0
A183: ='mod2 6b'!A183 -> 15 | B183: ='mod2 6b'!B183 -> 0 | C183: ='mod2 6b'!C183 -> 0 | D183: ='mod2 6b'!D183 -> 0 | E183: ='mod2 6b'!E183 -> 0 | F183: =LOOKUP($F$10,'mod2 6b'!$F$10:$Q$10,'mod2 6b'!F183:Q183) -> 0 | G183: =LOOKUP($G$10,'mod2 6b'!$F$10:$Q$10,'mod2 6b'!F183:Q183) -> 0 | H183: ='mod2 6b'!R183 -> 0 | I183: ='mod2 6b'!S183 -> 0 | J183: ='mod2 6b'!T183 -> 0
A184: ='mod2 6b'!A184 -> 15 | B184: ='mod2 6b'!B184 -> 0 | C184: ='mod2 6b'!C184 -> 0 | D184: ='mod2 6b'!D184 -> 0 | E184: ='mod2 6b'!E184 -> 0 | F184: =LOOKUP($F$10,'mod2 6b'!$F$10:$Q$10,'mod2 6b'!F184:Q184) -> 0 | G184: =LOOKUP($G$10,'mod2 6b'!$F$10:$Q$10,'mod2 6b'!F184:Q184) -> 0 | H184: ='mod2 6b'!R184 -> 0 | I184: ='mod2 6b'!S184 -> 0 | J184: ='mod2 6b'!T184 -> 0
A185: ='mod2 6b'!A185 -> 15 | B185: ='mod2 6b'!B185 -> 0 | C185: ='mod2 6b'!C185 -> 0 | D185: ='mod2 6b'!D185 -> 0 | E185: ='mod2 6b'!E185 -> 0 | F185: =LOOKUP($F$10,'mod2 6b'!$F$10:$Q$10,'mod2 6b'!F185:Q185) -> 0 | G185: =LOOKUP($G$10,'mod2 6b'!$F$10:$Q$10,'mod2 6b'!F185:Q185) -> 0 | H185: ='mod2 6b'!R185 -> 0 | I185: ='mod2 6b'!S185 -> 0 | J185: ='mod2 6b'!T185 -> 0
A186: ='mod2 6b'!A186 -> 16 | B186: ='mod2 6b'!B186 -> 0 | C186: ='mod2 6b'!C186 -> HABITAÇÃO | D186: ='mod2 6b'!D186 -> 0 | E186: ='mod2 6b'!E186 -> 0 | F186: =LOOKUP($F$10,'mod2 6b'!$F$10:$Q$10,'mod2 6b'!F186:Q186) -> 0 | G186: =LOOKUP($G$10,'mod2 6b'!$F$10:$Q$10,'mod2 6b'!F186:Q186) -> 0 | H186: ='mod2 6b'!R186 -> 0 | I186: ='mod2 6b'!S186 -> 0 | J186: ='mod2 6b'!T186 -> 0
A187: ='mod2 6b'!A187 -> 16 | B187: ='mod2 6b'!B187 -> 481 | C187: ='mod2 6b'!C187 -> Habitação Rural | D187: ='mod2 6b'!D187 -> 0 | E187: ='mod2 6b'!E187 -> 0 | F187: =LOOKUP($F$10,'mod2 6b'!$F$10:$Q$10,'mod2 6b'!F187:Q187) -> 0 | G187: =LOOKUP($G$10,'mod2 6b'!$F$10:$Q$10,'mod2 6b'!F187:Q187) -> 0 | H187: ='mod2 6b'!R187 -> 0 | I187: ='mod2 6b'!S187 -> 0 | J187: ='mod2 6b'!T187 -> 0
A188: ='mod2 6b'!A188 -> 16 | B188: ='mod2 6b'!B188 -> 482 | C188: ='mod2 6b'!C188 -> Habitação Urbana | D188: ='mod2 6b'!D188 -> 0 | E188: ='mod2 6b'!E188 -> 0 | F188: =LOOKUP($F$10,'mod2 6b'!$F$10:$Q$10,'mod2 6b'!F188:Q188) -> 0 | G188: =LOOKUP($G$10,'mod2 6b'!$F$10:$Q$10,'mod2 6b'!F188:Q188) -> 0 | H188: ='mod2 6b'!R188 -> 0 | I188: ='mod2 6b'!S188 -> 0 | J188: ='mod2 6b'!T188 -> 0
A189: ='mod2 6b'!A189 -> 16 | B189: ='mod2 6b'!B189 -> 0 | C189: ='mod2 6b'!C189 -> 0 | D189: ='mod2 6b'!D189 -> 0 | E189: ='mod2 6b'!E189 -> 0 | F189: =LOOKUP($F$10,'mod2 6b'!$F$10:$Q$10,'mod2 6b'!F189:Q189) -> 0 | G189: =LOOKUP($G$10,'mod2 6b'!$F$10:$Q$10,'mod2 6b'!F189:Q189) -> 0 | H189: ='mod2 6b'!R189 -> 0 | I189: ='mod2 6b'!S189 -> 0 | J189: ='mod2 6b'!T189 -> 0
A190: ='mod2 6b'!A190 -> 16 | B190: ='mod2 6b'!B190 -> 0 | C190: ='mod2 6b'!C190 -> 0 | D190: ='mod2 6b'!D190 -> 0 | E190: ='mod2 6b'!E190 -> 0 | F190: =LOOKUP($F$10,'mod2 6b'!$F$10:$Q$10,'mod2 6b'!F190:Q190) -> 0 | G190: =LOOKUP($G$10,'mod2 6b'!$F$10:$Q$10,'mod2 6b'!F190:Q190) -> 0 | H190: ='mod2 6b'!R190 -> 0 | I190: ='mod2 6b'!S190 -> 0 | J190: ='mod2 6b'!T190 -> 0
A191: ='mod2 6b'!A191 -> 16 | B191: ='mod2 6b'!B191 -> 0 | C191: ='mod2 6b'!C191 -> 0 | D191: ='mod2 6b'!D191 -> 0 | E191: ='mod2 6b'!E191 -> 0 | F191: =LOOKUP($F$10,'mod2 6b'!$F$10:$Q$10,'mod2 6b'!F191:Q191) -> 0 | G191: =LOOKUP($G$10,'mod2 6b'!$F$10:$Q$10,'mod2 6b'!F191:Q191) -> 0 | H191: ='mod2 6b'!R191 -> 0 | I191: ='mod2 6b'!S191 -> 0 | J191: ='mod2 6b'!T191 -> 0
A192: ='mod2 6b'!A192 -> 16 | B192: ='mod2 6b'!B192 -> 0 | C192: ='mod2 6b'!C192 -> 0 | D192: ='mod2 6b'!D192 -> 0 | E192: ='mod2 6b'!E192 -> 0 | F192: =LOOKUP($F$10,'mod2 6b'!$F$10:$Q$10,'mod2 6b'!F192:Q192) -> 0 | G192: =LOOKUP($G$10,'mod2 6b'!$F$10:$Q$10,'mod2 6b'!F192:Q192) -> 0 | H192: ='mod2 6b'!R192 -> 0 | I192: ='mod2 6b'!S192 -> 0 | J192: ='mod2 6b'!T192 -> 0
A193: ='mod2 6b'!A193 -> 16 | B193: ='mod2 6b'!B193 -> 0 | C193: ='mod2 6b'!C193 -> 0 | D193: ='mod2 6b'!D193 -> 0 | E193: ='mod2 6b'!E193 -> 0 | F193: =LOOKUP($F$10,'mod2 6b'!$F$10:$Q$10,'mod2 6b'!F193:Q193) -> 0 | G193: =LOOKUP($G$10,'mod2 6b'!$F$10:$Q$10,'mod2 6b'!F193:Q193) -> 0 | H193: ='mod2 6b'!R193 -> 0 | I193: ='mod2 6b'!S193 -> 0 | J193: ='mod2 6b'!T193 -> 0
A194: ='mod2 6b'!A194 -> 17 | B194: ='mod2 6b'!B194 -> 0 | C194: ='mod2 6b'!C194 -> SANEAMENTO | D194: ='mod2 6b'!D194 -> 0 | E194: ='mod2 6b'!E194 -> 0 | F194: =LOOKUP($F$10,'mod2 6b'!$F$10:$Q$10,'mod2 6b'!F194:Q194) -> 0 | G194: =LOOKUP($G$10,'mod2 6b'!$F$10:$Q$10,'mod2 6b'!F194:Q194) -> 0 | H194: ='mod2 6b'!R194 -> 0 | I194: ='mod2 6b'!S194 -> 0 | J194: ='mod2 6b'!T194 -> 0
A195: ='mod2 6b'!A195 -> 17 | B195: ='mod2 6b'!B195 -> 511 | C195: ='mod2 6b'!C195 -> Saneamento Básico Rural | D195: ='mod2 6b'!D195 -> 0 | E195: ='mod2 6b'!E195 -> 0 | F195: =LOOKUP($F$10,'mod2 6b'!$F$10:$Q$10,'mod2 6b'!F195:Q195) -> 0 | G195: =LOOKUP($G$10,'mod2 6b'!$F$10:$Q$10,'mod2 6b'!F195:Q195) -> 0 | H195: ='mod2 6b'!R195 -> 0 | I195: ='mod2 6b'!S195 -> 0 | J195: ='mod2 6b'!T195 -> 0
A196: ='mod2 6b'!A196 -> 17 | B196: ='mod2 6b'!B196 -> 512 | C196: ='mod2 6b'!C196 -> Saneamento Básico Urbano | D196: ='mod2 6b'!D196 -> 0 | E196: ='mod2 6b'!E196 -> 0 | F196: =LOOKUP($F$10,'mod2 6b'!$F$10:$Q$10,'mod2 6b'!F196:Q196) -> 0 | G196: =LOOKUP($G$10,'mod2 6b'!$F$10:$Q$10,'mod2 6b'!F196:Q196) -> 0 | H196: ='mod2 6b'!R196 -> 0 | I196: ='mod2 6b'!S196 -> 0 | J196: ='mod2 6b'!T196 -> 0
A197: ='mod2 6b'!A197 -> 17 | B197: ='mod2 6b'!B197 -> 0 | C197: ='mod2 6b'!C197 -> 0 | D197: ='mod2 6b'!D197 -> 0 | E197: ='mod2 6b'!E197 -> 0 | F197: =LOOKUP($F$10,'mod2 6b'!$F$10:$Q$10,'mod2 6b'!F197:Q197) -> 0 | G197: =LOOKUP($G$10,'mod2 6b'!$F$10:$Q$10,'mod2 6b'!F197:Q197) -> 0 | H197: ='mod2 6b'!R197 -> 0 | I197: ='mod2 6b'!S197 -> 0 | J197: ='mod2 6b'!T197 -> 0
A198: ='mod2 6b'!A198 -> 17 | B198: ='mod2 6b'!B198 -> 0 | C198: ='mod2 6b'!C198 -> 0 | D198: ='mod2 6b'!D198 -> 0 | E198: ='mod2 6b'!E198 -> 0 | F198: =LOOKUP($F$10,'mod2 6b'!$F$10:$Q$10,'mod2 6b'!F198:Q198) -> 0 | G198: =LOOKUP($G$10,'mod2 6b'!$F$10:$Q$10,'mod2 6b'!F198:Q198) -> 0 | H198: ='mod2 6b'!R198 -> 0 | I198: ='mod2 6b'!S198 -> 0 | J198: ='mod2 6b'!T198 -> 0
A199: ='mod2 6b'!A199 -> 17 | B199: ='mod2 6b'!B199 -> 0 | C199: ='mod2 6b'!C199 -> 0 | D199: ='mod2 6b'!D199 -> 0 | E199: ='mod2 6b'!E199 -> 0 | F199: =LOOKUP($F$10,'mod2 6b'!$F$10:$Q$10,'mod2 6b'!F199:Q199) -> 0 | G199: =LOOKUP($G$10,'mod2 6b'!$F$10:$Q$10,'mod2 6b'!F199:Q199) -> 0 | H199: ='mod2 6b'!R199 -> 0 | I199: ='mod2 6b'!S199 -> 0 | J199: ='mod2 6b'!T199 -> 0
A200: ='mod2 6b'!A200 -> 17 | B200: ='mod2 6b'!B200 -> 0 | C200: ='mod2 6b'!C200 -> 0 | D200: ='mod2 6b'!D200 -> 0 | E200: ='mod2 6b'!E200 -> 0 | F200: =LOOKUP($F$10,'mod2 6b'!$F$10:$Q$10,'mod2 6b'!F200:Q200) -> 0 | G200: =LOOKUP($G$10,'mod2 6b'!$F$10:$Q$10,'mod2 6b'!F200:Q200) -> 0 | H200: ='mod2 6b'!R200 -> 0 | I200: ='mod2 6b'!S200 -> 0 | J200: ='mod2 6b'!T200 -> 0
A201: ='mod2 6b'!A201 -> 17 | B201: ='mod2 6b'!B201 -> 0 | C201: ='mod2 6b'!C201 -> 0 | D201: ='mod2 6b'!D201 -> 0 | E201: ='mod2 6b'!E201 -> 0 | F201: =LOOKUP($F$10,'mod2 6b'!$F$10:$Q$10,'mod2 6b'!F201:Q201) -> 0 | G201: =LOOKUP($G$10,'mod2 6b'!$F$10:$Q$10,'mod2 6b'!F201:Q201) -> 0 | H201: ='mod2 6b'!R201 -> 0 | I201: ='mod2 6b'!S201 -> 0 | J201: ='mod2 6b'!T201 -> 0
A202: ='mod2 6b'!A202 -> 18 | B202: ='mod2 6b'!B202 -> 0 | C202: ='mod2 6b'!C202 -> GESTÃO AMBIENTAL | D202: ='mod2 6b'!D202 -> 0 | E202: ='mod2 6b'!E202 -> 0 | F202: =LOOKUP($F$10,'mod2 6b'!$F$10:$Q$10,'mod2 6b'!F202:Q202) -> 0 | G202: =LOOKUP($G$10,'mod2 6b'!$F$10:$Q$10,'mod2 6b'!F202:Q202) -> 0 | H202: ='mod2 6b'!R202 -> 0 | I202: ='mod2 6b'!S202 -> 0 | J202: ='mod2 6b'!T202 -> 0
... 120 more rows

Sheet mod 3
A1: RECEITA CORRENTE LÍQUIDA
A2: (Artigo 2º, Inciso IV e 53, Inciso I da LC. 101/00)
A3: ADMINISTRAÇÃO DIRETA, INDIRETA E FUNDACIONAL
A5: ='mod1 6b'!A5 -> MUNICÍPIO DE TAUBATÉ - FUNDAÇÃO UNIVERSITÁRIA DE TAUBATÉ
A7: 3º BIMESTRE 2014
Q9: Valores expressos em R$
A10: RECEITAS CORRENTES | C10: JULHO | D10: AGOSTO | E10: SETEMBRO | F10: OUTUBRO | G10: NOVEMBRO | H10: DEZEMBRO | I10: JANEIRO | J10: FEVEREIRO | K10: MARÇO | L10: ABRIL | M10: MAIO | N10: MÊS DE REF. JUNHO | O10: TOTAL | P10: Apuração Bimestre Anterior | Q10: Previsão atualizadada Exercício
A12: ADMINISTRAÇÃO DIRETA | O12: =SUM(C12:N12) -> 0
A13: ADMINISTRAÇÃO INDIRETA | C13: =SUM(C14:C16) -> 1237217.64 | D13: =SUM(D14:D16) -> 1686694.77 | E13: 1345375.19 | F13: 1149847.93 | G13: 2592067.96 | H13: 2536896.86 | I13: 1287907.37 | J13: 1551252.46 | K13: 493064.69 | L13: 1197980.45 | M13: 730985.39 | N13: 637497.17 | O13: =SUM(C13:N13) -> 16446787.88 | P13: 24440113.67 | Q13: 18723396
A14: Autarquias | O14: 0
A15: Fundações Públicas | C15: 1237217.64 | D15: 1686694.77 | E15: 1345375.19 | F15: 1149847.93 | G15: 2592067.96 | H15: 2536896.86 | I15: 1287907.37 | J15: 1551252.46 | K15: 493064.69 | L15: 1197980.45 | M15: 730985.39 | N15: 637497.17 | O15: =SUM(C13:N13) -> 16446787.88 | P15: 24440113.67 | Q15: 18723396
A16: Empresas Estatais Dependentes | O16: 0
A17: Subtotal | C17: =C12+C13 -> 1237217.64 | D17: =D12+D13 -> 1686694.77 | E17: 1345375.19 | F17: 1149847.93 | G17: 2592067.96 | H17: 2536896.86 | I17: 1287907.37 | J17: 1551252.46 | K17: 493064.69 | L17: 1197980.45 | M17: 730985.39 | N17: 637497.17 | O17: 16446787.88 | P17: 24440113.67 | Q17: 18723396
A18: ( - ) DEDUÇÕES
A19: Receitas Transf. Intrag. Adm. Dir/Ind.e Fund. | O19: 0
A20: Contrib. Serv. Reg.Própr.Previdência | O20: 0
A21: Compensação Financ.entre Reg. Prev. | O21: 0
A22: FUNDEF | O22: 0
A23: Anulação de Restos a Pagar | O23: 0
A24: Outras | O24: 0
O25: 0
A26: Subtotal | C26: =SUM(C19:C25) -> 0 | D26: =SUM(D19:D25) -> 0 | E26: 0 | F26: 0 | G26: 0 | H26: 0 | I26: 0 | J26: 0 | K26: 0 | L26: 0 | M26: 0 | N26: 0 | O26: 0 | P26: 0 | Q26: 0
A27: RECEITA CORRENTE LÍQUIDA | C27: =C17-C26 -> 1237217.64 | D27: =D17-D26 -> 1686694.77 | E27: 1345375.19 | F27: 1149847.93 | G27: 2592067.96 | H27: 2536896.86 | I27: 1287907.37 | J27: 1551252.46 | K27: 493064.69 | L27: 1197980.45 | M27: 730985.39 | N27: 637497.17 | O27: 16446787.88 | P27: =P17-P26 -> 24440113.67 | Q27: =Q17-Q26 -> 18723396
A32: Prof.Dr.Isnard de A. Câmara Neto | G32: Jessé César Pinto | M32: Josimere dos Santos Costa
A33: Diretor Presidente | H33: CRC: 1SP 297323/O-5 | N33: Controlador Interno

Sheet mod 4
A1: DEMONSTRATIVO DAS RECEITAS E DESPESAS PREVIDENCIÁRIAS
A2: (Artigos 53, Inciso II e 50, Inciso IV da LC. 101/00)
A3: ADMINISTRAÇÃO DIRETA, INDIRETA E FUNDACIONAL
A5: ='mod1 6b'!A5 -> MUNICÍPIO DE TAUBATÉ - FUNDAÇÃO UNIVERSITÁRIA DE TAUBATÉ
A7: 3º BIMESTRE 2014
H9: Valores expressos em R$
A10: I –RECEITAS PREVIDENCIÁRIAS | C10: Previsão Anual | E10: Receitas Realizadas | G10: Saldo a Realizar
C11: Inicial | D11: Atualizada | E11: No Bimestre | F11: Até o Bimestre
A12: Contribuições Patronais | G12: =D12-F12 -> 0
A13: Contribuições dos Servidores Ativos | G13: 0
A14: Contribuições dos Servidores Inativos | G14: 0
A15: Contribuições dos Pensionistas | G15: 0
A16: Receitas Patrimoniais | G16: 0
A17: Compensações Previdenciárias | G17: 0
A18: Alienações de Bens | G18: 0
A19: Outras | G19: 0
A20: Total | C20: =SUM(C12:C19) -> 0 | D20: =SUM(D12:D19) -> 0 | E20: =SUM(E12:E19) -> 0 | F20: =SUM(F12:F19) -> 0 | G20: 0
A22: II –DESPESAS PREVIDENCIÁRIAS | B22: Dotação Anual | D22: Empenhadas | F22: Liquidadas | H22: Saldo a Empenhar
B23: Inicial | C23: Atualizada | D23: No Bimestre | E23: Até o Bimestre | F23: No Bimestre | G23: Até o Bimestre
A24: Inativos | H24: =C24-E24 -> 0
A25: Pensionistas | H25: =C25-E25 -> 0
A26: Outros Benefícios | H26: =C26-E26 -> 0
A27: Outras Despesas | H27: =C27-E27 -> 0
A28: Total | B28: =SUM(B24:B27) -> 0 | C28: 0 | D28: 0 | E28: 0 | F28: 0 | G28: 0 | H28: =C28-E28 -> 0
A30: III - RESULTADO | B30: =C20-B28 -> 0 | C30: =D20-C28 -> 0 | D30: =E20-D28 -> 0 | E30: =F20-E28 -> 0 | F30: =E20-F28 -> 0 | G30: =F20-G28 -> 0
A32: IV –DISPONIBILIDADES FINANCEIRAS | C32: R$ | G32: R$
A34: Receitas | C34: =C35+C36 -> 0 | E34: Despesas | G34: =SUM(G35:G37) -> 0
A35: Orçamentárias | E35: Orçamentárias pagas
A36: Extra-orçamentárias | E36: Extra-orçamentárias
E37: Inscrição Restos a pagar*
A39: Saldo do exercício anterior | C39: =C40+C41+C42 -> 0 | E39: Saldo Atual | G39: =SUM(G40:G42) -> 0
A40: Caixa | E40: Caixa
A41: Bancos Conta Movimento | E41: Bancos Conta Movimento
A42: Aplicações Financeiras | E42: Aplicações Financeiras
A44: Total Geral | C44: =C34+C39 -> 0 | G44: =G34+G39 -> 0
A45: * Relativo ao último bimestre
A49: Prof.Dr.Isnard de A.Câmara Neto | C49: Jessé César Pinto | F49: Josimere dos Santos Costa
A50: Diretor Presidente | C50: CRC:1SP297323/O-5 | G50: Controlador Interno

Sheet mod 5
A1: RESULTADOS NOMINAL E PRIMÁRIO
A2: (Art. 53, Inciso III da LC. 101/00)
A3: ADMINISTRAÇÃO DIRETA, INDIRETA E FUNDACIONAL
A6: ='mod1 6b'!A5 -> MUNICÍPIO DE TAUBATÉ - FUNDAÇÃO UNIVERSITÁRIA DE TAUBATÉ
A7: 3º BIMESTRE DE 2014
A9: RESULTADO PRIMÁRIO | H9: Valores expressos em R$
A10: RECEITAS FISCAIS | C10: Previsão Atualizada | F10: Realização | H10: Período Exercício Anterior
C11: Anual | D11: Do Bimestre | E11: Até o Bimestre | F11: No Bimestre | G11: Até o Bimestre
A12: Receitas Correntes | C12: ='mod1 1b'!C11 -> 18723396 | D12: 3120566.02 | E12: ='mod1 1b'!F11+0.02 -> 9361698.02 | F12: 3120566 | G12: ='mod1 1b'!G11 -> 5898687.53 | H12: 15505016.7
A13: Receitas de Capital | C13: ='mod1 1b'!C28 -> 0 | D13: ='mod1 1b'!D28 -> 0 | E13: ='mod1 1b'!F28 -> 0 | F13: ='mod1 1b'!E28 -> 0 | G13: ='mod1 1b'!G28 -> 0
A14: Subtotal: | C14: =C12+C13 -> 18723396 | D14: 3120566.02 | E14: =E12+E13 -> 9361698.02 | F14: =F12+F13 -> 3120566 | G14: =G12+G13 -> 5898687.53 | H14: =H12 -> 15505016.7
A15: (-) Deduções
A16: Receitas de Operações de Crédito | C16: ='mod1 1b'!C29 -> 0 | D16: ='mod1 1b'!D29 -> 0 | E16: ='mod1 1b'!F29 -> 0 | F16: ='mod1 1b'!E29 -> 0 | G16: ='mod1 1b'!G29 -> 0
A19: Rendas de aplicações Financeiras
A20: Amortização de Empréstimos | C20: ='mod1 1b'!C33 -> 0 | D20: ='mod1 1b'!D33 -> 0 | E20: ='mod1 1b'!F33 -> 0 | F20: ='mod1 1b'!E33 -> 0 | G20: ='mod1 1b'!G33 -> 0
A21: Receitas de alienações de ativos
A23: Subtotal | C23: =C16+C19+C20+C21 -> 0 | D23: 0 | E23: 0 | F23: 0 | G23: 0 | H23: 0
A24: I - RECEITAS FISCAIS LÍQUIDAS | C24: =C14-C23 -> 18723396 | D24: 3120566.02 | E24: 9361698.02 | F24: 3120566 | G24: 5898687.53 | H24: 15505016.7
A26: DESPESAS FISCAIS | C26: Dotação Atualizada | F26: Despesas Liquidadas | H26: Período Exerc. Ant.
C27: Anual | D27: Do Bimestre | E27: Até o Bimestre | F27: No Bimestre | G27: Até o Bimestre
A28: Despesas Correntes | C28: ='mod1 1b'!C39 -> 20083396 | D28: 3347232.67 | E28: 10041698.01 | F28: ='mod1 1b'!E39 -> 3164776.51 | G28: ='mod1 1b'!G39 -> 7599806.5 | H28: 14557121.29
A29: (-) Juros e Encargos da Dívida | C29: ='mod1 1b'!C41+'mod1 1b'!C42 -> 0 | D29: 0 | E29: 0 | F29: ='mod1 1b'!E41+'mod1 1b'!E42 -> 0 | G29: ='mod1 1b'!G41+'mod1 1b'!G42 -> 0
A30: Subtotal | C30: =C28-C29 -> 20083396 | D30: 3347232.67 | E30: =E28-E29 -> 10041698.01 | F30: =F28-F29 -> 3164776.51 | G30: =G28-G29 -> 7599806.5 | H30: =H28 -> 14557121.29
A31: Despesas de Capital | C31: ='mod1 1b'!B44 -> 40000 | D31: 4490 | E31: 4490 | F31: ='mod1 1b'!E44 -> 2078 | G31: ='mod1 1b'!F44 -> 6568 | H31: 48559
A32: (-) Deduções | C32: 0 | D32: 0 | E32: 0 | F32: =SUM(F33:F36) -> 2078 | G32: =SUM(G33:G36) -> 6568 | H32: =H34+H33 -> 48559
A33: Amortização de Dívida | C33: 0 | D33: 0 | E33: 0 | F33: ='mod1 1b'!E47 -> 0 | G33: 0 | H33: 0
A34: INVESTIMENTO | C34: 40000 | D34: 4490 | E34: 4490 | F34: 2078 | G34: 6568 | H34: 48559
A35: Aquisição de Título de Capital já Integralizado
A37: Subtotal | C37: 0 | D37: 0 | E37: 0 | F37: =F32 -> 2078 | G37: =G32 -> 6568 | H37: 48559
A38: II - RESERVA DE CONTINGÊNCIA | C38: =+'mod1 1b'!C51 -> 0 | D38: 0 | E38: 0
A39: III - DESPESAS FISCAIS LÍQUIDAS | C39: =C30+C37 -> 20083396 | D39: 3347232.67 | E39: 10041698.01 | F39: 3166854.51 | G39: 7606374.5 | H39: =H30+H37 -> 14605680.29
A40: IV - SALDOS DE EXERCÍCIOS ANTERIORES
A41: IV - RESULTADO PRIMÁRIO (I - III+II) | C41: =C24-C39+C38 -> -1360000 | D41: =D24-D39+D38 -> -226666.65 | E41: =E24-E39+E38 -> -679999.99 | F41: =F24-F39 -> -46288.51 | G41: =G24+G40-G39 -> -1707686.97 | H41: =H24+H40-H39 -> 899336.41
A44: RESULTADO NOMINAL | B44: SALDO | E44: RESULTADO NOMINAL
A45: ESPECIFICAÇÃO | B45: Em 31/12 Exerc. Anterior (A) | C45: Bimestre Anterior (B) | D45: Bimestre Atual (C) | E45: No Bimestre (C-B) | G45: Janeiro até o Bimestre (C-A)
A46: I. Dívida Consolidada | B46: 57605315.27 | C46: 55247400.8 | D46: 56380201.35
A47: II. Deduções:(*) | B47: =IF(B48+B49-B50<0,0,B48+B49-B50) -> 1810214.16 | C47: =IF(C48+C49-C50<0,0,C48+C49-C50) -> 1671087.87 | D47: =IF(D48+D49-D50<0,0,D48+D49-D50) -> 2740346.27
A48: Ativo Disponível | B48: 495634.8 | C48: 344210.18 | D48: 108335.84
A49: Haveres Financeiros | B49: 1314579.36 | C49: 1326877.69 | D49: 2632010.43
A50: (-) Restos a Pagar Processados
A51: III. Dívida Consolidada Líquida (I-II) | B51: =IF(B47>B46,0,B46-B47) -> 55795101.11 | C51: =IF(C47>C46,0,C46-C47) -> 53576312.93 | D51: =IF(D47>D46,0,D46-D47) -> 53639855.08
A52: IV. Receita de Privatizações
A53: V. Passivos Reconhecidos
A54: Dívida Fiscal Líquida (III + IV - V) | B54: =IF(B51=0,0,IF(B53>B52,0,(B51+B52-B53))) -> 55795101.11 | C54: =IF(C51=0,0,IF(C53>C52,0,(C51+C52-C53))) -> 53576312.93 | D54: =IF(D51=0,0,IF(D53>D52,0,(D51+D52-D53))) -> 53639855.08 | E54: =D54-C54 -> 63542.15 | G54: =D54-B54 -> -2155246.03
A55: (*) Se o saldo for negativo (Restos a Pagar maior que Ativo Disponível + Haveres Financeiros) o sistema lançará o valor zero, pois não deve ser informado o valor negativo.
A56: Justificativas (art. 9º, cc inciso I, §2º, art. 53 da LRF)
A57: textos
A92: Prof.Dr.Isnard de A.Câmara Neto | C92: Jessé César Pinto | G92: Josimere dos Santos Costa
A93: Diretor Presidente | D93: CRC:1SP 297323/O-5 | G93: Controlador Interno

Sheet mod 6
A1: DEMONSTRATIVO DOS RESTOS A PAGAR
A2: (Artigo 53, Inciso V, da LC. 101/00)
A3: ADMINISTRAÇÃO DIRETA, INDIRETA E FUNDACIONAL
A5: ='mod1 6b'!A5 -> MUNICÍPIO DE TAUBATÉ - FUNDAÇÃO UNIVERSITÁRIA DE TAUBATÉ
A7: 3º BIMESTRE DE 2014
A10: PODER / ÓRGÃO / ENTIDADES | B10: Saldo de Exercícios Anteriores | C10: Inscrições | E10: Baixas | I10: Montante a Pagar | J10: Disponibilidade Financeira
C11: Processados | D11: Não Processados | E11: Cancelamentos | G11: Pagamentos
E12: No Bimestre | F12: Até o Bimestre | G12: No Bimestre | H12: Até o Bimestre
A13: PODER LEGISLATIVO
A14: Câmara Municipal | I14: =B14+C14+D14-F14-H14 -> 0
A15: PODER EXECUTIVO | B15: 0 | C15: =C16+C17 -> 0 | D15: 0 | E15: 0 | F15: 0 | G15: 34218.75 | H15: 1361238.64 | I15: =B15+C15+D15-F15-H15 -> -1361238.64 | J15: =J16+J17 -> 108335.84
A16: Prefeitura Municipal | I16: 0
A17: Órgãos/Entidades | B17: =SUBTOTAL(9,B19:B48) -> 57605315.27 | C17: =SUBTOTAL(9,C19:C48) -> 0 | D17: 0 | E17: 0 | F17: 0 | G17: 34218.75 | H17: 1361238.64 | I17: 56244076.63 | J17: =SUBTOTAL(9,J19:J48) -> 108335.84
A18: órgãos | I18: 0
A19: Autarquia “X” | I19: 0
A20: Fundação Universitária | B20: 57605315.27 | C20: 0 | D20: 0 | E20: 0 | F20: 0 | G20: 34218.75 | H20: =1327019.89+G20 -> 1361238.64 | I20: =B20+C20+D20-F20-H20 -> 56244076.63 | J20: 108335.84
A21: Empresa Púb. Dependente “Z” | I21: 0
I22: 0
I23: 0
I24: 0
I25: 0
I26: 0
I27: 0
I28: 0
I29: 0
I30: 0
I31: 0
I32: 0
I33: 0
I34: 0
I35: 0
I36: 0
I37: 0
I38: 0
I39: 0
I40: 0
I41: 0
I42: 0
I43: 0
I44: 0
I45: 0
I46: 0
I47: 0
I48: 0
A49: TOTAL: | B49: 0 | C49: =C14+C15 -> 0 | D49: 0 | E49: 0 | F49: 0 | G49: 34218.75 | H49: 1361238.64 | I49: -1361238.64 | J49: =J14+J15 -> 108335.84
A54: Prof.Dr.Isnard de A.Câmara Neto | D54: Jessé César Pinto | H54: Josimere dos Santos Costa
A55: Diretor Presidente | D55: CRC:1SP 297323/O-5 | H55: Controlador Interno

Sheet mod 7
A1: COMPARATIVO DAS RECEITAS DE OPERAÇÕES DE CRÉDITO E DESPESAS DE CAPITAL
A3: (Artigos 53, §1º, Inciso I, e 38, §1º, da LC. 101/00)
A4: ADMINISTRAÇÃO DIRETA, INDIRETA E FUNDACIONAL
A7: ='mod1 6b'!A5 -> MUNICÍPIO DE TAUBATÉ - FUNDAÇÃO UNIVERSITÁRIA DE TAUBATÉ
A9: ANO DE 2014
H10: Valores expressos em R$
A11: PODER/ÓRGÃO/ENTIDADES | B11: Operações de Crédito (exceto ARO) | D11: Despesas de Capital Liquidadas (1) | E11: Deduções das Despesas de Capital | G11: Despesas de Capital Líquidas (1) -[(2)+(3)] | H11: Operações de Crédito do Exercício (exceto ARO)
B12: Previsão Inicial | C12: Previsão atualizada | E12: Inciso I, § 3º, artigo 32, LRF (2) | F12: Inciso II, § 3º, artigo 32, LRF (3)
A14: órgão
A15: Prefeitura Municipal | G15: =D15-E15-F15 -> 0
A16: Autarquia “X” | G16: =D16-E16-F16 -> 0
A17: Fundação Pública "Y" | G17: 0
A18: Empresa Pública Dependente “Z” | G18: 0
G19: 0
G20: 0
G21: 0
G22: 0
G23: 0
G24: 0
G25: 0
G26: 0
G27: 0
G28: 0
G29: 0
G30: 0
G31: 0
G32: 0
G33: 0
G34: 0
G35: 0
G36: 0
G37: 0
G38: 0
G39: 0
G40: 0
G41: 0
G42: 0
G43: 0
G44: 0
G45: 0
A46: TOTAIS | B46: =SUBTOTAL(9,B15:B45) -> 0 | C46: =SUBTOTAL(9,C15:C45) -> 0 | D46: 0 | E46: 0 | F46: 0 | G46: 0 | H46: 0
A47: Justificativas abaixo
A48: Apresentar medidas/justificativas caso o montante das operações de crédito tenha ultrapassado as despesas de capital líquidas.
A84: Prof.Dr.Isnard de Albuquerque C Neto | C84: Fabio Augusto Ribeiro | F84: Josimere dos Santos Costa
A85: Diretor Presidente | C85: Diretor Técnico Financeiro | G85: Controlador Interno

Sheet mod 8
A1: DEMONSTRATIVO DAS PROJEÇÕES ATUARIAIS DO REGIME DE PREVIDENCIA PRÓPRIA
A4: (Artigo 53, §1º, Inciso II da LC 101/00)
A5: ADMINISTRAÇÃO DIRETA, INDIRETA E FUNDACIONAL
A8: ='mod1 6b'!A5 -> MUNICÍPIO DE TAUBATÉ - FUNDAÇÃO UNIVERSITÁRIA DE TAUBATÉ
A10: FUNDO/ENTIDADE:
A12: ANO DE 2014
D14: Valores expressos em R$
A15: ANO | B15: RECEITAS | C15: DESPESAS | D15: RESULTADO
A16: =COM!AQ19+1 -> 2013 | D16: =B16-C16 -> 0
A17: =A16+1 -> 2014 | D17: =B17-C17 -> 0
A18: =A17+1 -> 2015 | D18: 0
A19: 2016 | D19: 0
A20: 2017 | D20: 0
A21: 2018 | D21: 0
A22: 2019 | D22: 0
A23: 2020 | D23: 0
A24: 2021 | D24: 0
A25: 2022 | D25: 0
A26: 2023 | D26: 0
A27: 2024 | D27: 0
A28: 2025 | D28: 0
A29: 2026 | D29: 0
A30: 2027 | D30: 0
A31: 2028 | D31: 0
A32: 2029 | D32: 0
A33: 2030 | D33: 0
A34: 2031 | D34: 0
A35: 2032 | D35: 0
A36: 2033 | D36: 0
A37: 2034 | D37: 0
A38: 2035 | D38: 0
A39: 2036 | D39: 0
A40: 2037 | D40: 0
A41: 2038 | D41: 0
A42: 2039 | D42: 0
A43: 2040 | D43: 0
A44: 2041 | D44: 0
A45: 2042 | D45: 0
A46: 2043 | D46: 0
A47: 2044 | D47: 0
A48: 2045 | D48: 0
A49: 2046 | D49: 0
A50: 2047 | D50: 0
A53: Nome do Atuário Responsável / Registro nº:
A57: ___________________ | B57: ________________________________ | D57: _____________________
A58: Prof.Dr.Isnard de A.Câmara Neto | B58: Fabio Augusto Ribeiro | D58: Josimere dos Santos Costa
A59: Diretor Presidente | B59: Diretor Técnico Financeiro | D59: Controlador Interno

Sheet mod 9
A1: DEMONSTRATIVO DA VARIAÇÃO PATRIMONIAL E APLICAÇÃO DE RECURSOS DECORRENTES DA ALIENAÇÃO DE ATIVOS
A3: (Artigo 53, §1º, Inciso III, da LC 101/00)
A4: ADMINISTRAÇÃO DIRETA, INDIRETA E FUNDACIONAL
A6: ='mod1 6b'!A5 -> MUNICÍPIO DE TAUBATÉ - FUNDAÇÃO UNIVERSITÁRIA DE TAUBATÉ
A8: ANO DE 2014
A11: I - VARIAÇÃO PATRIMONIAL
G12: Valores expressos em R$
A13: 1. Resultado da Execução do Orçamento | E13: ACRÉSCIMOS | G13: REDUÇÕES
A14: Superávit
A15: Déficit | G15: 0
A16: 2. Ativo Permanente | E16: =SUM(E17:F22) -> 0 | G16: =SUM(G17:H22) -> 0
A17: Bens Móveis | E17: 0
A18: Bens Imóveis | E18: 0 | G18: 0
A19: Obras e Instalações
A20: Títulos e Valores
A21: Dívida Ativa
A22: Outros Créditos
A23: 3. Passivo Permanente | E23: =E24+E25 -> 0 | G23: =G24+G25 -> 0
A24: Empréstimos
A25: Outras Dívidas (Previdência Própria , INSS, FGTS) | E25: 0 | G25: 0
A26: 4. TOTAIS | E26: =E14+E16-E23 -> 0 | G26: =G15+G16-G23 -> 0
A27: 5. RESULTADO PATRIMONIAL | E27: =IF(E26>=G26,"VARIAÇÃO POSITIVA =","VARIAÇÃO NEGATIVA = ") -> VARIAÇÃO POSITIVA = | G27: =IF(E26>=G26,E26-G26,G26-E26) -> 0
A30: II - APLICAÇÃO DE RECURSOS DA ALIENAÇÃO DE ATIVOS
A32: PODERES/ÓRGÃO: | B32: Saldo do Exercício Anterior (1) | C32: Receita Realizada (2) | D32: Aplicação dos Recursos | G32: Saldo a aplicar (1)+(2)-(3) | H32: Saldo C/C vinculada à aplicação
D33: Despesa Empenhada | E33: Despesa Liquidada | F33: Despesa Paga (3)
A34: ADMINISTRAÇÃO DIRETA | B34: =B35+B36 -> 0 | C34: =C35+C36 -> 0 | D34: =D35+D36 -> 0 | E34: =E35+E36 -> 0 | F34: =F35+F36 -> 0 | G34: =B34+C34-F34 -> 0
A35: Câmara Municipal | G35: =B35+C35-F35 -> 0
A36: Prefeitura Municipal | G36: 0
A37: ADMINISTRAÇÃO INDIRETA | B37: =SUBTOTAL(9,B39:B68) -> 0 | C37: =SUBTOTAL(9,C39:C68) -> 0 | D37: 0 | E37: 0 | F37: 0 | G37: 0 | H37: 0
A38: órgão
A39: Autarquia “X” | G39: 0
A40: Fundação “Y” | G40: 0
A41: Empresa Pública Dependente “Z” | G41: 0
G42: 0
G43: 0
G44: 0
G45: 0
G46: 0
G47: 0
G48: 0
G49: 0
G50: 0
G51: 0
G52: 0
G53: 0
G54: 0
G55: 0
G56: 0
G57: 0
G58: 0
G59: 0
G60: 0
G61: 0
G62: 0
G63: 0
G64: 0
G65: 0
G66: 0
G67: 0
G68: 0
A69: TOTAL: | B69: =B34+B37 -> 0 | C69: =C34+C37 -> 0 | D69: =D34+D37 -> 0 | E69: =E34+E37 -> 0 | F69: =F34+F37 -> 0 | G69: 0 | H69: =H34+H37 -> 0
A70: texto
A71: Detalhar a origem e a aplicação dos recursos obtidos com a alienação de ativos para cada Órgão de cada Poder:
A104: Prof.Dr.Isnarde de A.Câmara Neto | C104: Fabio Augusto Ribeiro | F104: Josimere dos Santos Costa
A105: Diretor Presidente | C105: Diretor Técnico Financeiro | G105: Controlador Interno

Sheet mod10 3q
A1: RELATÓRIO DE GESTÃO FISCAL
A2: (Artigos 54 e 55 da LC 101/00)
A5: ='mod1 6b'!A5 -> MUNICÍPIO DE TAUBATÉ - FUNDAÇÃO UNIVERSITÁRIA DE TAUBATÉ
A6: ="PODER "&COM!AC15 -> PODER EXECUTIVO MUNICIPAL
A7: 1º QUADRIMESTRE 2014
A9: I – COMPARATIVOS: | J9: Valores expressos em R$ | L9: III – DEMONSTRATIVOS:
C10: Exercício Anterior | E10: 1º Quadrimestre | G10: 2º Quadrimestre | I10: 3º Quadrimestre
A11: Receita Corrente Líquida | C11: 26064831.15 | E11: 4530204.97 | G11: 0 | I11: 0 | L11: Disponibilidades financ.em 31/12: | N11: R$ | Q11: Inscrição de Restos a Pagar: | U11: R$
C12: R$ | D12: % | E12: R$ | F12: % | G12: R$ | H12: % | I12: R$ | J12: % | L12: Caixa | N12: 0 | Q12: Processados | U12: ='mod 6'!C49 -> 0
E13: 3 | F13: 4 | G13: 7 | H13: 8 | I13: 11 | J13: 12
A14: Despesas Totais com Pessoal | C14: 14710470.5 | D14: =IF(C$11>0,IF(C14>0,C14/C$11*100,""),"") -> 56.4380042 | E14: 1867119.61 | F14: =IF(E$11>0,IF(E14>0,E14/E$11*100,""),"") -> 41.21490357 | G14: 0 | H14: =IF(G$11>0,IF(G14>0,G14/G$11*100,""),"") ->  | I14: 0 | J14: =IF(I$11>0,IF(I14>0,I14/I$11*100,""),"") ->  | L14: Bancos – C/Movimento | N14: 0 | Q14: Não Processados | U14: ='mod 6'!D49 -> 0
A15: Limite Prudencial 95% (par.ún.art.22 LRF) | E15: =IF(ISNUMBER(F14),0.95*0.54*E11,"") -> 2323995.15 | F15: =IF(ISNUMBER(E15),E15/E$11*100,"") -> 51.3 | G15: =IF(ISNUMBER(H14),0.95*0.54*G11,"") ->  | H15: =IF(ISNUMBER(G15),G15/G$11*100,"") ->  | I15: =IF(ISNUMBER(J14),0.95*0.54*I11,"") ->  | J15: =IF(ISNUMBER(I15),I15/I$11*100,"") ->  | L15: Bancos – C/Vinculadas | Q15: Total da Inscrição: | U15: =IF(ISNUMBER(U12),U12+U14,"") -> 0
A16: Limite Legal (art. 20 LRF) | C16: =IF(ISNUMBER(C11),C$11*0.54,"") -> 14075008.82 | D16: =IF(ISNUMBER(C16),C16/C11*100,"") -> 54 | E16: =IF(ISNUMBER(E11),E$11*0.54,"") -> 2446310.684 | F16: =IF(ISNUMBER(E16),E16/E$11*100,"") -> 54 | G16: =IF(ISNUMBER(G11),G$11*0.54,"") -> 0 | H16: =IF(ISNUMBER(G16),G16/G$11*100,"") ->  | I16: =IF(ISNUMBER(I11),I$11*0.54,"") -> 0 | J16: =IF(ISNUMBER(I16),I16/I$11*100,"") ->  | L16: Aplicações Financeiras
A17: Excesso a Regularizar | C17: =IF(ISNUMBER(D14),IF(C14>C16,C14-C16,0),"") -> 635461.679 | D17: =IF(ISNUMBER(C17),C17/C11*100,"") -> 2.438004203 | E17: =IF(ISNUMBER(F14),IF(E14>E16,E14-E16,0),"") -> 0 | F17: =IF(ISNUMBER(E17),E17/E$11*100,"") -> 0 | G17: =IF(ISNUMBER(H14),IF(G14>G16,G14-G16,0),"") ->  | H17: =IF(ISNUMBER(G17),G17/G$11*100,"") ->  | I17: =IF(ISNUMBER(J14),IF(I14>I16,I14-I16,0),"") ->  | J17: =IF(ISNUMBER(I17),I17/I$11*100,"") ->  | L17: Subtotal | N17: =IF(ISNUMBER(N12),SUM(N12:O16),"") -> 0 | Q17: Serviços de Terceiros (art. 72 LC 101/00) | T17: R$ | V17: % RCL
L18: (-) Deduções:
A19: Despesa Líq. Inativos e Pensionistas | L19: Valores compromissados a pagar até 31/12 | Q19: Exercício anterior | V19: =IF(ISNUMBER($C$11),IF(ISNUMBER(T19),T19/$C$11*100,""),"") -> 
A20: Total da Despesa Líquida | C20: 27188559.57 | D20: =IF(C$11>0,IF(C20>0,C20/C$11*100,""),"") -> 104.3112822 | E20: 4439519.99 | F20: =IF(E$11>0,IF(E20>0,E20/E$11*100,""),"") -> 97.99821464 | G20: 0 | H20: =IF(G$11>0,IF(G20>0,G20/G$11*100,""),"") ->  | I20: 0 | J20: =IF(I$11>0,IF(I20>0,I20/I$11*100,""),"") ->  | L20: Total das Disponibilidades: | N20: =IF(ISNUMBER(N17),N17-N19,"") -> 0 | Q20: Exercício atual | V20: =IF(ISNUMBER($I$11),IF(ISNUMBER(T20),T20/$I$11*100,""),"") -> 
A21: Limite Legal (§1º,art.2ºLei Federal 9.717/98) | C21: 3804252.51 | D21: =IF(ISNUMBER(C21),C21/C11*100,"") -> 14.59534684 | E21: 1381462.11 | F21: =IF(ISNUMBER(E21),E21/E11*100,"") -> 30.49447253 | G21: =IF(ISNUMBER(G11),G$11*0.12,"") -> 0 | H21: =IF(ISNUMBER(G21),G21/G11*100,"") ->  | I21: =IF(ISNUMBER(I11),I$11*0.12,"") -> 0 | J21: =IF(ISNUMBER(I21),I21/I11*100,"") -> 
A22: Excesso a Regularizar
L23: Operações de Crédito por Antecipação de Receita Orçamentária - ARO
A24: Dívida Consolidada Líquida | L24: Data da Contratação | M24: Valor Contratado R$ | N24: Data da Liquidação | S24: Liquidado no Exercício - R$ | U24: Saldo a Pagar
A25: Saldo devedor | C25: 55795101.11 | D25: =IF(C$11>0,IF(ISNUMBER(C25),C25/C$11*100,""),"") -> 214.062776 | E25: 53576312.93 | F25: =IF(E$11>0,IF(ISNUMBER(E25),E25/E$11*100,""),"") -> 1182.646553 | G25: 0 | H25: =IF(G$11>0,IF(ISNUMBER(G25),G25/G$11*100,""),"") ->  | I25: 0 | J25: =IF(I$11>0,IF(ISNUMBER(I25),I25/I$11*100,""),"") ->  | N25: Principal | O25: Juros | Q25: Encargos
A26: Limite Legal (arts.3º e 4º Res.nº 40 Senado) | C26: 38042525.06 | D26: =IF(ISNUMBER(C11),120,"") -> 120 | E26: 16681445.28 | F26: =IF(ISNUMBER($D25),IF($D25>120,$D25-(($D25-120)/15),120),"") -> 207.7919242 | G26: =IF(ISNUMBER(H26),H26*G11/100,"") -> 0 | H26: =IF(ISNUMBER($D25),IF($D25>120,$D25-(($D25-120)/15),120),"") -> 207.7919242 | I26: =IF(ISNUMBER(J26),J26*I11/100,"") -> 0 | J26: =IF(ISNUMBER($D25),IF($D25>120,$D25-(($D25-120)/15),120),"") -> 207.7919242 | L26: ____/___/____ | N26: ____/___/____ | O26: ____/___/____ | Q26: ____/___/____
A27: Excesso a Regularizar | C27: 8458524.8 | D27: =IF(ISNUMBER(C27),C27/C$11*100,"") -> 32.45186877 | E27: 19183365.67 | F27: =IF(ISNUMBER(E27),E27/E$11*100,"") -> 423.4546957 | G27: =IF(ISNUMBER(H25),IF(G25>G26,G25-G26,0),"") ->  | H27: =IF(ISNUMBER(G27),G27/G$11*100,"") ->  | I27: =IF(ISNUMBER(J25),IF(I25>I26,I25-I26,0),"") ->  | J27: =IF(ISNUMBER(I27),I27/I$11*100,"") ->  | L27: ____/___/____ | N27: ____/___/____ | O27: ____/___/____ | Q27: ____/___/____
L28: ____/___/____ | N28: ____/___/____ | O28: ____/___/____ | Q28: ____/___/____
A29: Concessões de Garantias | L29: ____/___/____ | N29: ____/___/____ | O29: ____/___/____ | Q29: ____/___/____
A30: Montante | D30: =IF(C$11>0,IF(C30>0,C30/C$11*100,""),"") ->  | F30: =IF(E$11>0,IF(E30>0,E30/E$11*100,""),"") ->  | H30: =IF(G$11>0,IF(G30>0,G30/G$11*100,""),"") ->  | J30: =IF(I$11>0,IF(I30>0,I30/I$11*100,""),"") ->  | L30: ____/___/____ | N30: ____/___/____ | O30: ____/___/____ | Q30: ____/___/____
A31: Limite Legal (art. 9º Res.nº 43 Senado) | C31: =IF(ISNUMBER(C11),C$11*0.22,"") -> 5734262.853 | D31: =IF(ISNUMBER(C31),C31/C$11*100,"") -> 22 | E31: =IF(ISNUMBER(E11),E$11*0.22,"") -> 996645.0934 | F31: =IF(ISNUMBER(E31),E31/E$11*100,"") -> 22 | G31: =IF(ISNUMBER(G11),G$11*0.22,"") -> 0 | H31: =IF(ISNUMBER(G31),G31/G$11*100,"") ->  | I31: =IF(ISNUMBER(I11),I$11*0.22,"") -> 0 | J31: =IF(ISNUMBER(I31),I31/I$11*100,"") ->  | L31: ____/___/____ | N31: ____/___/____ | O31: ____/___/____ | Q31: ____/___/____
A32: Excesso a Regularizar | C32: =IF(ISNUMBER(D30),IF(C30>C31,C30-C31,0),"") ->  | D32: =IF(ISNUMBER(C32),C32/C$11*100,"") ->  | E32: =IF(ISNUMBER(F30),IF(E30>E31,E30-E31,0),"") ->  | F32: =IF(ISNUMBER(E32),E32/E$11*100,"") ->  | G32: =IF(ISNUMBER(H30),IF(G30>G31,G30-G31,0),"") ->  | H32: =IF(ISNUMBER(G32),G32/G$11*100,"") ->  | I32: =IF(ISNUMBER(J30),IF(I30>I31,I30-I31,0),"") ->  | J32: =IF(ISNUMBER(I32),I32/I$11*100,"") ->  | L32: ____/___/____ | N32: ____/___/____ | O32: ____/___/____ | Q32: ____/___/____
L33: ____/___/____ | N33: ____/___/____ | O33: ____/___/____ | Q33: ____/___/____
A34: Operações de Crédito (exceto ARO) | L34: ____/___/____ | N34: ____/___/____ | O34: ____/___/____ | Q34: ____/___/____
A35: Realizadas no período | D35: =IF(C$11>0,IF(C35>0,C35/C$11*100,""),"") ->  | F35: =IF(E$11>0,IF(E35>0,E35/E$11*100,""),"") ->  | H35: =IF(G$11>0,IF(G35>0,G35/G$11*100,""),"") ->  | J35: =IF(I$11>0,IF(I35>0,I35/I$11*100,""),"") ->  | L35: ____/___/____ | N35: ____/___/____ | O35: ____/___/____ | Q35: ____/___/____
A36: Limite legal (inc. I, art. 7º Res.nº 43 Senado) | C36: =IF(ISNUMBER(C11),C$11*0.16,"") -> 4170372.984 | D36: =IF(ISNUMBER(C36),C36/C$11*100,"") -> 16 | E36: =IF(ISNUMBER(E11),E$11*0.16,"") -> 724832.7952 | F36: =IF(ISNUMBER(E36),E36/E$11*100,"") -> 16 | G36: =IF(ISNUMBER(G11),G$11*0.16,"") -> 0 | H36: =IF(ISNUMBER(G36),G36/G$11*100,"") ->  | I36: =IF(ISNUMBER(I11),I$11*0.16,"") -> 0 | J36: =IF(ISNUMBER(I36),I36/I$11*100,"") ->  | L36: ____/___/____ | N36: ____/___/____ | O36: ____/___/____ | Q36: ____/___/____
A37: Excesso a regularizar | C37: =IF(ISNUMBER(D35),IF(C35>C36,C35-C36,0),"") ->  | D37: =IF(ISNUMBER(C37),C37/C$11*100,"") ->  | E37: =IF(ISNUMBER(F35),IF(E35>E36,E35-E36,0),"") ->  | F37: =IF(ISNUMBER(E37),E37/E$11*100,"") ->  | G37: =IF(ISNUMBER(H35),IF(G35>G36,G35-G36,0),"") ->  | H37: =IF(ISNUMBER(G37),G37/G$11*100,"") ->  | I37: =IF(ISNUMBER(J35),IF(I35>I36,I35-I36,0),"") ->  | J37: =IF(ISNUMBER(I37),I37/I$11*100,"") ->  | L37: ____/___/____ | N37: ____/___/____ | O37: ____/___/____ | Q37: ____/___/____
L38: ____/___/____ | N38: ____/___/____ | O38: ____/___/____ | Q38: ____/___/____
A39: Antecipação de Rec. Orçamentárias | L39: ____/___/____ | N39: ____/___/____ | O39: ____/___/____ | Q39: ____/___/____
A40: Saldo devedor | D40: =IF(C$11>0,IF(C40>0,C40/C$11*100,""),"") ->  | F40: =IF(E$11>0,IF(E40>0,E40/E$11*100,""),"") ->  | H40: =IF(G$11>0,IF(G40>0,G40/G$11*100,""),"") ->  | J40: =IF(I$11>0,IF(I40>0,I40/I$11*100,""),"") ->  | L40: ____/___/____ | N40: ____/___/____ | O40: ____/___/____ | Q40: ____/___/____
A41: Limite legal (art. 10 Res.nº 43 Senado) | C41: =IF(ISNUMBER(C11),C$11*0.07,"") -> 1824538.181 | D41: =IF(ISNUMBER(C41),C41/C$11*100,"") -> 7 | E41: =IF(ISNUMBER(E11),E$11*0.07,"") -> 317114.3479 | F41: =IF(ISNUMBER(E41),E41/E$11*100,"") -> 7 | G41: =IF(ISNUMBER(G11),G$11*0.07,"") -> 0 | H41: =IF(ISNUMBER(G41),G41/G$11*100,"") ->  | I41: =IF(ISNUMBER(I11),I$11*0.07,"") -> 0 | J41: =IF(ISNUMBER(I41),I41/I$11*100,"") -> 
A42: Excesso a regularizar | C42: =IF(ISNUMBER(D40),IF(C40>C41,C40-C41,0),"") ->  | D42: =IF(ISNUMBER(C42),C42/C$11*100,"") ->  | E42: =IF(ISNUMBER(F40),IF(E40>E41,E40-E41,0),"") ->  | F42: =IF(ISNUMBER(E42),E42/E$11*100,"") ->  | G42: =IF(ISNUMBER(H40),IF(G40>G41,G40-G41,0),"") ->  | H42: =IF(ISNUMBER(G42),G42/G$11*100,"") ->  | I42: =IF(ISNUMBER(J40),IF(I40>I41,I40-I41,0),"") ->  | J42: =IF(ISNUMBER(I42),I42/I$11*100,"") ->  | L42: Taubaté, 23 de maio de 2014
A44: II –INDICAÇÃO DAS MEDIDAS ADOTADAS OU A ADOTAR (caso ultrapasse os limites acima): | L44: Prof.Dr.Isnard de A.Câmara Neto | O44: Maria Antonia Cristina Carvalho | S44: Josimere dos Santos Costa
A45: textos | P45: CRC:1SP 186687/O-8
L46: Diretor Presidente | P46: CRC: 1SP 186687/O-8 | T46: Controlador Interno
L66: Diretor Presidente | O66: CRC:1SP 186687/O-8 | T66: Controlador Interno
A68: Taubaté, 23 de maio de 2014
A71: Prof.Dr.Isnard de A.Câmara Neto | D71: Maria Antonia Cristina Carvalho | H71: Josimere dos Santos Costa
A72: Diretor Presidente | E72: CRC:1SP 186687/O-8 | I72: Controlador Interno
U65498: Saldo a Pagar

Sheet mod10 1q
A1: RELATÓRIO DE GESTÃO FISCAL
A2: (Artigos 54 e 55 da LC 101/00)
A5: ='mod1 6b'!A5 -> MUNICÍPIO DE TAUBATÉ - FUNDAÇÃO UNIVERSITÁRIA DE TAUBATÉ
A6: ='mod10 3q'!A6 -> PODER EXECUTIVO MUNICIPAL
A7: 1ºQUADRIMESTRE 2014
A9: I – COMPARATIVOS: | F9: Valores expressos em R$
C10: EXERCÍCIO ANTERIOR | E10: 1ºQUADRIMESTRE | H10: III – DEMONSTRATIVOS:
A11: Receita Corrente Líquida | C11: ='mod10 3q'!C11:D11 -> 26064831.15 | E11: 4530204.97
C12: R$ | D12: % | E12: R$ | F12: % | H12: Disponib.financ.em 31/12: | J12: R$ | M12: Inscrição de Restos a Pagar: | Q12: R$
E13: =F13-1 -> 5 | F13: =COM!AH6*2 -> 6
A14: Despesas Totais com Pessoal | C14: ='mod10 3q'!C14 -> 14710470.5 | D14: ='mod10 3q'!D14 -> 56.4380042 | E14: 1867119.61 | F14: 66.95 | H14: Caixa | J14: 0 | M14: Processados | Q14: ='mod10 3q'!U12 -> 0
A15: Limite Prudencial 95% (par.ún.art.22 LRF) | E15: 2323995.15 | F15: 51.3 | H15: Bancos – C/Movimento | J15: 0 | M15: Não Processados | Q15: ='mod10 3q'!U14 -> 0
A16: Limite Legal (art. 20 LRF) | C16: ='mod10 3q'!C16 -> 14075008.82 | D16: ='mod10 3q'!D16 -> 54 | E16: 2446310.68 | F16: 54 | H16: Bancos – C/Vinculadas | J16: ='mod10 3q'!N15 -> 0 | M16: Total da Inscrição: | Q16: =SUM(Q14:R15) -> 0
A17: Excesso a Regularizar | C17: ='mod10 3q'!C17 -> 635461.679 | D17: ='mod10 3q'!D17 -> 2.438004203 | E17: 0 | F17: 12.95 | H17: Aplicações Financeiras | J17: ='mod10 3q'!N16 -> 0
H18: Subtotal | J18: =SUM(J14:K17) -> 0 | M18: Serviços de Terceiros (art. 72 LC 101/00) | P18: R$ | R18: % RCL
A19: Despesa Líq. Inativos e Pensionistas | H19: (-) Deduções:
A20: Total da Despesa Líquida | C20: ='mod10 3q'!C20 -> 27188559.57 | D20: ='mod10 3q'!D20 -> 104.3112822 | E20: 4439519.99 | F20: 98 | H20: Compromissos a pagar até 31/12 | J20: ='mod10 3q'!N19 -> 0 | M20: Exercício anterior | P20: ='mod10 3q'!T19 -> 0 | R20: ='mod10 3q'!V19 -> 
A21: Limite Legal (§1º,art.2ºLei Federal 9.717/98) | C21: ='mod10 3q'!C21 -> 3804252.51 | D21: ='mod10 3q'!D21 -> 14.59534684 | E21: 1381462.11 | F21: 30.49 | H21: Total das Disponibilidades: | J21: =J18-J20 -> 0 | M21: Exercício atual | P21: ='mod10 3q'!T20 -> 0 | R21: ='mod10 3q'!V20 -> 
A22: Excesso a Regularizar
A24: Dívida Consolidada Líquida | H24: Operações de Crédito por Antecipação de Receita Orçamentária - ARO
A25: Saldo | C25: ='mod10 3q'!C25 -> 55795101.11 | D25: ='mod10 3q'!D25 -> 214.062776 | E25: 53576312.93 | F25: 1182.65 | H25: Data da Contratação | I25: Valor Contratado R$ | J25: Data da Liquidação | O25: Liquidado no Exercício - R$ | Q25: Saldo a Pagar
A26: Limite Legal (arts.3º e 4º Res.nº 40 Senado) | C26: ='mod10 3q'!C26 -> 38042525.06 | D26: ='mod10 3q'!D26 -> 120 | E26: 16681445.28 | F26: 207.79 | J26: Principal | K26: Juros | M26: Encargos
A27: Excesso a Regularizar | C27: ='mod10 3q'!C27 -> 8458524.8 | D27: ='mod10 3q'!D27 -> 32.45186877 | E27: 19183365.67 | F27: 423.45 | H27: ='mod10 3q'!L26 -> ____/___/____ | I27: ='mod10 3q'!M26 -> 0 | J27: ='mod10 3q'!N26 -> ____/___/____ | K27: ='mod10 3q'!O26 -> ____/___/____ | M27: ='mod10 3q'!Q26 -> ____/___/____ | O27: ='mod10 3q'!S26 -> 0 | Q27: ='mod10 3q'!U26 -> 0
H28: ='mod10 3q'!L27 -> ____/___/____ | I28: ='mod10 3q'!M27 -> 0 | J28: ='mod10 3q'!N27 -> ____/___/____ | K28: ='mod10 3q'!O27 -> ____/___/____ | M28: ='mod10 3q'!Q27 -> ____/___/____ | O28: ='mod10 3q'!S27 -> 0 | Q28: ='mod10 3q'!U27 -> 0
A29: Concessões de Garantias | H29: ='mod10 3q'!L28 -> ____/___/____ | I29: ='mod10 3q'!M28 -> 0 | J29: ='mod10 3q'!N28 -> ____/___/____ | K29: ='mod10 3q'!O28 -> ____/___/____ | M29: ='mod10 3q'!Q28 -> ____/___/____ | O29: ='mod10 3q'!S28 -> 0 | Q29: ='mod10 3q'!U28 -> 0
A30: Montante | C30: ='mod10 3q'!C30 -> 0 | D30: ='mod10 3q'!D30 ->  | E30: 0 | F30: 0 | H30: ='mod10 3q'!L29 -> ____/___/____ | I30: ='mod10 3q'!M29 -> 0 | J30: ='mod10 3q'!N29 -> ____/___/____ | K30: ='mod10 3q'!O29 -> ____/___/____ | M30: ='mod10 3q'!Q29 -> ____/___/____ | O30: ='mod10 3q'!S29 -> 0 | Q30: ='mod10 3q'!U29 -> 0
A31: Limite Legal (art. 9º Res.nº 43 Senado) | C31: ='mod10 3q'!C31 -> 5734262.853 | D31: ='mod10 3q'!D31 -> 22 | E31: 996645.09 | F31: 22 | H31: ='mod10 3q'!L30 -> ____/___/____ | I31: ='mod10 3q'!M30 -> 0 | J31: ='mod10 3q'!N30 -> ____/___/____ | K31: ='mod10 3q'!O30 -> ____/___/____ | M31: ='mod10 3q'!Q30 -> ____/___/____ | O31: ='mod10 3q'!S30 -> 0 | Q31: ='mod10 3q'!U30 -> 0
A32: Excesso a Regularizar | C32: ='mod10 3q'!C32 ->  | D32: ='mod10 3q'!D32 ->  | E32: 0 | F32: 0 | H32: ='mod10 3q'!L31 -> ____/___/____ | I32: ='mod10 3q'!M31 -> 0 | J32: ='mod10 3q'!N31 -> ____/___/____ | K32: ='mod10 3q'!O31 -> ____/___/____ | M32: ='mod10 3q'!Q31 -> ____/___/____ | O32: ='mod10 3q'!S31 -> 0 | Q32: ='mod10 3q'!U31 -> 0
H33: ='mod10 3q'!L32 -> ____/___/____ | I33: ='mod10 3q'!M32 -> 0 | J33: ='mod10 3q'!N32 -> ____/___/____ | K33: ='mod10 3q'!O32 -> ____/___/____ | M33: ='mod10 3q'!Q32 -> ____/___/____ | O33: ='mod10 3q'!S32 -> 0 | Q33: ='mod10 3q'!U32 -> 0
A34: Operações de Crédito (exceto ARO) | H34: ='mod10 3q'!L33 -> ____/___/____ | I34: ='mod10 3q'!M33 -> 0 | J34: ='mod10 3q'!N33 -> ____/___/____ | K34: ='mod10 3q'!O33 -> ____/___/____ | M34: ='mod10 3q'!Q33 -> ____/___/____ | O34: ='mod10 3q'!S33 -> 0 | Q34: ='mod10 3q'!U33 -> 0
A35: Realizadas no período | C35: ='mod10 3q'!C35 -> 0 | D35: ='mod10 3q'!D35 ->  | E35: 0 | F35: 0 | H35: ='mod10 3q'!L34 -> ____/___/____ | I35: ='mod10 3q'!M34 -> 0 | J35: ='mod10 3q'!N34 -> ____/___/____ | K35: ='mod10 3q'!O34 -> ____/___/____ | M35: ='mod10 3q'!Q34 -> ____/___/____ | O35: ='mod10 3q'!S34 -> 0 | Q35: ='mod10 3q'!U34 -> 0
A36: Limite legal (inc. I, art. 7º Res.nº 43 Senado) | C36: ='mod10 3q'!C36 -> 4170372.984 | D36: ='mod10 3q'!D36 -> 16 | E36: 724832.8 | F36: 16 | H36: ='mod10 3q'!L35 -> ____/___/____ | I36: ='mod10 3q'!M35 -> 0 | J36: ='mod10 3q'!N35 -> ____/___/____ | K36: ='mod10 3q'!O35 -> ____/___/____ | M36: ='mod10 3q'!Q35 -> ____/___/____ | O36: ='mod10 3q'!S35 -> 0 | Q36: ='mod10 3q'!U35 -> 0
A37: Excesso a regularizar | C37: ='mod10 3q'!C37 ->  | D37: ='mod10 3q'!D37 ->  | E37: 0 | F37: 0 | H37: ='mod10 3q'!L36 -> ____/___/____ | I37: ='mod10 3q'!M36 -> 0 | J37: ='mod10 3q'!N36 -> ____/___/____ | K37: ='mod10 3q'!O36 -> ____/___/____ | M37: ='mod10 3q'!Q36 -> ____/___/____ | O37: ='mod10 3q'!S36 -> 0 | Q37: ='mod10 3q'!U36 -> 0
H38: ='mod10 3q'!L37 -> ____/___/____ | I38: ='mod10 3q'!M37 -> 0 | J38: ='mod10 3q'!N37 -> ____/___/____ | K38: ='mod10 3q'!O37 -> ____/___/____ | M38: ='mod10 3q'!Q37 -> ____/___/____ | O38: ='mod10 3q'!S37 -> 0 | Q38: ='mod10 3q'!U37 -> 0
A39: Antecipação de Receitas Orçamentárias (ARO) | H39: ='mod10 3q'!L38 -> ____/___/____ | I39: ='mod10 3q'!M38 -> 0 | J39: ='mod10 3q'!N38 -> ____/___/____ | K39: ='mod10 3q'!O38 -> ____/___/____ | M39: ='mod10 3q'!Q38 -> ____/___/____ | O39: ='mod10 3q'!S38 -> 0 | Q39: ='mod10 3q'!U38 -> 0
A40: Saldo devedor | C40: ='mod10 3q'!C40 -> 0 | D40: ='mod10 3q'!D40 ->  | E40: 0 | F40: 0 | H40: ='mod10 3q'!L39 -> ____/___/____ | I40: ='mod10 3q'!M39 -> 0 | J40: ='mod10 3q'!N39 -> ____/___/____ | K40: ='mod10 3q'!O39 -> ____/___/____ | M40: ='mod10 3q'!Q39 -> ____/___/____ | O40: ='mod10 3q'!S39 -> 0 | Q40: ='mod10 3q'!U39 -> 0
A41: Limite legal (art. 10 Res.nº 43 Senado) | C41: ='mod10 3q'!C41 -> 1824538.181 | D41: ='mod10 3q'!D41 -> 7 | E41: 317114.35 | F41: 7 | H41: ='mod10 3q'!L40 -> ____/___/____ | I41: ='mod10 3q'!M40 -> 0 | J41: ='mod10 3q'!N40 -> ____/___/____ | K41: ='mod10 3q'!O40 -> ____/___/____ | M41: ='mod10 3q'!Q40 -> ____/___/____ | O41: ='mod10 3q'!S40 -> 0 | Q41: ='mod10 3q'!U40 -> 0
A42: Excesso a regularizar | C42: ='mod10 3q'!C42 ->  | D42: ='mod10 3q'!D42 ->  | E42: 0 | F42: 0
A44: II –INDICAÇÃO DAS MEDIDAS ADOTADAS OU A ADOTAR (caso ultrapasse os limites acima):
A45: texto
A46: =IF(ISTEXT('mod10 3q'!A46),'mod10 3q'!A46," ") -> 
A47: =IF(ISTEXT('mod10 3q'!A47),'mod10 3q'!A47," ") -> 
A48: =IF(ISTEXT('mod10 3q'!A48),'mod10 3q'!A48," ") ->  | H48: Taubaté, 23 de janeiro de 2013
A49: =IF(ISTEXT('mod10 3q'!A49),'mod10 3q'!A49," ") -> 
A50: =IF(ISTEXT('mod10 3q'!A50),'mod10 3q'!A50," ") -> 
A51: =IF(ISTEXT('mod10 3q'!A51),'mod10 3q'!A51," ") -> 
A52: =IF(ISTEXT('mod10 3q'!A52),'mod10 3q'!A52," ") ->  | H52: Prof.Dr.Isnard de A.Cãmara Neto | L52: Maria Antonia Cristina Carvalho | O52: Larissa Diniz de Paula
A53: =IF(ISTEXT('mod10 3q'!A53),'mod10 3q'!A53," ") ->  | H53: Diretor Presidente | L53: CRC: 1SP 186687/O-8 | O53: Controlador Interno
A54: =IF(ISTEXT('mod10 3q'!A54),'mod10 3q'!A54," ") -> 
A55: =IF(ISTEXT('mod10 3q'!A55),'mod10 3q'!A55," ") -> 
A56: =IF(ISTEXT('mod10 3q'!A56),'mod10 3q'!A56," ") -> 
A57: =IF(ISTEXT('mod10 3q'!A57),'mod10 3q'!A57," ") -> 
A58: =IF(ISTEXT('mod10 3q'!A58),'mod10 3q'!A58," ") -> 
A59: =IF(ISTEXT('mod10 3q'!A59),'mod10 3q'!A59," ") -> 
A60: =IF(ISTEXT('mod10 3q'!A60),'mod10 3q'!A60," ") -> 
A61: =IF(ISTEXT('mod10 3q'!A61),'mod10 3q'!A61," ") -> 
A62: =IF(ISTEXT('mod10 3q'!A62),'mod10 3q'!A62," ") -> 
A63: =IF(ISTEXT('mod10 3q'!A63),'mod10 3q'!A63," ") -> 
A64: =IF(ISTEXT('mod10 3q'!A64),'mod10 3q'!A64," ") -> 
A65: =IF(ISTEXT('mod10 3q'!A65),'mod10 3q'!A65," ") -> 
H66: Taubaté, 23 de maio de 2014
A68: Taubaté, 23 de maio de 2014
H69: Prof.Dr.Isnard de A.Cãmara Neto | J69: Maria Antonia Cristina Carvalho | L69: Josimere S. Costa
H70: Diretor Presidente | J70: CRC: 1SP 186687/O-8 | L70: Controlador Interno
A71: Prof.Dr.Isnard de A.Cãmara Neto | C71: Maria Antonia Cristina Carvalho | E71: Josimere dos Santos Costa
A72: Diretor Presidente | C72: CRC: 1SP 186687/O-8 | E72: Controlador Interno

Sheet Anexo1mod10
A1: DEMONSTRATIVO DAS DESPESAS COM PESSOAL E PREVIDENCIÁRIAS
A2: (Artigo 22; Artigo 59, § 1º,incisos II e IV e § 2º da Lei Complementar 101/00; §§ 1º e 2º do Artigo 2º da Lei Federal nº 9717/98)
A4: ='mod1 6b'!A5 -> MUNICÍPIO DE TAUBATÉ - FUNDAÇÃO UNIVERSITÁRIA DE TAUBATÉ
A5: ='mod10 1q'!A6 -> PODER EXECUTIVO MUNICIPAL
A6: 1º QUADRIMESTRE 2014
N7: Valores expressos em R$
A8: DESPESAS COM PESSOAL | B8: MAIO | C8: JUNHO | D8: JULHO | E8: AGOSTO | F8: SETEMBRO | G8: OUTUBRO | H8: NOVEMBRO | I8: DEZEMBRO | J8: JANEIRO | K8: FEVEREIRO | L8: MARÇO | M8: MÊS REF.: ABRIL | N8: Totais:
A10: Despesas com Pessoal Ativo | B10: 924630.78 | C10: 839258.94 | D10: 791882.27 | E10: 759835.63 | F10: 739790.57 | G10: 1328785.15 | H10: 1001838.03 | I10: 1634823.48 | J10: 1125603.37 | K10: 162577.88 | L10: 227113.58 | M10: 222138.5 | N10: =SUM(B10:M10) -> 9758278.18
A11: Mão-de-Obra terceirizada | N11: =SUM(B11:M11) -> 0
A12: Encargos Sociais | B12: 65228.94 | C12: 63179 | D12: 55849.54 | E12: 57248.89 | F12: 55875 | G12: 102109.68 | H12: 106283.99 | I12: 115492.79 | J12: 76943.04 | K12: 18778.94 | L12: 16519.77 | M12: 15666.94 | N12: 749176.52
A13: Inativos | N13: 0
A14: Pensionistas | N14: 0
A15: Salário Família | B15: 7948.42 | C15: 3068.44 | D15: 2681.02 | E15: 2742.01 | F15: 2673.94 | G15: 411.57 | H15: 280.32 | I15: 396.82 | J15: 606.47 | K15: 391.65 | L15: 407.24 | M15: 372.23 | N15: 21980.13
A16: Sentenças Judiciais do período | N16: 0
A17: Outras desp.com pessoal (PASEP etc) | N17: 0
A18: Subtotal | B18: =SUM(B10:B17) -> 997808.14 | C18: 905506.38 | D18: 850412.83 | E18: 819826.53 | F18: 798339.51 | G18: 1431306.4 | H18: 1108402.34 | I18: 1750713.09 | J18: =SUM(J10:J17) -> 1203152.88 | K18: 181748.47 | L18: 244040.59 | M18: 238177.67 | N18: 10529434.83
A19: (-) DEDUÇÕES (§1º do art. 19)
A20: Indenização por demissão (inc.I) | N20: 0
A21: Incentivos à demissão voluntária (inc.II) | N21: 0
A22: Decisão Judicial de compet.anterior(inc.IV) | N22: 0
A23: Inativos e Pensionistas (inc.VI) | N23: 0
A24: Subtotal | B24: =SUM(B20:B23) -> 0 | C24: 0 | D24: 0 | E24: 0 | F24: 0 | G24: 0 | H24: 0 | I24: 0 | J24: =SUM(J20:J23) -> 0 | K24: 0 | L24: 0 | M24: 0 | N24: 0
A25: TOTAL | B25: =B18-B24 -> 997808.14 | C25: 905506.38 | D25: 850412.83 | E25: 819826.53 | F25: 798339.51 | G25: 1431306.4 | H25: 1108402.34 | I25: 1750713.09 | J25: =J18-J24 -> 1203152.88 | K25: 181748.47 | L25: 244040.59 | M25: 238177.67 | N25: 10529434.83
A27: DESPESAS COM PESSOAL INATIVO E PENSIONISTAS | B27: =B8 -> MAIO | C27: JUNHO | D27: JULHO | E27: AGOSTO | F27: SETEMBRO | G27: OUTUBRO | H27: NOVEMBRO | I27: DEZEMBRO | J27: =J8 -> JANEIRO | K27: FEVEREIRO | L27: MARÇO | M27: MÊS REF.: ABRIL | N27: Totais:
A29: Despesas com Pessoal Inativo | N29: =SUM(B29:M29) -> 0
A30: Despesas com Pensionistas | N30: 0
A31: Outros benefícios e desp. com Inativos | N31: 0
A32: Subtotal | B32: =SUM(B29:B31) -> 0 | C32: 0 | D32: 0 | E32: 0 | F32: 0 | G32: 0 | H32: 0 | I32: 0 | J32: =SUM(J29:J31) -> 0 | K32: 0 | L32: 0 | M32: 0 | N32: 0
A33: (-) DEDUÇÕES
A34: Contribuições dos Segurados | N34: 0
A35: TOTAL DESPESAS LÍQUIDAS | B35: =B32-B34 -> 0 | C35: 0 | D35: 0 | E35: 0 | F35: 0 | G35: 0 | H35: 0 | I35: 0 | J35: =J32-J34 -> 0 | K35: 0 | L35: 0 | M35: 0 | N35: 0
A39: Prof.Dr.Isnard de A.Câmara Neto | F39: Maria Antonia Cristina Carvalho | L39: Josimere dos Santos Costa
A40: Diertor Presidente | G40: CRC: 1SP 186687/O-8 | M40: Controlador Interno

Sheet INCO (hidden)
B3: Inconsistências nos Relatórios e Demonstrativos:
B5: ='mod1 6b'!A5 -> MUNICÍPIO DE TAUBATÉ - FUNDAÇÃO UNIVERSITÁRIA DE TAUBATÉ
B6: ='mod10 3q'!A6 -> PODER EXECUTIVO MUNICIPAL
B7: ='mod1 6b'!A6 -> 3ºBIMESTRE 2014
B9: Nº | C9: VERIFICAÇÃO | K9: Confere ?
B10: 1 | C10: Verificar no Mod.1 se o Total da Dotação Inicial confere com o total das Dotação Inicial do Mod.2 | K10: =IF('mod1 6b'!C52='mod2 6b'!E320,"sim","não") -> sim
B11: 2 | C11: Verificar no Mod.1 se o Total das Despesas Empenhadas conferem com o total das Despesas Empenhadas do Mod.2 | K11: =IF('mod1 6b'!P52='mod2 6b'!R320,"sim","não") -> sim
B12: 3 | C12: Verificar no Mod.1 se o Total das Despesas Liquidadas conferem com o total das Despesas Liquidadas do Mod.2 | K12: =IF('mod1 6b'!Q52='mod2 6b'!S320,"sim","não") -> sim
B13: 4 | C13: Verificar no Mod.1 - Anexo - se o total das Receitas Acumuladas conferem com os Acumulados das Receitas Realizadas do Mod.1. | K13: =IF('mod1 anexo'!C45='mod1 6b'!Q36,"sim","não") -> sim
B14: 5 | C14: Verificar no Mod.1 - Anexo - se o total das Despesas Empenhadas Acumuladas conferem com os Acumulados das Despesas Empenhadas do Mod.1. | K14: =IF('mod1 anexo'!E45='mod1 6b'!P52,"sim","não") -> não
B15: 6 | C15: Verificar no Mod.1 - Anexo - se o total das Despesas Liquidadas Acumuladas conferem com os Acumulados das Despesas Liquidadas do Mod.1. | K15: =IF('mod1 6b'!Q52='mod1 anexo'!G45,"sim","não") -> não
B16: 7 | C16: Verificar no Mod.3 se o Total das Contrib.dos Servidores ao Reg.Próp. Previd. conferem as Contribuições dos Servidores ativos, inativos e pensionistas até o Bimestre do Mod.4. | K16: =IF('mod 3'!O20='mod 4'!F13+'mod 4'!F14+'mod 4'!F15,"sim","não") -> sim
B17: 8 | C17: Verificar no Mod.3 se o Total das Compensações Financeiras entre regimes de previd. conferem as Receitas de Compensações Previdenciárias até o Bimestre do Mod.4. | K17: =IF('mod 3'!O21='mod 4'!F17,"sim","não") -> sim
B18: 7 | C18: Verificar no Mod.3 se o subtotal das Receitas Correntes do mês de referência e mês anterior é igual à Receita Realizada no Bimestre correspondente do Mod. 1 | K18: =IF('mod 3'!N17+'mod 3'!M17='mod1 1b'!E11+'mod1 1b'!E26,"sim","não") -> sim
B19: 8 | C19: Verificar no Mod.5 se no Resultado Primário as Deduções de Receitas de Privatizações do Bim. conferem com as Receitas de Privatizações do Resultado Nominal do Bim. atual do Mod.5 | K19: =IF('mod 5'!G17='mod 5'!D53,"sim","não") -> sim
B20: 8 | C20: Verificar no Mod.10 se a RCL confere com o total apurado no Mod.3. | K20: =IF('mod10 1q'!E11='mod 3'!O27,"sim","não") -> não
B21: 9 | C21: Verificar no Mod.10 se as Despesas Totais com Pessoal conferem com o Total apurado no Anexo 1 do Mod.10. | K21: =IF('mod10 1q'!E14=Anexo1mod10!N25,"sim","não") -> não
B22: 10 | C22: Verificar no Mod.10 se as Despesas Líquidas com Inativos e Pensionistas conferem com o Total apurado no Anexo 1 do Mod.10. | K22: =IF('mod10 1q'!E20=Anexo1mod10!N35,"sim","não") -> não
B23: 11 | C23: Verificar no Mod.10 se o saldo devedor da Dívida Consolidada Líquida Até o Bimestre Confere com o mesmo saldo no Resultado Nominal do Mod.5 | K23: =IF('mod10 1q'!E25='mod 5'!D51,"sim","não") -> não
B24: 12 | C24: Verificar no Mod.10 se o valor das Operações de Crédito realizadas no período conferem com as dos Mod.1 e 5 do período | K24: =IF(('mod10 3q'!E35+'mod10 3q'!G35+'mod10 3q'!I35)= 'mod1 1b'!G29,"sim","não") -> sim

Sheet Protocolo (hidden)
C3: TRIBUNAL DE CONTAS DO ESTADO DE SÃO PAULO
C4: - FISCALIZAÇÃO DO CUMPRIMENTO DA LC 101/00 -
B6: Protocolo de entrega dos relatórios por meio magnético
B8: ='mod1 6b'!A5 -> MUNICÍPIO DE TAUBATÉ - FUNDAÇÃO UNIVERSITÁRIA DE TAUBATÉ
B9: ='mod10 3q'!A6 -> PODER EXECUTIVO MUNICIPAL
B10: ='mod1 6b'!A6 -> 3ºBIMESTRE 2014
B13: Mod. | C13: Descrição | D13: Valores:
B14: 1 | C14: RREO | D14: Superávit/Déficit
D15: Do Bimestre: | E15: ='mod1 1b'!D53 -> -46288.51 | F15: Acumulado: | G15: ='mod1 1b'!F53 -> 1755323.5
B16: 1 | C16: RREO - Anexo | D16: Resultado Total: | G16: ='mod1 anexo'!H45 -> -1701118.97
B17: 2 | C17: RREO - Função/Subf. | D17: Despesas Totais:
D18: Do Bimestre: | E18: ='mod2 1b'!F320 -> 3166854.51 | F18: Acumulado: | G18: ='mod2 1b'!H320 -> 7606374.5
B19: 3 | C19: RCL | D19: RCL apurada até o mês de referência: | G19: ='mod 3'!O27 -> 16446787.88
B20: 4 | C20: Rec. e Despesas Previdenciárias | D20: Superávit/Déficit acumulado: | G20: ='mod 4'!E30 -> 0
D21: Total Disp. Financeira | G21: ='mod 4'!G39 -> 0
B22: 5 | C22: Resultado Nominal e Primário | D22: Resultado Primário: | F22: Resultado Nominal
D23: Do Bimestre: | E23: ='mod 5'!F41 -> -46288.51 | F23: Do Bimestre: | G23: ='mod 5'!E54 -> 63542.15
D24: Até o Bimestre | E24: ='mod 5'!G41 -> -1707686.97 | F24: Até o Bimestre | G24: ='mod 5'!G54 -> -2155246.03
B25: 6 | C25: Restos a Pagar: | D25: Montante a Pagar | G25: ='mod 6'!I49 -> -1361238.64
D26: Disponibilidade Financeira | G26: ='mod 6'!J49 -> 108335.84
B27: 7 | C27: Oper.Créditos x Desp. de Capital | D27: Despesas de Capital Líquidas: | G27: ='mod 7'!G46 -> 0
D28: Total Oper.Crédito: | G28: ='mod 7'!H46 -> 0
B29: 8 | C29: Projeções Atuariais | D29: Resultado próximo exercício: | G29: ='mod 8'!D16 -> 0
D30: Resultado último exercício: | G30: ='mod 8'!D50 -> 0
B31: 9 | C31: Var.Patrim. e Aplic. Rec. | D31: ="Resultado Patrimonial: "&'mod 9'!E27 -> Resultado Patrimonial: VARIAÇÃO POSITIVA = | G31: ='mod 9'!G27:H27 -> 0
D32: Saldo financeiro a aplicar | G32: ='mod 9'!G69 -> 0
B33: 10 | C33: RGF | D33: RCL apurada até o mês de referência: | G33: ='mod10 1q'!E11 -> 4530204.97
D34: Despesas com Pessoal | G34: ='mod10 1q'!E14 -> 1867119.61
D35: Despesas com Inativos e Pensionistas | G35: ='mod10 1q'!E20 -> 4439519.99
D36: Saldo da Dívida Consolidada Líquida | G36: ='mod10 1q'!E25 -> 53576312.93
D37: Montante das Concessões de Garantia | G37: ='mod10 1q'!E30 -> 0
D38: Oper.Crédito realizadas | G38: ='mod10 1q'!E35 -> 0
D39: Saldo devedor de ARO | G39: ='mod10 1q'!E40 -> 0
D40: Disponibilidades menos compromissos a pagar até 31/12 | G40: ='mod10 1q'!J21 -> 0
D41: Inscrição em Restos a Pagar | G41: ='mod10 1q'!Q16 -> 0
D42: Serviços de Terceiros do exercício | G42: =IF(ISNUMBER($G$33),'mod10 3q'!T20,G34) -> 0
B43: 10 | C43: RGF - Anexo I | D43: Total Despesas com Pessoal | G43: =Anexo1mod10!N25 -> 10529434.83
D44: Total Despesas Líquidas Inativos/Pensionistas | G44: =Anexo1mod10!N35 -> 0
C48: Data/Local da elaboração:
C51: _________________ | D51: _________________ | F51: _______________________
C52: Prefeito Municipal | D52: Contabilista - nº CRC | F52: Resp. pelo Controle Interno
